{"text_format":"1","workbook":"xlsx","n_sheets":19,"sheets":["CUTTING LIST","Qbiss One elements","Transversal corner elements","Transversal spliced corner el.","Longitudinal corner elements ","Longitudinal spliced corner el.","U-corner elements","Curved elements","3D diagonal-cut corner elements","3D edge-cut corner elements","Elements with overhang","Qbiss Accessories","Other Accessories","FAQ","Fixing material data","AccessoriesMatrix_1","UPDATES","Data 1","Data 2"],"not_rendered":{"charts":0,"images":193,"macros":1,"external_links":1,"defined_names":221,"comments":1,"pivot_tables":0},"unopened":[],"bounds":{"document_bytes":16777216,"sheet_cells":100000,"rows_first":2000,"rows_last":500,"rows_between":2000,"halvings":0,"cell_chars":16384,"cell_head_chars":4096},"cells_cut":0,"cells_raw":0,"read":"whole","date_system":"1900"}

{"sheet":"CUTTING LIST","index":0,"n_rows":60,"n_cols":17,"rows_kept":60,"cut":false,"hidden":false,"merged":[[1,2,2,10],[59,0,59,13],[8,0,8,1],[9,0,9,1],[34,0,34,2],[43,11,43,13],[43,0,43,2],[43,3,43,6],[43,8,43,10],[34,11,34,13],[34,8,34,10],[34,3,34,6],[21,11,21,12],[13,10,13,13]]}
[null,null,null,null,null,null,null,null,null,null,null,"Date last saved:",null,{"$f":"LastSavedTimeStamp()","v":"2025-09-04T15:08:46"}]
[null,null,"CUTTING LIST",null,null,null,null,null,null,null,null,"Last saved by:",null,{"$f":"Lastauthor()","v":"Matej Jereb"}]
[null,null,null,null,null,null,null,null,null,null,null,"Cutting list number:",null,"Insert"]
[null,null,{"$f":"\"version \"&LOOKUP(2,1/(UPDATES!A:A<>\"\"),UPDATES!A:A)","v":"version 2.6"},null,null,null,null,null,null,null,null,"Revision:",null,"Insert"]
[null,null,null,"Required fields"]
[]
[]
[]
["Project name:",null,"Insert text"]
["Customer name:",null,"Insert text"]
["Customer order no:",null,"Insert text"]
["Certificate requirement:",null,"None",null,null,null,null,null,null,null,null,null,null,null,null,null," "]
[]
[]
[]
[null,null,null,false,null,null,null,false]
[null,null,null,false,null,null,null,false]
[null,null,null,false,null,null,null,false]
[null,null,null,false,null,null,null,false]
[null,null,null,null,null,null,null,false]
[]
[]
[]
[]
[]
[]
[]
[]
[]
[]
[]
[]
[]
[]
[]
[]
[]
[]
[]
[]
[]
[]
[]
[]
[]
[]
[]
[]
[]
[]
[]
[]
[]
[]
[]
[]
[]
[]
[]
["Disclaimer: The main and only purpose of this document is to provide cutting list table with integrated restrictions to external designers. Trimo Group holds full copyrights on the information and details provided in this document. Professional care has been taken to ensure that information/details are accurate, correct, completed and not misleading, however Trimo, including its subsidiaries, does not accept responsibility or liability for errors or information, which is found to be misleading. Information/details in this document are for general purposes only. Use of it is on your own initiative and responsibility for compliance with local laws. In no event, will Trimo be liable for any loss or damage including without limitation, indirect or consequential loss or damage, or any loss or damage whatsoever arising from loss profits arising out of or in connection with the use of this document. Any equation modification of this document or instruction text is stricty prohibited. All information issued by Trimo Group is subject to continuous development and information/details contained in this document are current at date of issue. It is user`s responsibility to obtain most up-to-date information from Trimo when information/details are used for any specific project. The last version of the document is available on www.trimo-group.com. Latest version of published document in English language prevails over other translated language documents."]

{"sheet":"Qbiss One elements","index":1,"n_rows":144,"n_cols":26,"rows_kept":144,"cut":false,"hidden":false,"merged":[[3,21,4,22],[4,17,4,18],[3,17,3,18],[4,15,4,16],[3,15,3,16],[21,1,22,1],[5,8,5,10],[7,0,7,3],[19,0,19,17],[20,4,20,6],[9,0,9,1],[21,11,21,14],[21,15,22,15],[5,17,5,18],[5,15,5,16],[9,3,12,5],[21,2,22,2],[21,4,21,6],[21,7,21,10],[21,17,22,17],[2,3,2,14],[4,3,4,14],[3,3,3,14],[21,19,22,19],[2,17,2,18],[2,15,2,16],[21,18,22,18]]}
[null,null,null,null,null,null,null,null,"Qbiss One Cutting list for rectangular elements",null,null,null,null,null,null,null,null,null,{"$f":"\"version \"&LOOKUP(2,1/(UPDATES!A:A<>\"\"),UPDATES!A:A)","v":"version 2.6"}]
[]
[null,"Project name:",null,{"$f":"IF('CUTTING LIST'!C9=\"INSERT TEXT\",\"Insert text on first page\",'CUTTING LIST'!C9)","v":"Insert text on first page"},null,null,null,null,null,null,null,null,null,null,null,"Date last saved:",null,{"$f":"'CUTTING LIST'!N1","v":"2025-09-04T15:08:46"}]
[null,"Customer name:",null,{"$f":"IF('CUTTING LIST'!C10=\"INSERT TEXT\",\"Insert text on first page\",'CUTTING LIST'!C10)","v":"Insert text on first page"},null,null,null,null,null,null,null,null,null,null,null,"Last saved by:",null,{"$f":"'CUTTING LIST'!N2","v":"Matej Jereb"}]
[null,"Customer order no:",null,{"$f":"IF('CUTTING LIST'!C11=\"INSERT TEXT\",\"Insert text on first page\",'CUTTING LIST'!C11)","v":"Insert text on first page"},null,null,null,null,null,null,null,null,null,null,null,"Cutting list number:",null,{"$f":"IF('CUTTING LIST'!N3=\"Insert\",\"Insert text on first page\",'CUTTING LIST'!N3)","v":"Insert text on first page"}]
[null,null,null,null,null,null,null,null,null,null,null,null,null,null,null,"Revision:",null,{"$f":"IF('CUTTING LIST'!N4=\"Insert\",\"Insert text of first page\",'CUTTING LIST'!N4)","v":"Insert text of first page"}]
[]
["STEP 1:",null,null,null,null,null,null,"STEP 2:"]
["Select type of cladding system:",null,null,null,null,null,null,"Select joint option:"]
["Horizontal",null,null,"In case you are ordering elements with various cladding systems \nor various joint options, \nplease create separate files for each.",null,null,null,"B-B","Visible hole in HF55",{"$f":"IF(H10=\"BF-B\",\"Closed profile HF55\",\"\")","v":""},{"$f":"IF(H10=\"BF-B\",LEFT(I10,6),\"\")","v":""},null,{"$f":"INDEX('Data 1'!B19:F24,MATCH('Qbiss One elements'!H10,'Data 1'!A19:A24,0),MATCH('Qbiss One elements'!A10,'Data 1'!B18:F18,0))","v":"B_B_Horizontal"},{"$f":"INDEX('Data 1'!B19:F24,MATCH('Qbiss One elements'!H10,'Data 1'!A19:A24,0),MATCH('Qbiss One elements'!A10,'Data 1'!B18:F18,0))&K10","v":"B_B_Horizontal"}]
[null,null,null,null,null,null,null,{"$f":"IF(LEFT(H10,1)=\"F\",4,23)","v":23},null,{"$f":"IF(H10=\"BF-B\",\"Visible hole in HF55\",\"\")","v":""}]
[]
[]
[]
[]
[]
[]
[]
[null,null,null,null,null,null,null,null,null,null,null,null,null,null,null,null,null,null,"Note: Specification must be aligned with the commercial quotation. "]
["STEP 3:"]
[1,2,3,4,5,null,null,6,7,8,9,10,11,12,13,14,15,16,17]
["PHASE / FACADE /","ELEMENT REF:","QTY:","Core type","UNIT DIMENSIONS [mm]",null,null,"EXTERNAL STEEL SHEET",null,null,null,"INTERNAL STEEL SHEET",null,null,null,"ELEMENT Type","FIXING POINT","Other notes","TOTAL [m2]","STATUS"]
["BUILDING",null,null,"Mineral wool","T","M","R","Thickness [mm]","Colour","Profile","Coating","Thickness [mm]","Colour","Profile","Coating",null,"QTY",null,null,null,null,null,null,null,"M*QTY","Total fixing points"]
[null,null,null,null,null,null,null,0.7,null,"G",{"$f":"IF(I24=\"\",\"\",IFERROR(VLOOKUP(I24,'Data 2'!$A$1:$B$29,2,FALSE),\"add note\"))","v":""},null,null,null,null,null,null,null,{"$f":"C24*F24/1000*G24/1000","v":0},{"$f":"IF(OR($A$10=\"\",$H$10=\"\",C24=\"\",D24=\"\",E24=\"\",F24=\"\",G24=\"\",I24=\"\",L24=\"\",M24=\"\",N24=\"\",O24=\"\",P24=\"\",Q24=\"\"),\"Not OK\",\"OK\")","v":"Not OK"},null,null,null,null,{"$f":"C24*F24","v":0},{"$f":"Q24*C24","v":0}]
[null,null,null,null,null,null,null,0.7,null,"G",{"$f":"IF(I25=\"\",\"\",IFERROR(VLOOKUP(I25,'Data 2'!$A$1:$B$29,2,FALSE),\"add note\"))","v":""},null,null,null,null,null,null,null,{"$f":"C25*F25/1000*G25/1000","v":0},{"$f":"IF(OR($A$10=\"\",$H$10=\"\",C25=\"\",D25=\"\",E25=\"\",F25=\"\",G25=\"\",I25=\"\",L25=\"\",M25=\"\",N25=\"\",O25=\"\",P25=\"\",Q25=\"\"),\"Not OK\",\"OK\")","v":"Not OK"},null,null,null,null,{"$f":"C25*F25","v":0},{"$f":"Q25*C25","v":0}]
[]
[null,"TOTAL QTY",{"$f":"SUM(C24:C26)","v":0},null,null,null,null,null,null,null,null,null,null,null,null,null,null,"TOTAL m2 of facade elements",{"$f":"SUM(S24:S26)","v":0}]
[null,"Module x QTY[m]:",{"$f":"SUM(Y24:Y26)/1000","v":0},null,null,null,null,null,null,null,null,null,null,null,null,null,null,"TOTAL fixing points",{"$f":"SUM(Z24:Z26)","v":0}]
[]
[]
[]
[]
[]
[]
["INSTRUCTIONS"]
["Follow steps"]
["1 PHASE / FACADE / BUILDING",null,"Mark positioning of the element according to design shop drawings",null,null,null,null,null,null,null,null,null,"COLOUR LEGEND:"]
["2 ELEMENT REF",null,"Mark element according to design shop drawings",null,null,null,null,null,null,null," ",null,null,"Required fields"]
["3 QTY",null,"Number of elements",null,null,null,null,null,null,null,null,null,null,"Input data doesn't meet Qbiss One limitations - see INSTRUCTIONS"]
["4 Core type",null,"Power T","90 kg/m3",null,null,null,null,null,null,null,null,null,"Automatically filled"]
[null,null,"Power S","120 kg/m3"]
[null,null,"Perform C","120 kg/m3"]
["5 Unit dimensions"]
[null,null,"T-","element thickness [mm]: (80, 100, 120, 133, 150, 172, 200, 220, 240, 250)"]
[null,null,"M-","element module width [mm]: from 600 up to 1200"]
[null,null,"R-","element length [mm]:  from 500 up to 6500",null,null,null,null,"*except element type 5,6,7,8,9,10,11,12:  550mm < R < 6475mm"]
[null,null,null,"Element lenght is measured and scheduled between fixing (joint centres) - SEE PICTURES BELOW !!!"]
[]
[]
[]
[]
[]
[]
[]
[]
[]
[]
[]
[]
[]
[]
[]
[]
[]
[]
[]
[]
[]
[]
[]
["6 External steel sheet thickness",null,"In case of Qbiss elements, to achieve perfect flatness, we always use 0,7 mm thick steel sheet"]
["7 External steel sheet colour",null,"Select available standard colours. Find more about standard colours from following link",null,null,null,null,null,null,null,"Qbiss Colour Chart"]
["8 External steel sheet profile",null,"All Qbiss One elements have smooth external steel sheet profile"]
["9 External steel sheet coating",null,"Based on colour selection, steel sheet coating is selected automaticaly"]
["10 Internal steel sheet thickness",null,"Choose among 0,5mm; 0,55mm; 0,6mm; 0,7mm according to offer and structural calculation made by Trimo"]
["11 Internal steel sheet colour",null,"Select available standard colours. Find more about standard colours from following link",null,null,null,null,null,null,null,"Qbiss Colour Chart"]
["12 Internal steel sheet profile",null,"Choose among: g; s; v; v2; m2 profiles. Find out more about possibilities"]
["13 Internal steel sheet coating",null,"Considering project requirements, you can choose what type of coating is appropriate. ",null,null,null,null,null,null,null,"SP - Polyester"]
[null,null,null,null,null,null,null,null,null,null,"PVDF - Polyvinylidene fluoride"]
[null,null,null,null,null,null,null,null,null,null,"PUR - Polyurethane"]
[null,null,null,null,null,null,null,null,null,null,"PVC - Polyvinyl chlodide"]
["14 Element type",null,"Based on direction of assembly, choose appropriate type of element"]
[]
[]
[]
[]
[]
[]
[]
[]
[]
[]
[]
[]
[]
[]
[]
[]
[]
[]
[]
[]
[]
[]
[]
[]
[]
[]
[]
[]
[]
[]
[]
[]
[]
[]
[]
[]
[]
[]
["15 Fixing point",null,"Select quantity of fixing points on Qbiss element according to structural calculation, made by Trimo technical support"]
[null,null,"Limitations: 2 < number of fixing points < 6",null,null,null,"(only on one side of the element)"]
[]
[]
[]
[]
[]
[]
[]
[]
[]
[]
[]
[]
[]
[]
[]
[]
[null,null,"Printscreen from structural calculation in SandStat"]
[]
["16 Other notes"]
["17 Total",null,"Total amount of facade elements - automatically calculated"]
["STATUS",null,"OK","\"- element completely defined"]
[null,null,"Not OK","\"- Some characteristics of the element are missing, please fulfill all required cells."]

{"sheet":"Transversal corner elements","index":2,"n_rows":148,"n_cols":30,"rows_kept":148,"cut":false,"hidden":true,"merged":[[5,19,5,20],[5,21,5,22],[2,19,2,20],[5,11,5,13],[4,3,4,18],[3,3,3,18],[2,3,2,18],[2,21,2,22],[3,19,3,20],[3,21,3,22],[4,19,4,20],[4,21,4,22],[8,9,8,10],[21,18,22,18],[21,21,22,21],[21,22,22,22],[7,0,7,3],[9,4,18,5],[19,0,19,21],[20,4,20,9],[21,1,22,1],[21,23,22,23],[21,2,22,2],[21,4,21,9],[21,10,21,13],[21,14,21,17]]}
[null,null,null,null,null,null,null,null,null,null,"Qbiss One Cutting list for Transversal corner elements",null,null,null,null,null,null,null,null,null,null,null,{"$f":"\"version \"&LOOKUP(2,1/(UPDATES!A:A<>\"\"),UPDATES!A:A)","v":"version 2.6"}]
[]
[null,"Project name:",null,{"$f":"IF('CUTTING LIST'!C9=\"INSERT TEXT\",\"Insert text on first page\",'CUTTING LIST'!C9)","v":"Insert text on first page"},null,null,null,null,null,null,null,null,null,null,null,null,null,null,null,"Date last saved:",null,{"$f":"'CUTTING LIST'!N1","v":"2025-09-04T15:08:46"}]
[null,"Customer name:",null,{"$f":"IF('CUTTING LIST'!C10=\"INSERT TEXT\",\"Insert text on first page\",'CUTTING LIST'!C10)","v":"Insert text on first page"},null,null,null,null,null,null,null,null,null,null,null,null,null,null,null,"Last saved by:",null,{"$f":"'CUTTING LIST'!N2","v":"Matej Jereb"}]
[null,"Customer order no:",null,{"$f":"IF('CUTTING LIST'!C11=\"INSERT TEXT\",\"Insert text on first page\",'CUTTING LIST'!C11)","v":"Insert text on first page"},null,null,null,null,null,null,null,null,null,null,null,null,null,null,null,"Cutting list number:",null,{"$f":"IF('CUTTING LIST'!N3=\"Insert\",\"Insert text on first page\",'CUTTING LIST'!N3)","v":"Insert text on first page"}]
[null,null,null,null,null,null,null,null,null,null,null,null,null,null,null,null,null,null,null,"Revision:",null,{"$f":"IF('CUTTING LIST'!N4=\"Insert\",\"Insert text on first page\",'CUTTING LIST'!N4)","v":"Insert text on first page"}]
[]
["STEP 1:"]
["Type of installation:",null,null,null,null,null,null,null,null,"Marking corner's sides"]
["Transversal_corner"]
[]
[]
[]
[]
[]
[]
[]
[]
[null,null,null,null,null,null,null,null,null,null,null,null,null,null,null,null,null,null,null,null,null,null,"Note: Specification must be aligned with the commercial quotation. "]
["STEP 2:"]
[1,2,3,4,5,null,null,null,null,null,6,7,8,9,10,11,12,13,14,15,16,17,18]
["PHASE / FACADE /","ELEMENT REF:","QTY:","Core type","UNIT DIMENSIONS [mm]",null,null,null,null,null,"EXTERNAL STEEL SHEET",null,null,null,"INTERNAL STEEL SHEET",null,null,null,"ELEMENT Type","Installation","FIXING POINT","Other notes","TOTAL [m2]","STATUS"]
["BUILDING",null,null,"Mineral wool","T","M","R","A","B","Angle","Thickness [mm]","Colour","Profile","Coating","Thickness [mm]","Colour","Profile","Coating",null,"direction","QTY",null,null,null,null,null,null,null,"M*QTY","Total fixing point QTY"]
[null,null,null,null,null,null,{"$f":"H24+I24","v":0},null,null,null,{"$f":"Thickness_of_external_steel_sheet","v":0.7},null,"G",{"$f":"IF(L24=\"\",\"\",IFERROR(VLOOKUP(L24,'Data 2'!$A$1:$B$29,2,FALSE),\"add note\"))","v":""},null,null,null,null,null,{"$f":"IF(ISNUMBER(SEARCH(\"horizontal\",'Qbiss One elements'!$A$10)),\"horizontal\",\"vertical\")","v":"horizontal"},null,null,{"$f":"C24*F24/1000*G24/1000","v":0},{"$f":"IF(OR($A$10=\"\",C24=\"\",D24=\"\",E24=\"\",F24=\"\",H24=\"\",I24=\"\",J24=\"\",L24=\"\",O24=\"\",P24=\"\",Q24=\"\",R24=\"\",S24=\"\",U24=\"\"),\"Not OK\",\"OK\")","v":"Not OK"},null,null,null,null,{"$f":"C24*F24","v":0},{"$f":"U24*C24","v":0}]
[null,null,null,null,null,null,{"$f":"H25+I25","v":0},null,null,null,{"$f":"Thickness_of_external_steel_sheet","v":0.7},null,"G",{"$f":"IF(L25=\"\",\"\",IFERROR(VLOOKUP(L25,'Data 2'!$A$1:$B$29,2,FALSE),\"add note\"))","v":""},null,null,null,null,null,{"$f":"IF(ISNUMBER(SEARCH(\"horizontal\",'Qbiss One elements'!$A$10)),\"horizontal\",\"vertical\")","v":"horizontal"},null,null,{"$f":"C25*F25/1000*G25/1000","v":0},{"$f":"IF(OR($A$10=\"\",C25=\"\",D25=\"\",E25=\"\",F25=\"\",H25=\"\",I25=\"\",J25=\"\",L25=\"\",O25=\"\",P25=\"\",Q25=\"\",R25=\"\",S25=\"\",U25=\"\"),\"Not OK\",\"OK\")","v":"Not OK"},null,null,null,null,{"$f":"C25*F25","v":0},{"$f":"U25*C25","v":0}]
[]
[null,"TOTAL QTY",{"$f":"SUM(C24:C26)","v":0},null,null,null,null,null,null,null,null,null,null,null,null,null,null,null,null,null,null,"TOTAL m2 of facade elements",{"$f":"SUM(W24:W26)","v":0}]
[null,"Module x QTY [m]:",{"$f":"SUM(AC24:AC26)/1000","v":0},null,null,null,null,null,null,null,null,null,null,null,null,null,null,null,null,null,null,"TOTAL fixing points",{"$f":"SUM(AD24:AD26)","v":0}]
[]
[]
[]
[]
[]
[]
["INSTRUCTIONS"]
["Follow steps"]
["1 PHASE / FACADE / BUILDING",null,"Mark positioning of the element according to design shop drawings",null,null,null,null,null,null,null,null,null,null,null,null,"COLOUR LEGEND:"]
["2 ELEMENT REF",null,"Mark element according to design shop drawings",null,null,null,null,null,null,null,null,null,null,null,null,null,"Required fields"]
["3 QTY",null,"Number of elements",null,null,null,null,null,null,null,null,null,null,null,null,null,"Input data doesn't meet Qbiss One limitations - see INSTRUCTION"]
["4 Core type",null,"Power T","90 kg/m3",null,null,null,null,null,null,null,null,null,null,null,null,"Automatically filled"]
[null,null,"Power S","120 kg/m3"]
[null,null,"Perform C","120 kg/m3"]
["5 Unit dimensions"]
[null,null,"T-","element thickness [mm]: (80, 100, 120, 133, 150, 172, 200, 220, 240, 250)"]
[null,null,"M-","element module width [mm]: from 600 up to 1200"]
[null,null,"R-","element length [mm]:  from 500 up to 3100",null,null,null,null,"*except element type 5,6,7,8,9,10,11,12:  550mm < R < 3100mm"]
[null,null,null,"Element lenght is measured and scheduled between fixing (joint centres) - SEE PICTURES BELOW !!!"]
[null,null,"A-","one side of corner element"]
[null,null,"B-","other side of corner element"]
[null,null,"Angle [α]-","60 degrees to 175 degrees"]
[null,null,"Limitations:","Amin and Bmin > ( T + 150 mm)"]
[null,null,null,"(A + B)min > 500 mm"]
[null,null,null,"A or B > 600 mm; (A + B)max ≤ 2000 mm"]
[null,null,null,"A or B ≤ 600 mm; (A + B)max ≤ 3100 mm"]
[]
[]
[null,null,null,null,null,null,null,null,null,null,null,"Marking corner's sides"]
[]
[]
[]
[]
[]
[]
[]
[]
[]
[]
[]
[]
[]
[]
[]
[]
[]
["6 External steel sheet thickness",null,"In case of Qbiss elements, to achieve perfect flatness, we always use 0,7 mm thick steel sheet"]
["7 External steel sheet colour",null,"Select available standard colours. Find more about standard colours from following link",null,null,null,null,null,null,null,null,"Qbiss Colour Chart"]
["8 External steel sheet profile",null,"All Qbiss One elements have smooth external steel sheet profile"]
["9 External steel sheet coating",null,"Based on colour selection, steel sheet coating is selected automaticaly"]
["10 Internal steel sheet thickness",null,"Choose among 0,5mm; 0,55mm; 0,6mm; 0,7mm according to offer and structural calculation made by Trimo"]
["11 Internal steel sheet colour",null,"Select available standard colours. Find more about standard colours from following link",null,null,null,null,null,null,null,null,"Qbiss Colour Chart"]
["12 Internal steel sheet profile",null,"Choose among: g; s; v; v2; m2 profiles. Find out more about possibilities"]
["13 Internal steel sheet coating",null,"Considering project requirements, you can choose what type of coating is appropriate. ",null,null,null,null,null,null,null,null,"SP - Polyester"]
[null,null,null,null,null,null,null,null,null,null,null,"PVDF - Polyvinylidene fluoride"]
[null,null,null,null,null,null,null,null,null,null,null,"PUR - Polyurethane"]
[null,null,null,null,null,null,null,null,null,null,null,"PVC - Polyvinyl chlodide"]
["14 Element type",null,"Based on direction of assembly, choose appropriate type of element"]
[]
[]
[]
[]
[]
[]
[]
[]
[]
[]
[]
[]
[]
[]
[]
[]
[]
[]
[]
[]
[]
[]
[]
[]
[]
[]
[]
[]
[]
[]
[]
[]
[]
[]
[]
[]
["15 Installation direction: ",null,"The same as orientation of elements. Fulfilled automatically"]
[]
["16 Fixing point",null,"Select quantity of fixing points on Qbiss element according to structural calculation, made by Trimo technical support"]
[null,null,"Limitations: 2 < number of fixing points < 6",null,null,null,null,"(only on one side of the element)"]
[]
[]
[]
[]
[]
[]
[]
[]
[]
[]
[]
[]
[]
[]
[]
[]
[null,null,"Printscreen from structural calculation in SandStat"]
[]
["17  Other notes"]
["18 Total",null,"Total amount of facade elements - calculated automatically"]
["STATUS",null,"OK","\"- element completely defined"]
[null,null,"Not OK","\"- Some characteristics of the element are missing, please fulfill all required cells."]

{"sheet":"Transversal spliced corner el.","index":3,"n_rows":148,"n_cols":30,"rows_kept":148,"cut":false,"hidden":true,"merged":[[21,18,22,18],[21,21,22,21],[21,22,22,22],[21,23,22,23],[7,0,7,3],[8,9,8,10],[9,4,18,5],[19,0,19,21],[20,4,20,9],[21,1,22,1],[21,2,22,2],[21,4,21,9],[21,10,21,13],[21,14,21,17],[9,0,9,1],[4,3,4,18],[4,19,4,20],[4,21,4,22],[5,11,5,13],[5,19,5,20],[5,21,5,22],[2,3,2,18],[2,19,2,20],[2,21,2,22],[3,3,3,18],[3,19,3,20],[3,21,3,22]]}
[null,null,null,null,null,null,null,null,null,null,"Qbiss One Cutting list for Transversal spliced corner elements",null,null,null,null,null,null,null,null,null,null,null,{"$f":"\"version \"&LOOKUP(2,1/(UPDATES!A:A<>\"\"),UPDATES!A:A)","v":"version 2.6"}]
[]
[null,"Project name:",null,{"$f":"IF('CUTTING LIST'!C9=\"INSERT TEXT\",\"Insert text on first page\",'CUTTING LIST'!C9)","v":"Insert text on first page"},null,null,null,null,null,null,null,null,null,null,null,null,null,null,null,"Date last saved:",null,{"$f":"'CUTTING LIST'!N1","v":"2025-09-04T15:08:46"}]
[null,"Customer name:",null,{"$f":"IF('CUTTING LIST'!C10=\"INSERT TEXT\",\"Insert text on first page\",'CUTTING LIST'!C10)","v":"Insert text on first page"},null,null,null,null,null,null,null,null,null,null,null,null,null,null,null,"Last saved by:",null,{"$f":"'CUTTING LIST'!N2","v":"Matej Jereb"}]
[null,"Customer order no:",null,{"$f":"IF('CUTTING LIST'!C11=\"INSERT TEXT\",\"Insert text on first page\",'CUTTING LIST'!C11)","v":"Insert text on first page"},null,null,null,null,null,null,null,null,null,null,null,null,null,null,null,"Cutting list number:",null,{"$f":"IF('CUTTING LIST'!N3=\"Insert\",\"Insert text on first page\",'CUTTING LIST'!N3)","v":"Insert text on first page"}]
[null,null,null,null,null,null,null,null,null,null,null,null,null,null,null,null,null,null,null,"Revision:",null,{"$f":"IF('CUTTING LIST'!N4=\"Insert\",\"Insert text on first page\",'CUTTING LIST'!N4)","v":"Insert text on first page"}]
[]
["STEP 1:"]
["Type of installation:",null,null,null,null,null,null,null,null,"Marking corner's sides"]
["Transversal_spliced_corner"]
[]
[]
[]
[]
[]
[]
[]
[]
[null,null,null,null,null,null,null,null,null,null,null,null,null,null,null,null,null,null,null,null,null,null,"Note: Specification must be aligned with the commercial quotation. "]
["STEP 2:"]
[1,2,3,4,5,null,null,null,null,null,6,7,8,9,10,11,12,13,14,15,16,17,18]
["PHASE / FACADE /","ELEMENT REF:","QTY:","Core type","UNIT DIMENSIONS [mm]",null,null,null,null,null,"EXTERNAL STEEL SHEET",null,null,null,"INTERNAL STEEL SHEET",null,null,null,"ELEMENT Type","Glued edge","FIXING POINT","Other notes","TOTAL [m2]","STATUS"]
["BUILDING",null,null,"Mineral wool","T","M","R","A","B","Angle","Thickness [mm]","Colour","Profile","Coating","Thickness [mm]","Colour","Profile","Coating",null,"visible side","QTY",null,null,null,null,null,null,null,"M*QTY","Total fixing point QTY"]
[null,null,null,null,null,null,{"$f":"H24+I24","v":0},null,null,null,{"$f":"Thickness_of_external_steel_sheet","v":0.7},null,"G",{"$f":"IF(L24=\"\",\"\",IFERROR(VLOOKUP(L24,'Data 2'!$A$1:$B$29,2,FALSE),\"add note\"))","v":""},null,null,null,null,null,null,null,null,{"$f":"C24*F24/1000*G24/1000","v":0},{"$f":"IF(OR($A$10=\"\",C24=\"\",D24=\"\",E24=\"\",F24=\"\",H24=\"\",I24=\"\",J24=\"\",L24=\"\",O24=\"\",P24=\"\",Q24=\"\",R24=\"\",S24=\"\",T24=\"\",U24=\"\"),\"Not OK\",\"OK\")","v":"Not OK"},null,null,null,null,{"$f":"C24*F24","v":0},{"$f":"U24*C24","v":0}]
[null,null,null,null,null,null,{"$f":"H25+I25","v":0},null,null,null,{"$f":"Thickness_of_external_steel_sheet","v":0.7},null,"G",{"$f":"IF(L25=\"\",\"\",IFERROR(VLOOKUP(L25,'Data 2'!$A$1:$B$29,2,FALSE),\"add note\"))","v":""},null,null,null,null,null,null,null,null,{"$f":"C25*F25/1000*G25/1000","v":0},{"$f":"IF(OR($A$10=\"\",C25=\"\",D25=\"\",E25=\"\",F25=\"\",H25=\"\",I25=\"\",J25=\"\",L25=\"\",O25=\"\",P25=\"\",Q25=\"\",R25=\"\",S25=\"\",T25=\"\",U25=\"\"),\"Not OK\",\"OK\")","v":"Not OK"},null,null,null,null,{"$f":"C25*F25","v":0},{"$f":"U25*C25","v":0}]
[]
[null,"TOTAL QTY",{"$f":"SUM(C24:C26)","v":0},null,null,null,null,null,null,null,null,null,null,null,null,null,null,null,null,null,null,"TOTAL m2 of facade elements",{"$f":"SUM(W24:W26)","v":0}]
[null,"Module x QTY [m]:",{"$f":"SUM(AC24:AC26)/1000","v":0},null,null,null,null,null,null,null,null,null,null,null,null,null,null,null,null,null,null,"TOTAL fixing points",{"$f":"SUM(AD24:AD26)","v":0}]
[]
[]
[]
[]
[]
[]
["INSTRUCTIONS"]
["Follow steps"]
["1 PHASE / FACADE / BUILDING",null,"Mark positioning of the element according to design shop drawings",null,null,null,null,null,null,null,null,null,null,null,null,"COLOUR LEGEND:"]
["2 ELEMENT REF",null,"Mark element according to design shop drawings",null,null,null,null,null,null,null,null,null,null,null,null,null,"Required fields"]
["3 QTY",null,"Number of elements",null,null,null,null,null,null,null,null,null,null,null,null,null,"Input data doesn't meet Qbiss One limitations - see INSTRUCTIONS on the right"]
["4 Core type",null,"Power T","90 kg/m3",null,null,null,null,null,null,null,null,null,null,null,null,"Automatically filled"]
[null,null,"Power S","120 kg/m3"]
[null,null,"Perform C","120 kg/m3"]
["5 Unit dimensions"]
[null,null,"T-","element thickness [mm]: (80, 100, 120, 133, 150, 172, 200, 220, 240, 250)"]
[null,null,"M-","element module width [mm]: from 600 up to 1200"]
[null,null,"R-","element length [mm]:  from 500 up to 3100",null,null,null,null,"*except element type 5,6,7,8,9,10,11,12:  550mm < R < 3100mm"]
[null,null,null,"Element lenght is measured and scheduled between fixing (joint centres) - SEE PICTURES BELOW !!!"]
[null,null,"A-","one side of corner element"]
[null,null,"B-","other side of corner element"]
[null,null,"Angle [α]-","60 degrees to 175 degrees"]
[null,null,"Limitations:","Amin and Bmin > ( T + 150 mm)"]
[null,null,null,"(A + B)min > 500 mm"]
[null,null,null,"A or B > 600 mm; (A + B)max ≤ 2000 mm"]
[null,null,null,"A or B ≤ 600 mm; (A + B)max ≤ 3100 mm"]
[]
[]
[null,null,null,null,null,null,null,null,null,null,null,"Marking corner's sides"]
[]
[]
[]
[]
[]
[]
[]
[]
[]
[]
[]
[]
[]
[]
[]
[]
[]
["6 External steel sheet thickness",null,"In case of Qbiss elements, to achieve perfect flatness, we always use 0,7 mm thick steel sheet"]
["7 External steel sheet colour",null,"Select available standard colours. Find more about standard colours from following link",null,null,null,null,null,null,null,null,"Qbiss Colour Chart"]
["8 External steel sheet profile",null,"All Qbiss One elements have smooth external steel sheet profile"]
["9 External steel sheet coating",null,"Based on colour selection, steel sheet coating is selected automaticaly"]
["10 Internal steel sheet thickness",null,"Choose among 0,5mm; 0,55mm; 0,6mm; 0,7mm according to offer and structural calculation made by Trimo"]
["11 Internal steel sheet colour",null,"Select available standard colours. Find more about standard colours from following link",null,null,null,null,null,null,null,null,"Qbiss Colour Chart"]
["12 Internal steel sheet profile",null,"Choose among: g; s; v; v2; m2 profiles. Find out more about possibilities"]
["13 Internal steel sheet coating",null,"Considering project requirements, you can choose what type of coating is appropriate. ",null,null,null,null,null,null,null,null,"SP - Polyester"]
[null,null,null,null,null,null,null,null,null,null,null,"PVDF - Polyvinylidene fluoride"]
[null,null,null,null,null,null,null,null,null,null,null,"PUR - Polyurethane"]
[null,null,null,null,null,null,null,null,null,null,null,"PVC - Polyvinyl chlodide"]
["14 Element type",null,"Based on direction of assembly, choose appropriate type of element"]
[]
[]
[]
[]
[]
[]
[]
[]
[]
[]
[]
[]
[]
[]
[]
[]
[]
[]
[]
[]
[]
[]
[]
[]
[]
[]
[]
[]
[]
[]
[]
[]
[]
[]
[]
[]
["15 Installation direction: ",null,"The same as orientation of elements. Fulfilled automatically"]
[]
["16 Fixing point",null,"Select quantity of fixing points on Qbiss element according to structural calculation, made by Trimo technical support"]
[null,null,"Limitations: 2 < number of fixing points < 6",null,null,null,null,"(only on one side of the element)"]
[]
[]
[]
[]
[]
[]
[]
[]
[]
[]
[]
[]
[]
[]
[]
[]
[null,null,"Printscreen from structural calculation in SandStat"]
[]
["17  Other notes"]
["18 Total",null,"Total amount of facade elements - calculated automatically"]
["STATUS",null,"OK","\"- element completely defined"]
[null,null,"Not OK","\"- Some characteristics of the element are missing, please fulfill all required cells."]

{"sheet":"Longitudinal corner elements ","index":4,"n_rows":146,"n_cols":30,"rows_kept":146,"cut":false,"hidden":true,"merged":[[2,3,2,18],[3,3,3,18],[2,19,2,20],[2,21,2,22],[3,19,3,20],[3,21,3,22],[3,25,4,26],[21,10,21,13],[21,14,21,17],[21,22,22,22],[4,3,4,18],[4,19,4,20],[21,23,22,23],[4,21,4,22],[5,19,5,20],[5,21,5,22],[21,1,22,1],[20,4,20,9],[5,11,5,13],[7,0,7,3],[19,0,19,21],[21,18,22,18],[21,21,22,21],[8,9,8,10],[21,2,22,2],[21,4,21,9]]}
[null,null,null,null,null,null,null,null,null,null,"Qbiss One Cutting list for Longitudinal corner elements",null,null,null,null,null,null,null,null,null,null,null,{"$f":"\"version \"&LOOKUP(2,1/(UPDATES!A:A<>\"\"),UPDATES!A:A)","v":"version 2.6"}]
[]
[null,"Project name:",null,{"$f":"IF('CUTTING LIST'!C9=\"INSERT TEXT\",\"Insert text on first page\",'CUTTING LIST'!C9)","v":"Insert text on first page"},null,null,null,null,null,null,null,null,null,null,null,null,null,null,null,"Date last saved:",null,{"$f":"'CUTTING LIST'!N1","v":"2025-09-04T15:08:46"}]
[null,"Customer name:",null,{"$f":"IF('CUTTING LIST'!C10=\"INSERT TEXT\",\"Insert text on first page\",'CUTTING LIST'!C10)","v":"Insert text on first page"},null,null,null,null,null,null,null,null,null,null,null,null,null,null,null,"Last saved by:",null,{"$f":"'CUTTING LIST'!N2","v":"Matej Jereb"}]
[null,"Customer order no:",null,{"$f":"IF('CUTTING LIST'!C11=\"INSERT TEXT\",\"Insert text on first page\",'CUTTING LIST'!C11)","v":"Insert text on first page"},null,null,null,null,null,null,null,null,null,null,null,null,null,null,null,"Cutting list number:",null,{"$f":"IF('CUTTING LIST'!N3=\"Insert\",\"Insert text on first page\",'CUTTING LIST'!N3)","v":"Insert text on first page"}]
[null,null,null,null,null,null,null,null,null,null,null,null,null,null,null,null,null,null,null,"Revision:",null,{"$f":"IF('CUTTING LIST'!N4=\"Insert\",\"Insert text on first page\",'CUTTING LIST'!N4)","v":"Insert text on first page"}]
[]
["STEP 1:"]
["Type of installation:",null,null,null,null,null,null,null,null,"Marking corner's sides"]
["Longitudinal_corner"]
[]
[]
[]
[]
[]
[]
[]
[]
[null,null,null,null,null,null,null,null,null,null,null,null,null,null,null,null,null,null,null,null,null,null,"Note: Specification must be aligned with the commercial quotation. "]
["STEP 2:"]
[1,2,3,4,5,null,null,null,null,null,6,7,8,9,10,11,12,13,14,15,16,17,18]
["PHASE / FACADE /","ELEMENT REF:","QTY:","Core type","UNIT DIMENSIONS [mm]",null,null,null,null,null,"EXTERNAL STEEL SHEET",null,null,null,"INTERNAL STEEL SHEET",null,null,null,"ELEMENT Type","Installation","FIXING POINT","Other notes","TOTAL [m2]","STATUS"]
["BUILDING",null,null,"Mineral wool","T","M","R","A","B","Angle","Thickness [mm]","Colour","Profile","Coating","Thickness [mm]","Colour","Profile","Coating",null,"direction","QTY",null,null,null,null,null,null,null,"M*QTY","Total fixing points"]
[null,null,null,null,null,{"$f":"H24+I24","v":0},null,null,null,null,{"$f":"Thickness_of_external_steel_sheet","v":0.7},null,{"$f":"External_steel_sheet_profilation","v":"G"},{"$f":"IF(L24=\"\",\"\",IFERROR(VLOOKUP(L24,'Data 2'!$A$1:$B$29,2,FALSE),\"add note\"))","v":""},null,null,null,null,null,{"$f":"IF(ISNUMBER(SEARCH(\"horizontal\",'Qbiss One elements'!$A$10)),\"horizontal\",\"vertical\")","v":"horizontal"},null,null,{"$f":"C24*F24/1000*G24/1000","v":0},{"$f":"IF(OR($A$10=\"\",C24=\"\",D24=\"\",E24=\"\",G24=\"\",H24=\"\",I24=\"\",J24=\"\",L24=\"\",O24=\"\",P24=\"\",Q24=\"\",R24=\"\",S24=\"\",U24=\"\"),\"Not OK\",\"OK\")","v":"Not OK"},null,null,null,null,{"$f":"C24*F24","v":0},{"$f":"U24*C24","v":0}]
[null,null,null,null,null,{"$f":"H25+I25","v":0},null,null,null,null,{"$f":"Thickness_of_external_steel_sheet","v":0.7},null,{"$f":"External_steel_sheet_profilation","v":"G"},{"$f":"IF(L25=\"\",\"\",IFERROR(VLOOKUP(L25,'Data 2'!$A$1:$B$29,2,FALSE),\"add note\"))","v":""},null,null,null,null,null,{"$f":"IF(ISNUMBER(SEARCH(\"horizontal\",'Qbiss One elements'!$A$10)),\"horizontal\",\"vertical\")","v":"horizontal"},null,null,{"$f":"C25*F25/1000*G25/1000","v":0},{"$f":"IF(OR($A$10=\"\",C25=\"\",D25=\"\",E25=\"\",G25=\"\",H25=\"\",I25=\"\",J25=\"\",L25=\"\",O25=\"\",P25=\"\",Q25=\"\",R25=\"\",S25=\"\",U25=\"\"),\"Not OK\",\"OK\")","v":"Not OK"},null,null,null,null,{"$f":"C25*F25","v":0},{"$f":"U25*C25","v":0}]
[]
[null,"TOTAL QTY",{"$f":"SUM(C24:C26)","v":0},null,null,null,null,null,null,null,null,null,null,null,null,null,null,null,null,null,null,"TOTAL m2 of facade elements",{"$f":"SUM(W24:W26)","v":0}]
[null,"Module x QTY [m]:",{"$f":"SUM(AC24:AC26)/1000","v":0},null,null,null,null,null,null,null,null,null,null,null,null,null,null,null,null,null,null,"TOTAL fixing points",{"$f":"SUM(AD24:AD26)","v":0}]
[]
[]
[]
[]
[]
[]
["INSTRUCTIONS"]
["Follow steps"]
["1 PHASE / FACADE / BUILDING",null,"Mark positioning of the element according to design shop drawings",null,null,null,null,null,null,null,null,null,null,null,null,"COLOUR LEGEND:"]
["2 ELEMENT REF",null,"Mark element according to design shop drawings",null,null,null,null,null,null,null,null,null,null,null,null,null,"Required fields"]
["3 QTY",null,"Number of elements",null,null,null,null,null,null,null,null,null,null,null,null,null,"Input data doesn't meet Qbiss One limitations - see INSTRUCTIONS on the right"]
["4 Core type",null,"Power T","90 kg/m3",null,null,null,null,null,null,null,null,null,null,null,null,"Automatically filled"]
[null,null,"Power S","120 kg/m3"]
[null,null,"Perform C","120 kg/m3"]
["5 Unit dimensions"]
[null,null,"T-","element thickness [mm]: (80, 100, 120, 133, 150, 172, 200, 220, 240, 250)"]
[null,null,"M-","element module width [mm]: from 600 up to 1200"]
[null,null,"R-","element length [mm]:  from 500 up to 6500",null,null,null,null,"*except element type 5,6,7,8,9,10,11,12:  550mm < R < 6475mm"]
[null,null,null,"Element lenght is measured and scheduled between fixing (joint centres) - SEE PICTURES BELOW !!!"]
[null,null,"A-","one side of corner element"]
[null,null,"B-","other side of corner element"]
[null,null,"Angle [α]-","80 degrees to 175 degrees"]
[null,null,"Limitations:","Amin ≥ 200 mm + T"]
[null,null,null,"Bmin ≥ 200 mm + T"]
[null,null,null,"(A + B) ≥ 600 mm"]
[null,null,null,"(A + B) ≤ 1200 mm"]
[]
[]
[]
[]
[]
[]
[]
[]
[]
[]
[]
[]
[]
[]
[]
[]
[]
[]
["6 External steel sheet thickness",null,"In case of Qbiss elements, to achieve perfect flatness, we always use 0,7 mm thick steel sheet"]
["7 External steel sheet colour",null,"Select available standard colours. Find more about standard colours from following link",null,null,null,null,null,null,null,null,"Qbiss Colour Chart"]
["8 External steel sheet profile",null,"All Qbiss One elements have smooth external steel sheet profile"]
["9 External steel sheet coating",null,"Based on colour selection, steel sheet coating is selected automaticaly"]
["10 Internal steel sheet thickness",null,"Choose among 0,5mm; 0,55mm; 0,6mm; 0,7mm according to offer and structural calculation made by Trimo"]
["11 Internal steel sheet colour",null,"Select available standard colours. Find more about standard colours from following link",null,null,null,null,null,null,null,null,"Qbiss Colour Chart"]
["12 Internal steel sheet profile",null,"Choose among: g; s; v; v2; m2 profiles. Find out more about possibilities"]
["13 Internal steel sheet coating",null,"Considering project requirements, you can choose what type of coating is appropriate. ",null,null,null,null,null,null,null,null,"SP - Polyester"]
[null,null,null,null,null,null,null,null,null,null,null,"PVDF - Polyvinylidene fluoride"]
[null,null,null,null,null,null,null,null,null,null,null,"PUR - Polyurethane"]
[null,null,null,null,null,null,null,null,null,null,null,"PVC - Polyvinyl chlodide"]
["14 Element type",null,"Based on direction of assembly, choose appropriate type of element"]
[]
[]
[]
[]
[]
[]
[]
[]
[]
[]
[]
[]
[]
[]
[]
[]
[]
[]
[]
[]
[]
[]
[]
[]
[]
[]
[]
[]
[]
[]
[]
[]
[]
[]
[]
[]
["15 Installation direction: ",null,"The same as orientation of elements. Fulfilled automatically"]
[]
["16 Fixing point",null,"Select quantity of fixing points on Qbiss element according to structural calculation, made by Trimo technical support"]
[null,null,"Limitations: 2 < number of fixing points < 6",null,null,null,null,"(only on one side of the element)"]
[]
[]
[]
[]
[]
[]
[]
[]
[]
[]
[]
[]
[]
[]
[]
[]
[null,null,"Printscreen from structural calculation in SandStat"]
[]
["17  Other notes"]
["18 Total",null,"Total amount of facade elements - calculated automatically"]
["STATUS",null,"OK","\"- element completely defined"]
[null,null,"Not OK","\"- Some characteristics of the element are missing, please fulfill all required cells."]

{"sheet":"Longitudinal spliced corner el.","index":5,"n_rows":147,"n_cols":30,"rows_kept":147,"cut":false,"hidden":true,"merged":[[2,3,2,18],[2,19,2,20],[2,21,2,22],[3,3,3,18],[3,19,3,20],[3,21,3,22],[3,25,4,26],[4,3,4,18],[4,19,4,20],[4,21,4,22],[5,11,5,13],[5,19,5,20],[5,21,5,22],[21,22,22,22],[21,23,22,23],[9,0,9,1],[7,0,7,3],[8,9,8,10],[19,0,19,21],[20,4,20,9],[21,1,22,1],[21,2,22,2],[21,4,21,9],[21,10,21,13],[21,14,21,17],[21,18,22,18],[21,21,22,21]]}
[null,null,null,null,null,null,null,null,null,null,"Qbiss One Cutting list for Longitudinal spliced corner elements",null,null,null,null,null,null,null,null,null,null,null,{"$f":"\"version \"&LOOKUP(2,1/(UPDATES!A:A<>\"\"),UPDATES!A:A)","v":"version 2.6"}]
[]
[null,"Project name:",null,{"$f":"IF('CUTTING LIST'!C9=\"INSERT TEXT\",\"Insert text on first page\",'CUTTING LIST'!C9)","v":"Insert text on first page"},null,null,null,null,null,null,null,null,null,null,null,null,null,null,null,"Date last saved:",null,{"$f":"'CUTTING LIST'!N1","v":"2025-09-04T15:08:46"}]
[null,"Customer name:",null,{"$f":"IF('CUTTING LIST'!C10=\"INSERT TEXT\",\"Insert text on first page\",'CUTTING LIST'!C10)","v":"Insert text on first page"},null,null,null,null,null,null,null,null,null,null,null,null,null,null,null,"Last saved by:",null,{"$f":"'CUTTING LIST'!N2","v":"Matej Jereb"}]
[null,"Customer order no:",null,{"$f":"IF('CUTTING LIST'!C11=\"INSERT TEXT\",\"Insert text on first page\",'CUTTING LIST'!C11)","v":"Insert text on first page"},null,null,null,null,null,null,null,null,null,null,null,null,null,null,null,"Cutting list number:",null,{"$f":"IF('CUTTING LIST'!N3=\"Insert\",\"Insert text on first page\",'CUTTING LIST'!N3)","v":"Insert text on first page"}]
[null,null,null,null,null,null,null,null,null,null,null,null,null,null,null,null,null,null,null,"Revision:",null,{"$f":"IF('CUTTING LIST'!N4=\"Insert\",\"Insert text on first page\",'CUTTING LIST'!N4)","v":"Insert text on first page"}]
[]
["STEP 1:"]
["Type of installation:",null,null,null,null,null,null,null,null,"Marking corner's sides"]
["Longitudinal_spliced_corner"]
[]
[]
[]
[]
[]
[]
[]
[]
[null,null,null,null,null,null,null,null,null,null,null,null,null,null,null,null,null,null,null,null,null,null,"Note: Specification must be aligned with the commercial quotation. "]
["STEP 2:"]
[1,2,3,4,5,null,null,null,null,null,6,7,8,9,10,11,12,13,14,15,16,17,18]
["PHASE / FACADE /","ELEMENT REF:","QTY:","Core type","UNIT DIMENSIONS [mm]",null,null,null,null,null,"EXTERNAL STEEL SHEET",null,null,null,"INTERNAL STEEL SHEET",null,null,null,"ELEMENT Type","Glued edge","FIXING POINT","Other notes","TOTAL [m2]","STATUS"]
["BUILDING",null,null,"Mineral wool","T","M","R","A","B","Angle","Thickness [mm]","Colour","Profile","Coating","Thickness [mm]","Colour","Profile","Coating",null,"visible side","QTY",null,null,null,null,null,null,null,"M*QTY","Total fixing points"]
[null,null,3,"Power S",150,{"$f":"H24+I24","v":1600},2500,800,800,90,{"$f":"Thickness_of_external_steel_sheet","v":0.7},"White",{"$f":"External_steel_sheet_profilation","v":"G"},{"$f":"IF(L24=\"\",\"\",IFERROR(VLOOKUP(L24,'Data 2'!$A$1:$B$29,2,FALSE),\"add note\"))","v":"PUR-PA 50"},0.5,"R9002","\"V\" (standard)","SP 25",null,null,6,{"$f":"IF(AND(OR(AND(G24>1,536>G24),G24>6488),OR(S24=5,S24=6,S24=7,S24=8,S24=9,S24=10,S24=11,S24=12)),\"El.Length 550mm<R<6475mm!!!\",IF(ISBLANK(G24),\"\",\"\"))","v":""},{"$f":"C24*F24/1000*G24/1000","v":12},{"$f":"IF(OR($A$10=\"\",C24=\"\",D24=\"\",E24=\"\",G24=\"\",H24=\"\",I24=\"\",J24=\"\",L24=\"\",O24=\"\",P24=\"\",Q24=\"\",R24=\"\",S24=\"\",T24=\"\",U24=\"\"),\"Not OK\",\"OK\")","v":"Not OK"},null,null,null,null,{"$f":"C24*F24","v":4800},{"$f":"U24*C24","v":18}]
[null,null,null,null,null,{"$f":"H25+I25","v":0},null,null,null,null,{"$f":"Thickness_of_external_steel_sheet","v":0.7},null,{"$f":"External_steel_sheet_profilation","v":"G"},{"$f":"IF(L25=\"\",\"\",IFERROR(VLOOKUP(L25,'Data 2'!$A$1:$B$29,2,FALSE),\"add note\"))","v":""},null,null,null,null,null,null,null,null,{"$f":"C25*F25/1000*G25/1000","v":0},{"$f":"IF(OR($A$10=\"\",C25=\"\",D25=\"\",E25=\"\",G25=\"\",H25=\"\",I25=\"\",J25=\"\",L25=\"\",O25=\"\",P25=\"\",Q25=\"\",R25=\"\",S25=\"\",T25=\"\",U25=\"\"),\"Not OK\",\"OK\")","v":"Not OK"},null,null,null,null,{"$f":"C25*F25","v":0},{"$f":"U25*C25","v":0}]
[]
[null,"TOTAL QTY",{"$f":"SUM(C24:C26)","v":3},null,null,null,null,null,null,null,null,null,null,null,null,null,null,null,null,null,null,"TOTAL m2 of facade elements",{"$f":"SUM(W24:W26)","v":12}]
[null,"Module x QTY [m]:",{"$f":"SUM(AC24:AC26)/1000","v":4.8},null,null,null,null,null,null,null,null,null,null,null,null,null,null,null,null,null,null,"TOTAL fixing points",{"$f":"SUM(AD24:AD26)","v":18}]
[]
[]
[]
[]
[]
[]
["INSTRUCTIONS"]
["Follow steps"]
["1 PHASE / FACADE / BUILDING",null,"Mark positioning of the element according to design shop drawings",null,null,null,null,null,null,null,null,null,null,null,null,"COLOUR LEGEND:"]
["2 ELEMENT REF",null,"Mark element according to design shop drawings",null,null,null,null,null,null,null,null,null,null,null,null,null,"Required fields"]
["3 QTY",null,"Number of elements",null,null,null,null,null,null,null,null,null,null,null,null,null,"Input data doesn't meet Qbiss One limitations - see INSTRUCTIONS on the right"]
["4 Core type",null,"Power T","90 kg/m3",null,null,null,null,null,null,null,null,null,null,null,null,"Automatically filled"]
[null,null,"Power S","120 kg/m3"]
[null,null,"Perform C","120 kg/m3"]
["5 Unit dimensions"]
[null,null,"T-","element thickness [mm]: (80, 100, 120, 133, 150, 172, 200, 220, 240, 250)"]
[null,null,"M-","element module width [mm]: from 600 up to 1200"]
[null,null,"R-","element length [mm]:  from 500 up to 6500",null,null,null,null,"*except element type 5,6,7,8,9,10,11,12:  550mm < R < 6475mm"]
[null,null,null,"Element lenght is measured and scheduled between fixing (joint centres) - SEE PICTURES BELOW !!!"]
[null,null,"A-","one side of corner element"]
[null,null,"B-","other side of corner element"]
[null,null,"Angle [α]-","70 degrees to 175 degrees"]
[null,null,"Limitations:","Amin (Bmin) ≥ 200 mm + T"]
[null,null,null,"Amax (Bmax) ≤ 800 mm"]
[]
[]
[]
[]
[]
[]
[]
[]
[]
[]
[]
[]
[]
[]
[]
[]
[]
[]
[]
[]
[]
["6 External steel sheet thickness",null,"In case of Qbiss elements, to achieve perfect flatness, we always use 0,7 mm thick steel sheet"]
["7 External steel sheet colour",null,"Select available standard colours. Find more about standard colours from following link",null,null,null,null,null,null,null,null,"Qbiss Colour Chart"]
["8 External steel sheet profile",null,"All Qbiss One elements have smooth external steel sheet profile"]
["9 External steel sheet coating",null,"Based on colour selection, steel sheet coating is selected automaticaly"]
["10 Internal steel sheet thickness",null,"Choose among 0,5mm; 0,55mm; 0,6mm; 0,7mm according to offer and structural calculation made by Trimo"]
["11 Internal steel sheet colour",null,"Select available standard colours. Find more about standard colours from following link",null,null,null,null,null,null,null,null,"Qbiss Colour Chart"]
["12 Internal steel sheet profile",null,"Choose among: g; s; v; v2; m2 profiles. Find out more about possibilities"]
["13 Internal steel sheet coating",null,"Considering project requirements, you can choose what type of coating is appropriate. ",null,null,null,null,null,null,null,null,"SP - Polyester"]
[null,null,null,null,null,null,null,null,null,null,null,"PVDF - Polyvinylidene fluoride"]
[null,null,null,null,null,null,null,null,null,null,null,"PUR - Polyurethane"]
[null,null,null,null,null,null,null,null,null,null,null,"PVC - Polyvinyl chlodide"]
["14 Element type",null,"Based on direction of assembly, choose appropriate type of element"]
[]
[]
[]
[]
[]
[]
[]
[]
[]
[]
[]
[]
[]
[]
[]
[]
[]
[]
[]
[]
[]
[]
[]
[]
[]
[]
[]
[]
[]
[]
[]
[]
[]
[]
[]
[]
["15 Installation direction: ",null,"The same as orientation of elements. Fulfilled automatically"]
[]
["16 Fixing point",null,"Select quantity of fixing points on Qbiss element according to structural calculation, made by Trimo technical support"]
[null,null,"Limitations: 2 < number of fixing points < 6",null,null,null,null,"(only on one side of the element)"]
[]
[]
[]
[]
[]
[]
[]
[]
[]
[]
[]
[]
[]
[]
[]
[]
[null,null,"Printscreen from structural calculation in SandStat"]
[]
["17  Other notes"]
["18 Total",null,"Total amount of facade elements - calculated automatically"]
["STATUS",null,"OK","\"- element completely defined"]
[null,null,"Not OK","\"- Some characteristics of the element are missing, please fulfill all required cells."]

{"sheet":"U-corner elements","index":6,"n_rows":147,"n_cols":31,"rows_kept":147,"cut":false,"hidden":true,"merged":[[19,0,19,22],[2,3,2,19],[2,20,2,21],[4,3,4,19],[3,3,3,19],[4,20,4,21],[4,22,4,23],[9,0,9,1],[5,13,5,15],[7,0,7,3],[2,22,2,23],[3,20,3,21],[3,22,3,23],[5,20,5,21],[5,22,5,23],[21,24,22,24],[21,16,21,19],[21,20,22,20],[21,1,22,1],[20,4,20,11],[21,22,22,22],[21,4,21,11],[21,2,22,2],[21,23,22,23],[21,12,21,15]]}
[null,null,null,null,null,null,null,null,null,null,null,"Qbiss One Cutting list for U-corner elements",null,null,null,null,null,null,null,null,null,null,null,{"$f":"\"version \"&LOOKUP(2,1/(UPDATES!A:A<>\"\"),UPDATES!A:A)","v":"version 2.6"}]
[]
[null,"Project name:",null,{"$f":"IF('CUTTING LIST'!C9=\"INSERT TEXT\",\"Insert text on first page\",'CUTTING LIST'!C9)","v":"Insert text on first page"},null,null,null,null,null,null,null,null,null,null,null,null,null,null,null,null,"Date last saved:",null,{"$f":"'CUTTING LIST'!N1","v":"2025-09-04T15:08:46"}]
[null,"Customer name:",null,{"$f":"IF('CUTTING LIST'!C10=\"INSERT TEXT\",\"Insert text on first page\",'CUTTING LIST'!C10)","v":"Insert text on first page"},null,null,null,null,null,null,null,null,null,null,null,null,null,null,null,null,"Last saved by:",null,{"$f":"'CUTTING LIST'!N2","v":"Matej Jereb"}]
[null,"Customer order no:",null,{"$f":"IF('CUTTING LIST'!C11=\"INSERT TEXT\",\"Insert text on first page\",'CUTTING LIST'!C11)","v":"Insert text on first page"},null,null,null,null,null,null,null,null,null,null,null,null,null,null,null,null,"Cutting list number:",null,{"$f":"IF('CUTTING LIST'!N3=\"Insert\",\"Insert text on first page\",'CUTTING LIST'!N3)","v":"Insert text on first page"}]
[null,null,null,null,null,null,null,null,null,null,null,null,null,null,null,null,null,null,null,null,"Revision:",null,{"$f":"IF('CUTTING LIST'!N4=\"Insert\",\"Insert text on first page\",'CUTTING LIST'!N4)","v":"Insert text on first page"}]
[]
["STEP 1:"]
["Type of corner element:"]
["U_corner_element"]
[]
[]
[]
[]
[]
[]
[]
[]
[null,null,null,null,null,null,null,null,null,null,null,null,null,null,null,null,null,null,null,null,null,null,null,"Note: Specification must be aligned with the commercial quotation. "]
["STEP 2:"]
[1,2,3,4,5,null,null,null,null,null,null,null,6,7,8,9,10,11,12,13,14,15,16,17]
["PHASE / FACADE /","ELEMENT REF:","QTY:","Core type","UNIT DIMENSIONS [mm]",null,null,null,null,null,null,null,"EXTERNAL STEEL SHEET",null,null,null,"INTERNAL STEEL SHEET",null,null,null,"ELEMENT Type","FIXING POINT","Other notes","TOTAL [m2]","STATUS"]
["BUILDING",null,null,"Mineral wool","T","M","R","A","B","C","αAB","αBC","Thickness [mm]","Colour","Profile","Coating","Thickness [mm]","Colour","Profile","Coating",null,"QTY",null,null,null,null,null,null,null,"M*QTY","Total fixing points"]
[null,null,null,null,null,null,{"$f":"H24+I24+J24","v":0},null,null,null,null,null,{"$f":"Thickness_of_external_steel_sheet","v":0.7},null,"G",{"$f":"IF(N24=\"\",\"\",IFERROR(VLOOKUP(N24,'Data 2'!$A$1:$B$29,2,FALSE),\"add note\"))","v":""},null,null,null,null,null,null,null,{"$f":"C24*F24/1000*G24/1000","v":0},{"$f":"IF(OR($A$10=\"\",C24=\"\",D24=\"\",E24=\"\",F24=\"\",H24=\"\",I24=\"\",J24=\"\",K24=\"\",L24=\"\",N24=\"\",Q24=\"\",R24=\"\",S24=\"\",T24=\"\",U24=\"\",V24=\"\"),\"Not OK\",\"OK\")","v":"Not OK"},null,null,null,null,{"$f":"F24*C24","v":0},{"$f":"V24*C24","v":0}]
[null,null,null,null,null,null,{"$f":"H25+I25+J25","v":0},null,null,null,null,null,{"$f":"Thickness_of_external_steel_sheet","v":0.7},null,"G",{"$f":"IF(N25=\"\",\"\",IFERROR(VLOOKUP(N25,'Data 2'!$A$1:$B$29,2,FALSE),\"add note\"))","v":""},null,null,null,null,null,null,null,{"$f":"C25*F25/1000*G25/1000","v":0},{"$f":"IF(OR($A$10=\"\",C25=\"\",D25=\"\",E25=\"\",F25=\"\",H25=\"\",I25=\"\",J25=\"\",K25=\"\",L25=\"\",N25=\"\",Q25=\"\",R25=\"\",S25=\"\",T25=\"\",U25=\"\",V25=\"\"),\"Not OK\",\"OK\")","v":"Not OK"},null,null,null,null,{"$f":"F25*C25","v":0},{"$f":"V25*C25","v":0}]
[]
[null,"TOTAL QTY",{"$f":"SUM(C24:C26)","v":0},null,null,null,null,null,null,null,null,null,null,null,null,null,null,null,null,null,null,null,"TOTAL m2 of facade elements",{"$f":"SUM(X24:X26)","v":0}]
[null,"Module x QTY [m]:",{"$f":"SUM(AD24:AD26)/1000","v":0},null,null,null,null,null,null,null,null,null,null,null,null,null,null,null,null,null,null,null,"TOTAL fixing points",{"$f":"SUM(AE24:AE26)","v":0}]
[]
[]
[]
[]
[]
[]
["INSTRUCTIONS"]
["Follow steps"]
["1 PHASE / FACADE / BUILDING",null,"Mark positioning of the element according to design shop drawings",null,null,null,null,null,null,null,null,null,null,null,null,"COLOUR LEGEND:"]
["2 ELEMENT REF",null,"Mark element according to design shop drawings",null,null,null,null,null,null,null,null,null,null,null,null,null,"Required fields"]
["3 QTY",null,"Number of elements",null,null,null,null,null,null,null,null,null,null,null,null,null,"Input data doesn't meet Qbiss One limitations - see INSTRUCTIONS"]
["4 Core type",null,"Power T","90 kg/m3",null,null,null,null,null,null,null,null,null,null,null,null,"Automatically filled"]
[null,null,"Power S","120 kg/m3"]
[null,null,"Perform C","120 kg/m3"]
["5 Unit dimensions"]
[null,null,"T-","element thickness [mm]: (80, 100, 120, 133, 150, 172, 200, 220, 240, 250)"]
[null,null,"M-","element module width [mm]: from 600 up to 1200"]
[null,null,"R-","element length [mm]:  from 500 up to 3500",null,null,null,"*except element type 5,6,7,8,9,10,11,12:  550mm < R < 3500mm"]
[]
[]
[null,null,null,"Element lenght is measured and scheduled between fixing (joint centres) - SEE PICTURES BELOW !!!"]
[null,null,"A, B, C-","side of corner element"]
[null,null,"αAB and αBC-","angle: from 90 degrees to 175 degrees"]
[null,null,"Limitations:","Amin and Cmin ≥ ( T + 150 mm)"]
[null,null,null,"Amax and Cmax ≤ 1000 mm"]
[null,null,null,"Bmin ≥ 300 mm + 2xS"]
[null,null,null,"Bmax ≤ 1500 mm"]
[]
[]
[]
[]
[]
[]
[]
[]
[]
[]
[]
[]
[]
[]
[]
[]
[]
[]
[]
[]
["6 External steel sheet thickness",null,"In case of Qbiss elements, to achieve perfect flatness, we always use 0,7 mm thick steel sheet"]
["7 External steel sheet colour",null,"Select available standard colours. Find more about standard colours from following link",null,null,null,null,null,null,null,null,"Qbiss Colour Chart"]
["8 External steel sheet profile",null,"All Qbiss One elements have smooth external steel sheet profile"]
["9 External steel sheet coating",null,"Based on colour selection, steel sheet coating is selected automaticaly"]
["10 Internal steel sheet thickness",null,"Choose among 0,5mm; 0,55mm; 0,6mm; 0,7mm according to offer and structural calculation made by Trimo"]
["11 Internal steel sheet colour",null,"Select available standard colours. Find more about standard colours from following link",null,null,null,null,null,null,null,null,"Qbiss Colour Chart"]
["12 Internal steel sheet profile",null,"Choose among: g; s; v; v2; m2 profiles. Find out more about possibilities"]
["13 Internal steel sheet coating",null,"Considering project requirements, you can choose what type of coating is appropriate. ",null,null,null,null,null,null,null,null,"SP - Polyester"]
[null,null,null,null,null,null,null,null,null,null,null,"PVDF - Polyvinylidene fluoride"]
[null,null,null,null,null,null,null,null,null,null,null,"PUR - Polyurethane"]
[null,null,null,null,null,null,null,null,null,null,null,"PVC - Polyvinyl chlodide"]
["14 Element type",null,"Based on direction of assembly, choose appropriate type of element"]
[]
[]
[]
[]
[]
[]
[]
[]
[]
[]
[]
[]
[]
[]
[]
[]
[]
[]
[]
[]
[]
[]
[]
[]
[]
[]
[]
[]
[]
[]
[]
[]
[]
[]
[]
[]
["15 Fixing point",null,"Select quantity of fixing points on Qbiss element according to structural calculation, made by Trimo technical support"]
[null,null,"Limitations: 2 < number of fixing points < 6",null,null,null,null,"(only on one side of the element)"]
[]
[]
[]
[]
[]
[]
[]
[]
[]
[]
[]
[]
[]
[]
[]
[]
[null,null,"Printscreen from structural calculation in SandStat"]
[]
["16  Other notes"]
["17 Total",null,"Total amount of facade elements - calculated automatically"]
["STATUS",null,"OK","\"- element completely defined"]
[null,null,"Not OK","\"- Some characteristics of the element are missing, please fulfill all required cells."]

{"sheet":"Curved elements","index":7,"n_rows":148,"n_cols":27,"rows_kept":148,"cut":false,"hidden":true,"merged":[[21,20,22,20],[2,3,2,15],[2,16,2,17],[2,18,2,19],[3,16,3,17],[3,18,3,19],[4,16,4,17],[4,18,4,19],[5,16,5,17],[5,18,5,19],[4,3,4,15],[3,3,3,15],[21,16,22,16],[21,18,22,18],[21,19,22,19],[5,8,5,10],[7,0,7,3],[19,0,19,18],[20,4,20,6],[21,2,22,2],[21,4,21,6],[21,7,21,10],[21,11,21,14],[21,1,22,1]]}
[null,null,null,null,null,null,null,null,null,"Qbiss One Cutting list for curved elements",null,null,null,null,null,null,null,null,null,{"$f":"\"version \"&LOOKUP(2,1/(UPDATES!A:A<>\"\"),UPDATES!A:A)","v":"version 2.6"}]
[]
[null,"Project name:",null,{"$f":"IF('CUTTING LIST'!C9=\"INSERT TEXT\",\"Insert text on first page\",'CUTTING LIST'!C9)","v":"Insert text on first page"},null,null,null,null,null,null,null,null,null,null,null,null,"Date last saved:",null,{"$f":"'CUTTING LIST'!N1","v":"2025-09-04T15:08:46"}]
[null,"Customer name:",null,{"$f":"IF('CUTTING LIST'!C10=\"INSERT TEXT\",\"Insert text on first page\",'CUTTING LIST'!C10)","v":"Insert text on first page"},null,null,null,null,null,null,null,null,null,null,null,null,"Last saved by:",null,{"$f":"'CUTTING LIST'!N2","v":"Matej Jereb"}]
[null,"Customer order no:",null,{"$f":"IF('CUTTING LIST'!C11=\"INSERT TEXT\",\"Insert text on first page\",'CUTTING LIST'!C11)","v":"Insert text on first page"},null,null,null,null,null,null,null,null,null,null,null,null,"Cutting list number:",null,{"$f":"IF('CUTTING LIST'!N3=\"Insert\",\"Insert text on first page\",'CUTTING LIST'!N3)","v":"Insert text on first page"}]
[null,null,null,null,null,null,null,null,null,null,null,null,null,null,null,null,"Revision:",null,{"$f":"IF('CUTTING LIST'!N4=\"Insert\",\"Insert text on first page\",'CUTTING LIST'!N4)","v":"Insert text on first page"}]
[]
["STEP 1:"]
["Select type of curved element:"]
["Transversal"]
[null,null,null,null,null,null,null,null,null,null,null,null,null,{"$f":"A10&\"\"&1","v":"Transversal1"}]
[null,null,null,null,null,null,null,{"$f":"CONCATENATE(A10,\"_\")","v":"Transversal_"}]
[]
[]
[]
[]
[]
[]
[null,null,null,null,null,null,null,null,null,null,null,null,null,null,null,null,null,null,null,"Note: Specification must be aligned with the commercial quotation. "]
["STEP 2:"]
[1,2,3,4,5,null,null,6,7,8,9,10,11,12,13,14,15,16,17,18]
["PHASE / FACADE / ","ELEMENT REF:","QTY:","Core type","UNIT DIMENSIONS [mm]",null,null,"EXTERNAL STEEL SHEET",null,null,null,"INTERNAL STEEL SHEET",null,null,null,"RADIUS","ELEMENT Type","FIXING POINT","Other notes","TOTAL [m2]","STATUS"]
["BIULDING",null,null,"Mineral wool","T","M","R","Thickness [mm]","Colour","Profile","Coating","Thickness [mm]","Colour","Profile","Coating","[mm]",null,"QTY",null,null,null,null,null,null,null,"M*QTY","Total fixing points"]
[null,null,null,null,null,null,null,{"$f":"Thickness_of_external_steel_sheet","v":0.7},null,"G",{"$f":"IF(I24=\"\",\"\",IFERROR(VLOOKUP(I24,'Data 2'!$A$1:$B$29,2,FALSE),\"add note\"))","v":""},null,null,null,null,null,null,null,null,{"$f":"C24*F24/1000*G24/1000","v":0},{"$f":"IF(OR($A$10=\"\",C24=\"\",D24=\"\",E24=\"\",F24=\"\",G24=\"\",I24=\"\",L24=\"\",M24=\"\",N24=\"\",O24=\"\",P24=\"\",Q24=\"\",R24=\"\"),\"Not OK\",\"OK\")","v":"Not OK"},null,null,null,null,{"$f":"C24*F24","v":0},{"$f":"R24*C24","v":0}]
[null,null,null,null,null,null,null,0.7,null,"G",{"$f":"IF(I25=\"\",\"\",IFERROR(VLOOKUP(I25,'Data 2'!$A$1:$B$29,2,FALSE),\"add note\"))","v":""},null,null,null,null,null,null,null,null,{"$f":"C25*F25/1000*G25/1000","v":0},{"$f":"IF(OR($A$10=\"\",C25=\"\",D25=\"\",E25=\"\",F25=\"\",G25=\"\",I25=\"\",L25=\"\",M25=\"\",N25=\"\",O25=\"\",P25=\"\",Q25=\"\",R25=\"\"),\"Not OK\",\"OK\")","v":"Not OK"},null,null,null,null,{"$f":"C25*F25","v":0},{"$f":"R25*C25","v":0}]
[]
[null,"TOTAL QTY",{"$f":"SUM(C24:C26)","v":0},null,null,null,null,null,null,null,null,null,null,null,null,null,null,null,"TOTAL m2 of facade elements",{"$f":"SUM(T24:T26)","v":0}]
[null,"Module x QTY [m]",{"$f":"SUM(Z24:Z26)/1000","v":0},null,null,null,null,null,null,null,null,null,null,null,null,null,null,null,"TOTAL fixing points",{"$f":"SUM(AA24:AA26)","v":0}]
[]
[]
[]
[]
[]
[]
["INSTRUCTIONS"]
["Follow steps"]
["1 PHASE / FACADE / BUILDING",null,"Mark positioning of the element according to design shop drawings",null,null,null,null,null,null,null,null,null,null,null,null,"COLOUR LEGEND:"]
["2 ELEMENT REF",null,"Mark element according to design shop drawings",null,null,null,null,null,null,null,null,null,null,null,null,null,"Required fields"]
["3 QTY",null,"Number of elements",null,null,null,null,null,null,null,null,null,null,null,null,null,"Input data doesn't meet Qbiss One limitations - see INSTRUCTIONS"]
["4 Core type",null,"Power T","90 kg/m3",null,null,null,null,null,null,null,null,null,null,null,null,"Automatically filled"]
[null,null,"Power S","120 kg/m3"]
[null,null,"Perform C","120 kg/m3"]
["5 Unit dimensions"]
[null,null,"T-","element thickness [mm]: (80, 100, 120, 133, 150, 172, 200, 220, 240, 250)"]
[null,null,"M-","element module width [mm]: from 600 up to 1200"]
[null,null,"R-","Longitudinal curverd element length [mm]:  from 500 up to 5700",null,null,null,null,null,null,"*except element type 5,6,7,8,9,10,11,12:  550mm < R < 5700mm"]
[null,null,null,"Transversal curverd element length [mm]:  from 500 up to 4000",null,null,null,null,null,null,"*except element type 5,6,7,8,9,10,11,12:  550mm < R < 4000mm"]
[null,null,null,"Element lenght is measured and scheduled between fixing (joint centres) - SEE PICTURES BELOW !!!"]
[null,null,"Transversal curved element",null,null,null,null,"Longitudinal curved element"]
[]
[]
[]
[]
[]
[]
[]
[]
[]
[]
[]
[]
[]
[]
[]
[]
[]
[]
[]
[]
[]
["6 External steel sheet thickness",null,"In case of Qbiss One elements, to achieve perfect flatness, we always use 0,7 mm thick steel sheet"]
["7 External steel sheet colour",null,"Select available standard colours. Find more about standard colours from following link",null,null,null,null,null,null,null,null,"Qbiss Colour Chart"]
["8 External steel sheet profile",null,"All Qbiss One elements have smooth external steel sheet profile"]
["9 External steel sheet coating",null,"Based on colour selection, steel sheet coating is selected automaticaly"]
["10 Internal steel sheet thickness",null,"Choose among 0,5mm; 0,55mm; 0,6mm; 0,7mm according to offer and structural calculation made by Trimo"]
["11 Internal steel sheet colour",null,"Select available standard colours. Find more about standard colours from following link",null,null,null,null,null,null,null,null,"Qbiss Colour Chart"]
["12 Internal steel sheet profile",null,"Choose among: g; s; v; v2; m2 profiles. Find out more about possibilities"]
["13 Internal steel sheet coating",null,"Considering project requirements, you can choose what type of coating is appropriate. ",null,null,null,null,null,null,null,null,"SP - Polyester"]
[null,null,null,null,null,null,null,null,null,null,null,"PVDF - Polyvinylidene fluoride"]
[null,null,null,null,null,null,null,null,null,null,null,"PUR - Polyurethane"]
[null,null,null,null,null,null,null,null,null,null,null,"PVC - Polyvinyl chlodide"]
["14 Radius",null,"Insert curvature of the element. Find out more about curved elements."]
[null,null,null,null,null,null,null,null,"Limitations:",null,"Longitudinal curved",null,"530 mm < R <5700 m"]
[null,null,null,null,null,null,null,null,null,null,null,null,"r > 4000 mm"]
[null,null,null,null,null,null,null,null,null,null,"Transversal curved",null,"530 mm < R < 4000 mm"]
[null,null,null,null,null,null,null,null,null,null,null,null,"r > 4000 mm"]
[]
["15 Element type",null,"Based on direction of assembly, choose appropriate type of element"]
[]
[]
[]
[]
[]
[]
[]
[]
[]
[]
[]
[]
[]
[]
[]
[]
[]
[]
[]
[]
[]
[]
[]
[]
[]
[]
[]
[]
[]
[]
[]
[]
[]
[]
[]
[]
["16 Fixing point",null,"Select quantity of fixing points on Qbiss element according to structural calculation, made by Trimo technical support"]
[null,null,"Limitations: 2 < number of fixing points < 6",null,null,null,null,"(only on one side of the element)"]
[]
[]
[]
[]
[]
[]
[]
[]
[]
[]
[]
[]
[]
[]
[]
[]
[null,null,"Printscreen from structural calculation in SandStat"]
[]
["17 Other notes"]
["18 Total",null,"Total amount of facade elements - calculated automatically"]
["STATUS",null,"OK","\"- element completely defined"]
[null,null,"Not OK","\"- Some characteristics of the element are missing, please fulfill all required cells."]

{"sheet":"3D diagonal-cut corner elements","index":8,"n_rows":163,"n_cols":31,"rows_kept":163,"cut":false,"hidden":true,"merged":[[21,23,22,23],[21,24,22,24],[9,0,9,1],[7,0,7,3],[19,0,19,22],[20,4,20,11],[21,1,22,1],[21,2,22,2],[21,4,21,11],[21,12,21,15],[21,16,21,19],[21,20,22,20],[21,22,22,22],[4,3,4,19],[4,20,4,21],[4,22,4,23],[5,13,5,15],[5,20,5,21],[5,22,5,23],[2,3,2,19],[2,20,2,21],[2,22,2,23],[3,3,3,19],[3,20,3,21],[3,22,3,23]]}
[null,null,null,null,null,null,null,null,null,null,null,null,"Qbiss One Cutting list for 3D-corner elements",null,null,null,null,null,null,null,null,null,null,{"$f":"\"version \"&LOOKUP(2,1/(UPDATES!A:A<>\"\"),UPDATES!A:A)","v":"version 2.6"}]
[]
[null,"Project name:",null,{"$f":"IF('CUTTING LIST'!C9=\"INSERT TEXT\",\"Insert text on first page\",'CUTTING LIST'!C9)","v":"Insert text on first page"},null,null,null,null,null,null,null,null,null,null,null,null,null,null,null,null,"Date last saved:",null,{"$f":"'CUTTING LIST'!N1","v":"2025-09-04T15:08:46"}]
[null,"Customer name:",null,{"$f":"IF('CUTTING LIST'!C10=\"INSERT TEXT\",\"Insert text on first page\",'CUTTING LIST'!C10)","v":"Insert text on first page"},null,null,null,null,null,null,null,null,null,null,null,null,null,null,null,null,"Last saved by:",null,{"$f":"'CUTTING LIST'!N2","v":"Matej Jereb"}]
[null,"Customer order no:",null,{"$f":"IF('CUTTING LIST'!C11=\"INSERT TEXT\",\"Insert text on first page\",'CUTTING LIST'!C11)","v":"Insert text on first page"},null,null,null,null,null,null,null,null,null,null,null,null,null,null,null,null,"Cutting list number:",null,{"$f":"IF('CUTTING LIST'!N3=\"Insert\",\"Insert text on first page\",'CUTTING LIST'!N3)","v":"Insert text on first page"}]
[null,null,null,null,null,null,null,null,null,null,null,null,null,null,null,null,null,null,null,null,"Revision:",null,{"$f":"IF('CUTTING LIST'!N4=\"Insert\",\"Insert text on first page\",'CUTTING LIST'!N4)","v":"Insert text on first page"}]
[]
["STEP 1:"]
["Type of corner element:"]
["3D_Corner element - horizontal"]
[]
[]
[]
[]
[]
[]
[]
[]
[null,null,null,null,null,null,null,null,null,null,null,null,null,null,null,null,null,null,null,null,null,null,null,"Note: Specification must be aligned with the commercial quotation. "]
["STEP 2:"]
[1,2,3,4,5,null,null,null,null,null,null,null,6,7,8,9,10,11,12,13,14,15,16,17]
["PHASE / FACADE /","ELEMENT REF:","QTY:","Core type","UNIT DIMENSIONS [mm]",null,null,null,null,null,null,null,"EXTERNAL STEEL SHEET",null,null,null,"INTERNAL STEEL SHEET",null,null,null,"ELEMENT Type","FIXING POINT","Other notes","TOTAL [m2]","STATUS"]
["BUILDING",null,null,"Mineral wool","T","M","R","A","B","R1","R2","αR1R2","Thickness [mm]","Colour","Profile","Coating","Thickness [mm]","Colour","Profile","Coating",null,"QTY",null,null,null,null,null,null,null,"M*QTY","Total fixing points"]
[null,null,null,null,null,{"$f":"H24+I24","v":0},{"$f":"J24+K24","v":0},null,null,null,null,null,{"$f":"Thickness_of_external_steel_sheet","v":0.7},null,"G",{"$f":"IF(N24=\"\",\"\",IFERROR(VLOOKUP(N24,'Data 2'!$A$1:$B$29,2,FALSE),\"add note\"))","v":""},null,null,null,null,null,null,null,{"$f":"C24*F24/1000*G24/1000","v":0},{"$f":"IF(OR($A$10=\"\",C24=\"\",D24=\"\",E24=\"\",F24=\"\",H24=\"\",I24=\"\",J24=\"\",K24=\"\",L24=\"\",N24=\"\",Q24=\"\",R24=\"\",S24=\"\",T24=\"\",U24=\"\",V24=\"\"),\"Not OK\",\"OK\")","v":"Not OK"},null,null,null,null,{"$f":"F24*C24","v":0},{"$f":"V24*C24","v":0}]
[null,null,null,null,null,{"$f":"H25+I25","v":0},{"$f":"J25+K25","v":0},null,null,null,null,null,{"$f":"Thickness_of_external_steel_sheet","v":0.7},null,"G",{"$f":"IF(N25=\"\",\"\",IFERROR(VLOOKUP(N25,'Data 2'!$A$1:$B$29,2,FALSE),\"add note\"))","v":""},null,null,null,null,null,null,null,{"$f":"C25*F25/1000*G25/1000","v":0},{"$f":"IF(OR($A$10=\"\",C25=\"\",D25=\"\",E25=\"\",F25=\"\",H25=\"\",I25=\"\",J25=\"\",K25=\"\",L25=\"\",N25=\"\",Q25=\"\",R25=\"\",S25=\"\",T25=\"\",U25=\"\",V25=\"\"),\"Not OK\",\"OK\")","v":"Not OK"},null,null,null,null,{"$f":"F25*C25","v":0},{"$f":"V25*C25","v":0}]
[]
[null,"TOTAL QTY",{"$f":"SUM(C24:C26)","v":0},null,null,null,null,null,null,null,null,null,null,null,null,null,null,null,null,null,null,null,"TOTAL m2 of facade elements",{"$f":"SUM(X24:X26)","v":0}]
[null,"Module x QTY [m]:",{"$f":"SUM(AD24:AD26)/1000","v":0},null,null,null,null,null,null,null,null,null,null,null,null,null,null,null,null,null,null,null,"TOTAL fixing points",{"$f":"SUM(AE24:AE26)","v":0}]
[]
[]
[]
[]
[]
[]
["INSTRUCTIONS"]
["Follow steps"]
["1 PHASE / FACADE / BUILDING",null,"Mark positioning of the element according to design shop drawings",null,null,null,null,null,null,null,null,null,null,null,null,"COLOUR LEGEND:"]
["2 ELEMENT REF",null,"Mark element according to design shop drawings",null,null,null,null,null,null,null,null,null,null,null,null,null,"Required fields"]
["3 QTY",null,"Number of elements",null,null,null,null,null,null,null,null,null,null,null,null,null,"Input data doesn't meet Qbiss One limitations - see INSTRUCTIONS"]
["4 Core type",null,"Power T","90 kg/m3",null,null,null,null,null,null,null,null,null,null,null,null,"Automatically filled"]
[null,null,"Power S","120 kg/m3"]
[null,null,"Perform C","120 kg/m3"]
["5 Unit dimensions"]
[null,null,"T-","element thickness [mm]: (80, 100, 120, 133, 150, 172, 200, 220, 240, 250)"]
[null,null,"M-","element module width [mm]: from 600 up to 1200"]
[null,null,"R-","element length [mm]:  from 500 up to 6500",null,null,null,null,"*except element type 5,6,7,8,9,10,11,12:  550mm < R < 6500mm"]
[null,null,null,"Element lenght is measured and scheduled between fixing (joint centres) - SEE PICTURES BELOW !!!"]
[null,null,"A, B, R1,R2 -","side of corner element"]
[null,null,"αR1R2 -","angle: from 90 degrees to 175 degrees"]
[null,null,"Limitations:"]
[]
[]
[]
[]
[]
[]
[]
[]
[]
[]
[]
[null,null,"M=A+B"]
[null,null,"600 < (A+B) < 1200"]
[null,null,"R=R1+R2"]
[]
[]
[]
[]
[]
[]
[]
[]
[]
[]
[]
[]
[]
[]
[]
[]
[]
[]
[]
[]
[]
[]
[]
[]
[]
[]
["6 External steel sheet thickness",null,"In case of Qbiss elements, to achieve perfect flatness, we always use 0,7 mm thick steel sheet"]
["7 External steel sheet colour",null,"Select available standard colours. Find more about standard colours from following link",null,null,null,null,null,null,null,null,null,"Qbiss Colour Chart"]
["8 External steel sheet profile",null,"All Qbiss One elements have smooth external steel sheet profile"]
["9 External steel sheet coating",null,"Based on colour selection, steel sheet coating is selected automaticaly"]
["10 Internal steel sheet thickness",null,"Choose among 0,5mm; 0,55mm; 0,6mm; 0,7mm according to offer and structural calculation made by Trimo"]
["11 Internal steel sheet colour",null,"Select available standard colours. Find more about standard colours from following link",null,null,null,null,null,null,null,null,null,"Qbiss Colour Chart"]
["12 Internal steel sheet profile",null,"Choose among: g; s; v; v2; m2 profiles. Find out more about possibilities"]
["13 Internal steel sheet coating",null,"Considering project requirements, you can choose what type of coating is appropriate. ",null,null,null,null,null,null,null,null,null,"SP - Polyester"]
[null,null,null,null,null,null,null,null,null,null,null,null,"PVDF - Polyvinylidene fluoride"]
[null,null,null,null,null,null,null,null,null,null,null,null,"PUR - Polyurethane"]
[null,null,null,null,null,null,null,null,null,null,null,null,"PVC - Polyvinyl chlodide"]
["14 Element type",null,"Based on direction of assembly, choose appropriate type of element"]
[]
[]
[]
[]
[]
[]
[]
[]
[]
[]
[]
[]
[]
[]
[]
[]
[]
[]
[]
[]
[]
[]
[]
[]
[]
[]
[]
[]
[]
[]
[]
[]
[]
[]
[]
[]
[]
["15 Fixing point",null,"Select quantity of fixing points on Qbiss element according to structural calculation, made by Trimo technical support"]
[null,null,"Limitations: 2 < number of fixing points < 6",null,null,null,null,"(only on one side of the element)"]
[]
[]
[]
[]
[]
[]
[]
[]
[]
[]
[]
[]
[]
[]
[]
[]
[null,null,"Printscreen from structural calculation in SandStat"]
[]
["16  Other notes"]
["17 Total",null,"Total amount of facade elements - calculated automatically"]
["STATUS",null,"OK","\"- element completely defined"]
[null,null,"Not OK","\"- Some characteristics of the element are missing, please fulfill all required cells."]

{"sheet":"3D edge-cut corner elements","index":9,"n_rows":162,"n_cols":31,"rows_kept":162,"cut":false,"hidden":true,"merged":[[2,3,2,19],[2,20,2,21],[2,22,2,23],[3,3,3,19],[3,20,3,21],[3,22,3,23],[4,3,4,19],[4,20,4,21],[4,22,4,23],[5,13,5,15],[5,20,5,21],[5,22,5,23],[21,22,22,22],[21,23,22,23],[21,24,22,24],[7,0,7,3],[9,0,9,1],[19,0,19,22],[20,4,20,11],[21,1,22,1],[21,2,22,2],[21,4,21,11],[21,12,21,15],[21,16,21,19],[21,20,22,20]]}
[null,null,null,null,null,null,null,null,null,null,null,null,"Qbiss One Cutting list for 3D-corner elements",null,null,null,null,null,null,null,null,null,null,{"$f":"\"version \"&LOOKUP(2,1/(UPDATES!A:A<>\"\"),UPDATES!A:A)","v":"version 2.6"}]
[]
[null,"Project name:",null,{"$f":"IF('CUTTING LIST'!C9=\"INSERT TEXT\",\"Insert text on first page\",'CUTTING LIST'!C9)","v":"Insert text on first page"},null,null,null,null,null,null,null,null,null,null,null,null,null,null,null,null,"Date last saved:",null,{"$f":"'CUTTING LIST'!N1","v":"2025-09-04T15:08:46"}]
[null,"Customer name:",null,{"$f":"IF('CUTTING LIST'!C10=\"INSERT TEXT\",\"Insert text on first page\",'CUTTING LIST'!C10)","v":"Insert text on first page"},null,null,null,null,null,null,null,null,null,null,null,null,null,null,null,null,"Last saved by:",null,{"$f":"'CUTTING LIST'!N2","v":"Matej Jereb"}]
[null,"Customer order no:",null,{"$f":"IF('CUTTING LIST'!C11=\"INSERT TEXT\",\"Insert text on first page\",'CUTTING LIST'!C11)","v":"Insert text on first page"},null,null,null,null,null,null,null,null,null,null,null,null,null,null,null,null,"Cutting list number:",null,{"$f":"IF('CUTTING LIST'!N3=\"Insert\",\"Insert text on first page\",'CUTTING LIST'!N3)","v":"Insert text on first page"}]
[null,null,null,null,null,null,null,null,null,null,null,null,null,null,null,null,null,null,null,null,"Revision:",null,{"$f":"IF('CUTTING LIST'!N4=\"Insert\",\"Insert text on first page\",'CUTTING LIST'!N4)","v":"Insert text on first page"}]
[]
["STEP 1:"]
["Type of corner element:"]
["3D_Corner element - horizontal"]
[]
[]
[]
[]
[]
[]
[]
[]
[null,null,null,null,null,null,null,null,null,null,null,null,null,null,null,null,null,null,null,null,null,null,null,"Note: Specification must be aligned with the commercial quotation. "]
["STEP 2:"]
[1,2,3,4,5,null,null,null,null,null,null,null,6,7,8,9,10,11,12,13,14,15,16,17]
["PHASE / FACADE /","ELEMENT REF:","QTY:","Core type","UNIT DIMENSIONS [mm]",null,null,null,null,null,null,null,"EXTERNAL STEEL SHEET",null,null,null,"INTERNAL STEEL SHEET",null,null,null,"ELEMENT Type","FIXING POINT","Other notes","TOTAL [m2]","STATUS"]
["BUILDING",null,null,"Mineral wool","T","M","R","A","B","R1","R2","αR1R2","Thickness [mm]","Colour","Profile","Coating","Thickness [mm]","Colour","Profile","Coating",null,"QTY",null,null,null,null,null,null,null,"M*QTY","Total fixing points"]
[null,null,null,null,null,{"$f":"H24+I24","v":0},{"$f":"J24+K24","v":0},null,null,null,null,null,{"$f":"Thickness_of_external_steel_sheet","v":0.7},null,"G",{"$f":"IF(N24=\"\",\"\",IFERROR(VLOOKUP(N24,'Data 2'!$A$1:$B$29,2,FALSE),\"add note\"))","v":""},null,null,null,null,null,null,null,{"$f":"C24*F24/1000*G24/1000","v":0},{"$f":"IF(OR($A$10=\"\",C24=\"\",D24=\"\",E24=\"\",F24=\"\",H24=\"\",I24=\"\",J24=\"\",K24=\"\",L24=\"\",N24=\"\",Q24=\"\",R24=\"\",S24=\"\",T24=\"\",U24=\"\",V24=\"\"),\"Not OK\",\"OK\")","v":"Not OK"},null,null,null,null,{"$f":"F24*C24","v":0},{"$f":"V24*C24","v":0}]
[null,null,null,null,null,{"$f":"H25+I25","v":0},{"$f":"J25+K25","v":0},null,null,null,null,null,{"$f":"Thickness_of_external_steel_sheet","v":0.7},null,"G",{"$f":"IF(N25=\"\",\"\",IFERROR(VLOOKUP(N25,'Data 2'!$A$1:$B$29,2,FALSE),\"add note\"))","v":""},null,null,null,null,null,null,null,{"$f":"C25*F25/1000*G25/1000","v":0},{"$f":"IF(OR($A$10=\"\",C25=\"\",D25=\"\",E25=\"\",F25=\"\",H25=\"\",I25=\"\",J25=\"\",K25=\"\",L25=\"\",N25=\"\",Q25=\"\",R25=\"\",S25=\"\",T25=\"\",U25=\"\",V25=\"\"),\"Not OK\",\"OK\")","v":"Not OK"},null,null,null,null,{"$f":"F25*C25","v":0},{"$f":"V25*C25","v":0}]
[]
[null,"TOTAL QTY",{"$f":"SUM(C24:C26)","v":0},null,null,null,null,null,null,null,null,null,null,null,null,null,null,null,null,null,null,null,"TOTAL m2 of facade elements",{"$f":"SUM(X24:X26)","v":0}]
[null,"Module x QTY [m]:",{"$f":"SUM(AD24:AD26)/1000","v":0},null,null,null,null,null,null,null,null,null,null,null,null,null,null,null,null,null,null,null,"TOTAL fixing points",{"$f":"SUM(AE24:AE26)","v":0}]
[]
[]
[]
[]
[]
[]
["INSTRUCTIONS"]
["Follow steps"]
["1 PHASE / FACADE / BUILDING",null,"Mark positioning of the element according to design shop drawings",null,null,null,null,null,null,null,null,null,null,null,null,"COLOUR LEGEND:"]
["2 ELEMENT REF",null,"Mark element according to design shop drawings",null,null,null,null,null,null,null,null,null,null,null,null,null,"Required fields"]
["3 QTY",null,"Number of elements",null,null,null,null,null,null,null,null,null,null,null,null,null,"Input data doesn't meet Qbiss One limitations - see INSTRUCTIONS"]
["4 Core type",null,"Power T","90 kg/m3",null,null,null,null,null,null,null,null,null,null,null,null,"Automatically filled"]
[null,null,"Power S","120 kg/m3"]
[null,null,"Perform C","120 kg/m3"]
["5 Unit dimensions"]
[null,null,"T-","element thickness [mm]: (80, 100, 120, 133, 150, 172, 200, 220, 240, 250)"]
[null,null,"M-","element module width [mm]: from 600 up to 1200"]
[null,null,"R-","element length [mm]:  from 500 up to 6500",null,null,null,null,"*except element type 5,6,7,8,9,10,11,12:  550mm < R < 6500mm"]
[]
[]
[null,null,null,"Element lenght is measured and scheduled between fixing (joint centres) - SEE PICTURES BELOW !!!"]
[null,null,"A, B, R1,R2 -","side of corner element"]
[null,null,"αR1R2 -","angle: from 90 degrees to 175 degrees"]
[null,null,"Limitations:"]
[]
[]
[]
[]
[]
[]
[]
[]
[]
[]
[]
[]
[null,null,"M=A+B"]
[null,null,"600 < (A+B) < 1200"]
[null,null,"R=R1+R2"]
[]
[]
[]
[]
[]
[]
[]
[]
[]
[]
[]
[]
[]
[]
[]
[]
[]
[]
[]
[]
[]
[]
[]
["6 External steel sheet thickness",null,"In case of Qbiss elements, to achieve perfect flatness, we always use 0,7 mm thick steel sheet"]
["7 External steel sheet colour",null,"Select available standard colours. Find more about standard colours from following link",null,null,null,null,null,null,null,null,null,"Qbiss Colour Chart"]
["8 External steel sheet profile",null,"All Qbiss One elements have smooth external steel sheet profile"]
["9 External steel sheet coating",null,"Based on colour selection, steel sheet coating is selected automaticaly"]
["10 Internal steel sheet thickness",null,"Choose among 0,5mm; 0,55mm; 0,6mm; 0,7mm according to offer and structural calculation made by Trimo"]
["11 Internal steel sheet colour",null,"Select available standard colours. Find more about standard colours from following link",null,null,null,null,null,null,null,null,null,"Qbiss Colour Chart"]
["12 Internal steel sheet profile",null,"Choose among: g; s; v; v2; m2 profiles. Find out more about possibilities"]
["13 Internal steel sheet coating",null,"Considering project requirements, you can choose what type of coating is appropriate. ",null,null,null,null,null,null,null,null,null,"SP - Polyester"]
[null,null,null,null,null,null,null,null,null,null,null,null,"PVDF - Polyvinylidene fluoride"]
[null,null,null,null,null,null,null,null,null,null,null,null,"PUR - Polyurethane"]
[null,null,null,null,null,null,null,null,null,null,null,null,"PVC - Polyvinyl chlodide"]
["14 Element type",null,"Based on direction of assembly, choose appropriate type of element"]
[]
[]
[]
[]
[]
[]
[]
[]
[]
[]
[]
[]
[]
[]
[]
[]
[]
[]
[]
[]
[]
[]
[]
[]
[]
[]
[]
[]
[]
[]
[]
[]
[]
[]
[]
[]
["15 Fixing point",null,"Select quantity of fixing points on Qbiss element according to structural calculation, made by Trimo technical support"]
[null,null,"Limitations: 2 < number of fixing points < 6",null,null,null,null,"(only on one side of the element)"]
[]
[]
[]
[]
[]
[]
[]
[]
[]
[]
[]
[]
[]
[]
[]
[]
[null,null,"Printscreen from structural calculation in SandStat"]
[]
["16  Other notes"]
["17 Total",null,"Total amount of facade elements - calculated automatically"]
["STATUS",null,"OK","\"- element completely defined"]
[null,null,"Not OK","\"- Some characteristics of the element are missing, please fulfill all required cells."]

{"sheet":"Elements with overhang","index":10,"n_rows":148,"n_cols":32,"rows_kept":148,"cut":false,"hidden":true,"merged":[[21,4,21,11],[21,12,21,15],[21,16,21,19],[21,20,22,20],[21,23,22,23],[21,22,22,22],[2,21,2,22],[21,25,22,25],[2,3,2,19],[2,23,2,24],[3,3,3,19],[3,23,3,24],[4,3,4,19],[4,23,4,24],[3,21,3,22],[4,21,4,22],[5,21,5,22],[7,0,7,3],[19,0,19,23],[20,4,20,11],[21,1,22,1],[21,2,22,2],[26,22,26,23],[27,22,27,23],[5,13,5,15],[5,23,5,24],[21,24,22,24]]}
[null,null,null,null,null,null,null,null,null,null,null,null,null,null,"Qbiss One Cutting list for curved elements",null,null,null,null,null,null,null,null,null,{"$f":"\"version \"&LOOKUP(2,1/(UPDATES!A:A<>\"\"),UPDATES!A:A)","v":"version 2.6"}]
[]
[null,"Project name:",null,{"$f":"IF('CUTTING LIST'!C9=\"INSERT TEXT\",\"Insert text on first page\",'CUTTING LIST'!C9)","v":"Insert text on first page"},null,null,null,null,null,null,null,null,null,null,null,null,null,null,null,null,null,"Date last saved:",null,{"$f":"'CUTTING LIST'!N1","v":"2025-09-04T15:08:46"}]
[null,"Customer name:",null,{"$f":"IF('CUTTING LIST'!C10=\"INSERT TEXT\",\"Insert text on first page\",'CUTTING LIST'!C10)","v":"Insert text on first page"},null,null,null,null,null,null,null,null,null,null,null,null,null,null,null,null,null,"Last saved by:",null,{"$f":"'CUTTING LIST'!N2","v":"Matej Jereb"}]
[null,"Customer order no:",null,{"$f":"IF('CUTTING LIST'!C11=\"INSERT TEXT\",\"Insert text on first page\",'CUTTING LIST'!C11)","v":"Insert text on first page"},null,null,null,null,null,null,null,null,null,null,null,null,null,null,null,null,null,"Cutting list number:",null,{"$f":"IF('CUTTING LIST'!N3=\"Insert\",\"Insert text on first page\",'CUTTING LIST'!N3)","v":"Insert text on first page"}]
[null,null,null,null,null,null,null,null,null,null,null,null,null,null,null,null,null,null,null,null,null,"Revision:",null,{"$f":"IF('CUTTING LIST'!N4=\"Insert\",\"Insert text on first page\",'CUTTING LIST'!N4)","v":"Insert text on first page"}]
[]
["STEP 1:"]
["Type of element:"]
["Overhang"]
[]
[]
[]
[]
[]
[]
[]
[]
[null,null,null,null,null,null,null,null,null,null,null,null,null,null,null,null,null,null,null,null,null,null,null,null,"Note: Specification must be aligned with the commercial quotation. "]
["STEP 2:"]
[1,2,3,4,5,null,null,null,null,null,null,null,6,7,8,9,10,11,12,13,14,15,16,17,18]
["PHASE / FACADE / ","ELEMENT REF:","QTY:","Core type","UNIT DIMENSIONS [mm]",null,null,null,null,null,null,null,"EXTERNAL STEEL SHEET",null,null,null,"INTERNAL STEEL SHEET",null,null,null,"ELEMENT Type","FIXING POINT","OVERHANG \nOption","Other notes","TOTAL [m2]","STATUS"]
["BIULDING",null,null,"Mineral wool","T","M","R","S1","H","A","B","C","Thickness [mm]","Colour","Profile","Coating","Thickness [mm]","Colour","Profile","Coating",null,"QTY",null,null,null,null,null,null,null,null,"M*QTY","Total fixing points"]
[null,null,null,null,null,null,null,null,null,null,null,null,{"$f":"Thickness_of_external_steel_sheet","v":0.7},null,"G",{"$f":"IF(N24=\"\",\"\",IFERROR(VLOOKUP(N24,'Data 2'!$A$1:$B$29,2,FALSE),\"add note\"))","v":""},null,null,null,null,null,null,null,null,{"$f":"C24*F24/1000*G24/1000","v":0},{"$f":"IF(OR($A$10=\"\",C24=\"\",D24=\"\",E24=\"\",F24=\"\",G24=\"\",H24=\"\",I24=\"\",N24=\"\",Q24=\"\",R24=\"\",S24=\"\",T24=\"\",U24=\"\",V24=\"\",W24=\"\"),\"Not OK\",\"OK\")","v":"Not OK"}]
[null,null,null,null,null,null,null,null,null,null,null,null,0.7,null,"G",{"$f":"IF(N25=\"\",\"\",IFERROR(VLOOKUP(N25,'Data 2'!$A$1:$B$29,2,FALSE),\"add note\"))","v":""},null,null,null,null,null,null,null,null,{"$f":"C25*F25/1000*G25/1000","v":0},{"$f":"IF(OR($A$10=\"\",C25=\"\",D25=\"\",E25=\"\",F25=\"\",G25=\"\",H25=\"\",I25=\"\",N25=\"\",Q25=\"\",R25=\"\",S25=\"\",T25=\"\",U25=\"\",V25=\"\",W25=\"\"),\"Not OK\",\"OK\")","v":"Not OK"}]
[]
[null,"TOTAL QTY",{"$f":"SUM(C24:C26)","v":0},null,null,null,null,null,null,null,null,null,null,null,null,null,null,null,null,null,null,null,"TOTAL m2 of facade elements",null,{"$f":"SUM(Y24:Y26)","v":0}]
[null,"Module x QTY [m]",{"$f":"SUM(AE24:AE26)/1000","v":0},null,null,null,null,null,null,null,null,null,null,null,null,null,null,null,null,null,null,null,"TOTAL fixing points",null,{"$f":"SUM(AF24:AF26)","v":0}]
[]
[]
[]
[]
[]
[]
["INSTRUCTIONS"]
["Follow steps"]
["1 PHASE / FACADE / BUILDING",null,"Mark positioning of the element according to design shop drawings",null,null,null,null,null,null,null,null,null,null,null,null,null,null,null,null,null,"COLOUR LEGEND:"]
["2 ELEMENT REF",null,"Mark element according to design shop drawings",null,null,null,null,null,null,null,null,null,null,null,null,null,null,null,null,null,null,"Required fields"]
["3 QTY",null,"Number of elements",null,null,null,null,null,null,null,null,null,null,null,null,null,null,null,null,null,null,"Input data doesn't meet Qbiss One limitations - see INSTRUCTIONS"]
["4 Core type",null,"Power T","90 kg/m3",null,null,null,null,null,null,null,null,null,null,null,null,null,null,null,null,null,"Automatically filled"]
[null,null,"Power S","120 kg/m3"]
[null,null,"Perform C","120 kg/m3"]
["5 Unit dimensions"]
[null,null,"T-","element thickness [mm]: (120, 133, 150, 172, 200, 220, 240, 250)"]
[null,null,"M-","element module width [mm]: from 600 up to 1200"]
[null,null,"R-","element length [mm]:  from 500 up to 6000",null,null,null,null,null,"*except element type 5,6,7,8,9,10,11,12:  Rmin=550mm"]
[null,null,null,"Element lenght is measured and scheduled between fixing (joint centres) - SEE PICTURES BELOW !!!"]
[null,null,"S1-","Overhang thickness [mm]: 80, 100, 120"]
[null,null,"H-","Overhang height [mm]: max. 300 "]
[null,null,"A-","Dimension according to the option you choose (see pictures above)."]
[null,null,"B-","Dimension according to the option you choose (see pictures above)."]
[null,null,"C-","Dimension according to the option you choose (see pictures above)."]
[]
[]
[]
[]
[]
[]
[]
[]
[]
[]
[]
[]
[]
[]
[]
[]
[]
[]
[]
[]
["6 External steel sheet thickness",null,"In case of Qbiss One elements, to achieve perfect flatness, we always use 0,7 mm thick steel sheet"]
["7 External steel sheet colour",null,"Select available standard colours. Find more about standard colours from following link",null,null,null,null,null,null,null,null,null,null,null,null,null,"Qbiss Colour Chart"]
["8 External steel sheet profile",null,"All Qbiss One elements have smooth external steel sheet profile"]
["9 External steel sheet coating",null,"Based on colour selection, steel sheet coating is selected automaticaly"]
["10 Internal steel sheet thickness",null,"Choose among 0,5mm; 0,55mm; 0,6mm; 0,7mm according to offer and structural calculation made by Trimo"]
["11 Internal steel sheet colour",null,"Select available standard colours. Find more about standard colours from following link",null,null,null,null,null,null,null,null,null,null,null,null,null,"Qbiss Colour Chart"]
["12 Internal steel sheet profile",null,"Choose among: g; s; v; v2; m2 profiles. Find out more about possibilities"]
["13 Internal steel sheet coating",null,"Considering project requirements, you can choose what type of coating is appropriate. ",null,null,null,null,null,null,null,null,null,null,null,null,null,"SP - Polyester"]
[null,null,null,null,null,null,null,null,null,null,null,null,null,null,null,null,"PVDF - Polyvinylidene fluoride"]
[null,null,null,null,null,null,null,null,null,null,null,null,null,null,null,null,"PUR - Polyurethane"]
[null,null,null,null,null,null,null,null,null,null,null,null,null,null,null,null,"PVC - Polyvinyl chlodide"]
[]
["14 Element type",null,"Based on direction of assembly, choose appropriate type of element"]
[]
[]
[]
[]
[]
[]
[]
[]
[]
[]
[]
[]
[]
[]
[]
[]
[]
[]
[]
[]
[]
[]
[]
[]
[]
[]
[]
[]
[]
[]
[]
[]
[]
[]
[]
[]
["15 Fixing point",null,"Select quantity of fixing points on Qbiss element according to structural calculation, made by Trimo technical support"]
[null,null,"Limitations: 2 < number of fixing points < 6",null,null,null,null,null,null,null,null,null,"(only on one side of the element)"]
[]
[]
[]
[]
[]
[]
[]
[]
[]
[]
[]
[]
[]
[]
[]
[]
[null,null,"Printscreen from structural calculation in SandStat"]
[]
["15 Fixing point",null,"Overhang options: Full / Left / Right / Middle / Ends"]
[null,null,"See pictures above"]
[]
["17 Other notes"]
["18 Total",null,"Total amount of facade elements - calculated automatically"]
["STATUS",null,"OK","\"- element completely defined"]
[null,null,"Not OK","\"- Some characteristics of the element are missing, please fulfill all required cells."]

{"sheet":"Qbiss Accessories","index":11,"n_rows":37,"n_cols":8,"rows_kept":37,"cut":false,"hidden":false,"merged":[[19,2,19,4],[3,16,4,17],[21,2,21,4],[25,2,25,4],[13,2,15,3],[23,2,23,4],[17,2,17,4],[29,2,29,4],[31,2,31,4],[33,2,33,4],[37,0,37,7],[27,2,27,4],[35,2,35,4]]}
[null,null,null,"Qbiss Accessories",null,null,null,{"$f":"\"version \"&LOOKUP(2,1/(UPDATES!A:A<>\"\"),UPDATES!A:A)","v":"version 2.6"}]
[]
[]
[null,null,null,null,null,"Revision:",{"$f":"IF('CUTTING LIST'!N4=\"Insert\",\"Insert text of first page\",'CUTTING LIST'!N4)","v":"Insert text of first page"}]
[null,null,"Project name:",{"$f":"IF('CUTTING LIST'!C9=\"INSERT TEXT\",\"Insert text on first page\",'CUTTING LIST'!C9)","v":"Insert text on first page"},null,"Date last saved:",{"$f":"'CUTTING LIST'!N1","v":"2025-09-04T15:08:46"}]
[null,null,"Customer name:",{"$f":"IF('CUTTING LIST'!C10=\"INSERT TEXT\",\"Insert text on first page\",'CUTTING LIST'!C10)","v":"Insert text on first page"},null,"Last saved by:",{"$f":"'CUTTING LIST'!N2","v":"Matej Jereb"}]
[null,null,"Customer order no:",{"$f":"IF('CUTTING LIST'!C11=\"INSERT TEXT\",\"Insert text on first page\",'CUTTING LIST'!C11)","v":"Insert text on first page"},null,"Cutting list number:",{"$f":"IF('CUTTING LIST'!N3=\"Insert\",\"Insert text on first page\",'CUTTING LIST'!N3)","v":"Insert text on first page"}]
[]
[null,null,null,null,null,null,null,"Note: Trimo scope of supply to be aligned with the commercial quotation."]
[null,null,null,null,null,null,null,"Number of accessories must be aligned with project design requirements."]
["List of Qbiss Accessories"]
["ID","Name",null,null,null,null,"QTY","Unit"]
[{"$f":"_xlfn.IFNA(\nINDIRECT(\"AccessoriesMatrix_1!A\"&MATCH(\n\"Q1\",\nINDEX(AccessoriesMatrix_1!A:AF,\n0,MATCH('Qbiss One elements'!$M$10,AccessoriesMatrix_1!1:1,0)),0)),\"NV\")","v":"HF40"},{"$f":"INDIRECT(CONCATENATE(\"'AccessoriesMatrix_1'!\",ADDRESS(MATCH('Qbiss Accessories'!$A$13,AccessoriesMatrix_1!$A:$A,0),4)))","v":"Decorative ALU extrusion (T-HF40)"},null,null,"colour:",null,null,"pcs"]
[null,null,{"$f":"INDIRECT(CONCATENATE(\"'AccessoriesMatrix_1'!\",ADDRESS(MATCH('Qbiss Accessories'!$A$13,AccessoriesMatrix_1!$A:$A,0),6)))","v":"Aluminium exstrusion is supplied in 4,0m length and is installed together with transversal gasket. It can be powdercoated to match the colour of facade element, or in any other colour to expose the lines on facade."},null,"colour:",null,null,"pcs"]
[null,null,null,null,"colour:",null,null,"pcs"]
[]
[{"$f":"_xlfn.IFNA(\nINDIRECT(\"AccessoriesMatrix_1!A\"&MATCH(\n\"Q2\",\nINDEX(AccessoriesMatrix_1!A:AF,\n0,MATCH('Qbiss One elements'!$M$10,AccessoriesMatrix_1!1:1,0)),0)),\"NV\")","v":30032065},{"$f":"INDIRECT(CONCATENATE(\"'AccessoriesMatrix_1'!\",ADDRESS(MATCH('Qbiss Accessories'!$A$17,AccessoriesMatrix_1!$A:$A,0),4)))","v":"Silicone transversal gasket"},null,null,null,null,null,{"$f":"INDIRECT(CONCATENATE(\"'AccessoriesMatrix_1'!\",ADDRESS(MATCH('Qbiss Accessories'!$A$17,AccessoriesMatrix_1!$A:$A,0),2)))","v":"m"}]
[null,null,{"$f":"INDIRECT(CONCATENATE(\"'AccessoriesMatrix_1'!\",ADDRESS(MATCH('Qbiss Accessories'!$A$17,AccessoriesMatrix_1!$A:$A,0),6)))","v":"Gasket is installed together with Decorative aluminium extrusion and can be prolongated anywhere along the joint.\n\nOn special request: \nEPDM Transversal gasket (30014372) - Leave a request in the notes section."}]
[{"$f":"_xlfn.IFNA(\nINDIRECT(\"AccessoriesMatrix_1!A\"&MATCH(\n\"Q3\",\nINDEX(AccessoriesMatrix_1!A:AF,\n0,MATCH('Qbiss One elements'!$M$10,AccessoriesMatrix_1!1:1,0)),0)),\"NV\")","v":30006439},{"$f":"INDIRECT(CONCATENATE(\"'AccessoriesMatrix_1'!\",ADDRESS(MATCH('Qbiss Accessories'!$A$19,AccessoriesMatrix_1!$A:$A,0),4)))","v":"Junction drip element (44x156)"},null,null,null,null,null,{"$f":"INDIRECT(CONCATENATE(\"'AccessoriesMatrix_1'!\",ADDRESS(MATCH('Qbiss Accessories'!$A$19,AccessoriesMatrix_1!$A:$A,0),2)))","v":"pcs"}]
[null,null,{"$f":"INDIRECT(CONCATENATE(\"'AccessoriesMatrix_1'!\",ADDRESS(MATCH('Qbiss Accessories'!$A$19,AccessoriesMatrix_1!$A:$A,0),6)))","v":"The element is installed during facade installation."}]
[{"$f":"_xlfn.IFNA(\nINDIRECT(\"AccessoriesMatrix_1!A\"&MATCH(\n\"Q4\",\nINDEX(AccessoriesMatrix_1!A:AF,\n0,MATCH('Qbiss One elements'!$M$10,AccessoriesMatrix_1!1:1,0)),0)),\"NV\")","v":30007025},{"$f":"INDIRECT(CONCATENATE(\"'AccessoriesMatrix_1'!\",ADDRESS(MATCH('Qbiss Accessories'!$A$21,AccessoriesMatrix_1!$A:$A,0),4)))","v":"EPDM cube gasket (26x26x30)"},null,null,null,null,null,{"$f":"INDIRECT(CONCATENATE(\"'AccessoriesMatrix_1'!\",ADDRESS(MATCH('Qbiss Accessories'!$A$21,AccessoriesMatrix_1!$A:$A,0),2)))","v":"pcs"}]
[null,null,{"$f":"INDIRECT(CONCATENATE(\"'AccessoriesMatrix_1'!\",ADDRESS(MATCH('Qbiss Accessories'!A21,AccessoriesMatrix_1!$A:$A,0),6)))","v":"Gasket is installed in hole after facade elements are installed."}]
[{"$f":"_xlfn.IFNA(\nINDIRECT(\"AccessoriesMatrix_1!A\"&MATCH(\n\"Q5\",\nINDEX(AccessoriesMatrix_1!A:AF,\n0,MATCH('Qbiss One elements'!$M$10,AccessoriesMatrix_1!1:1,0)),0)),\"NV\")","v":30006438},{"$f":"INDIRECT(CONCATENATE(\"'AccessoriesMatrix_1'!\",ADDRESS(MATCH('Qbiss Accessories'!$A$23,AccessoriesMatrix_1!$A:$A,0),4)))","v":"EPDM drip element"},null,null,null,null,null,{"$f":"INDIRECT(CONCATENATE(\"'AccessoriesMatrix_1'!\",ADDRESS(MATCH('Qbiss Accessories'!$A$23,AccessoriesMatrix_1!$A:$A,0),2)))","v":"pcs"}]
[null,null,{"$f":"INDIRECT(CONCATENATE(\"'AccessoriesMatrix_1'!\",ADDRESS(MATCH('Qbiss Accessories'!A23,AccessoriesMatrix_1!$A:$A,0),6)))","v":"The element is installed during facade installation."}]
[{"$f":"_xlfn.IFNA(INDIRECT(\"AccessoriesMatrix_1!A\"&MATCH(\n\"Q6\",\nINDEX(AccessoriesMatrix_1!A:AF,\n0,MATCH('Qbiss One elements'!$M$10,AccessoriesMatrix_1!1:1,0)),0)),\"NV\")","v":30026912},{"$f":"INDIRECT(CONCATENATE(\"'AccessoriesMatrix_1'!\",ADDRESS(MATCH('Qbiss Accessories'!A25,AccessoriesMatrix_1!$A:$A,0),4)))","v":"Stainless drip element"},null,null,null,null,null,{"$f":"INDIRECT(CONCATENATE(\"'AccessoriesMatrix_1'!\",ADDRESS(MATCH('Qbiss Accessories'!A25,AccessoriesMatrix_1!$A:$A,0),2)))","v":"pcs"}]
[null,null,{"$f":"INDIRECT(CONCATENATE(\"'AccessoriesMatrix_1'!\",ADDRESS(MATCH('Qbiss Accessories'!A25,AccessoriesMatrix_1!$A:$A,0),6)))","v":"The element is installed after facade elements are installed. A mastic seal must be used for sufficient sealing."}]
[{"$f":"_xlfn.IFNA(\nINDIRECT(\"AccessoriesMatrix_1!A\"&MATCH(\n\"Q7\",\nINDEX(AccessoriesMatrix_1!A:AF,\n0,MATCH('Qbiss One elements'!$M$10,AccessoriesMatrix_1!1:1,0)),0)),\"NV\")","v":30033030},{"$f":"INDIRECT(CONCATENATE(\"'AccessoriesMatrix_1'!\",ADDRESS(MATCH('Qbiss Accessories'!A27,AccessoriesMatrix_1!$A:$A,0),4)))","v":"Load bearing fixing plate (10x23x150)"},null,null,null,null,null,{"$f":"INDIRECT(CONCATENATE(\"'AccessoriesMatrix_1'!\",ADDRESS(MATCH('Qbiss Accessories'!A27,AccessoriesMatrix_1!$A:$A,0),2)))","v":"pcs"}]
[null,null,{"$f":"INDIRECT(CONCATENATE(\"'AccessoriesMatrix_1'!\",ADDRESS(MATCH('Qbiss Accessories'!A27,AccessoriesMatrix_1!$A:$A,0),6)))","v":"The element is installed during facade installation.\nThe majority of plates are preinstalled on facade elements. Where it is not, needs to be ordered separately."}]
[{"$f":"_xlfn.IFNA(\nINDIRECT(\"AccessoriesMatrix_1!A\"&MATCH(\n\"Q8\",\nINDEX(AccessoriesMatrix_1!A:AF,\n0,MATCH('Qbiss One elements'!$M$10,AccessoriesMatrix_1!1:1,0)),0)),\"NV\")","v":30007109},{"$f":"INDIRECT(CONCATENATE(\"'AccessoriesMatrix_1'!\",ADDRESS(MATCH('Qbiss Accessories'!A29,AccessoriesMatrix_1!$A:$A,0),4)))","v":"Qbiss One Installation kit B\n"},null,null,null,null,null,{"$f":"INDIRECT(CONCATENATE(\"'AccessoriesMatrix_1'!\",ADDRESS(MATCH('Qbiss Accessories'!A29,AccessoriesMatrix_1!$A:$A,0),2)))","v":"pcs"}]
[null,null,{"$f":"INDIRECT(CONCATENATE(\"'AccessoriesMatrix_1'!\",ADDRESS(MATCH('Qbiss Accessories'!A29,AccessoriesMatrix_1!$A:$A,0),6)))","v":"1 pcs per order plus additional 1 pcs for each 500 m2"}]
[{"$f":"_xlfn.IFNA(\nINDIRECT(\"AccessoriesMatrix_1!A\"&MATCH(\n\"Q9\",\nINDEX(AccessoriesMatrix_1!A:AF,\n0,MATCH('Qbiss One elements'!$M$10,AccessoriesMatrix_1!1:1,0)),0)),\"NV\")","v":"NV"},{"$f":"INDIRECT(CONCATENATE(\"'AccessoriesMatrix_1'!\",ADDRESS(MATCH('Qbiss Accessories'!A31,AccessoriesMatrix_1!$A:$A,0),4)))","v":0},null,null,null,null,null,{"$f":"INDIRECT(CONCATENATE(\"'AccessoriesMatrix_1'!\",ADDRESS(MATCH('Qbiss Accessories'!A31,AccessoriesMatrix_1!$A:$A,0),2)))","v":0}]
[null,null,{"$f":"INDIRECT(CONCATENATE(\"'AccessoriesMatrix_1'!\",ADDRESS(MATCH('Qbiss Accessories'!A31,AccessoriesMatrix_1!$A:$A,0),6)))","v":0}]
[{"$f":"_xlfn.IFNA(\nINDIRECT(\"AccessoriesMatrix_1!A\"&MATCH(\n\"Q10\",\nINDEX(AccessoriesMatrix_1!A:AF,\n0,MATCH('Qbiss One elements'!$M$10,AccessoriesMatrix_1!1:1,0)),0)),\"NV\")","v":"NV"},{"$f":"INDIRECT(CONCATENATE(\"'AccessoriesMatrix_1'!\",ADDRESS(MATCH('Qbiss Accessories'!A33,AccessoriesMatrix_1!$A:$A,0),4)))","v":0},null,null,null,null,null,{"$f":"INDIRECT(CONCATENATE(\"'AccessoriesMatrix_1'!\",ADDRESS(MATCH('Qbiss Accessories'!A29,AccessoriesMatrix_1!$A:$A,0),2)))","v":"pcs"}]
[null,null,{"$f":"INDIRECT(CONCATENATE(\"'AccessoriesMatrix_1'!\",ADDRESS(MATCH('Qbiss Accessories'!A33,AccessoriesMatrix_1!$A:$A,0),6)))","v":0}]
[{"$f":"_xlfn.IFNA(\nINDIRECT(\"AccessoriesMatrix_1!A\"&MATCH(\n\"Q11\",\nINDEX(AccessoriesMatrix_1!A:AF,\n0,MATCH('Qbiss One elements'!$M$10,AccessoriesMatrix_1!1:1,0)),0)),\"NV\")","v":"NV"},{"$f":"INDIRECT(CONCATENATE(\"'AccessoriesMatrix_1'!\",ADDRESS(MATCH('Qbiss Accessories'!A35,AccessoriesMatrix_1!$A:$A,0),4)))","v":0},null,null,null,null,null,{"$f":"INDIRECT(CONCATENATE(\"'AccessoriesMatrix_1'!\",ADDRESS(MATCH('Qbiss Accessories'!A31,AccessoriesMatrix_1!$A:$A,0),2)))","v":0}]
[null,null,{"$f":"INDIRECT(CONCATENATE(\"'AccessoriesMatrix_1'!\",ADDRESS(MATCH('Qbiss Accessories'!A35,AccessoriesMatrix_1!$A:$A,0),6)))","v":0}]
["NOTE:"]

{"sheet":"Other Accessories","index":12,"n_rows":47,"n_cols":12,"rows_kept":47,"cut":false,"hidden":false,"merged":[[47,0,47,7],[33,2,35,4],[37,2,37,4],[39,2,39,4],[41,2,41,4],[43,2,43,4]]}
[null,null,null,null,"Other Accessories",null,null,{"$f":"\"version \"&LOOKUP(2,1/(UPDATES!A:A<>\"\"),UPDATES!A:A)","v":"version 2.6"}]
[]
[]
[null,null,null,null,null,"Revision:",{"$f":"IF('CUTTING LIST'!N4=\"Insert\",\"Insert text of first page\",'CUTTING LIST'!N4)","v":"Insert text of first page"}]
[null,null,null,"Project name:",{"$f":"IF('CUTTING LIST'!C9=\"INSERT TEXT\",\"Insert text on first page\",'CUTTING LIST'!C9)","v":"Insert text on first page"},"Date last saved:",{"$f":"'CUTTING LIST'!N1","v":"2025-09-04T15:08:46"}]
[null,null,null,"Customer name:",{"$f":"IF('CUTTING LIST'!C10=\"INSERT TEXT\",\"Insert text on first page\",'CUTTING LIST'!C10)","v":"Insert text on first page"},"Last saved by:",{"$f":"'CUTTING LIST'!N2","v":"Matej Jereb"}]
[null,null,null,"Customer order no:",{"$f":"IF('CUTTING LIST'!C11=\"INSERT TEXT\",\"Insert text on first page\",'CUTTING LIST'!C11)","v":"Insert text on first page"},"Cutting list number:",{"$f":"IF('CUTTING LIST'!N3=\"Insert\",\"Insert text on first page\",'CUTTING LIST'!N3)","v":"Insert text on first page"}]
[]
[]
[null,null,null,null,null,null,null,"Note: Trimo scope of supply to be aligned with the commercial quotation."]
["Long fixation screw ",null,null,null,null,null,null,"(wind-load)"]
["Qbiss Thickness (T)\n[mm]","Substructure Thickness [mm]","Screw Type","Place of installation 1)","Screw (select)","Screw ID","QTY","Unit"]
[null,null,null,null,null,{"$f":"IFERROR(\n_xlfn.IFNA(\nINDEX('Fixing material data'!J:J,MATCH(E13,'Fixing material data'!K:K,0)),\n_xlfn.IFNA(\nINDEX('Fixing material data'!L:L,MATCH(E13,'Fixing material data'!M:M,0)),\nINDEX('Fixing material data'!N:N,MATCH(E13,'Fixing material data'!O:O,0))\n)),\"\")","v":""},null,"pcs",{"$f":"IF(C13=\"Self-drilling\",B13&A13&D13,\"not relevant\"&A13&D13)","v":"not relevant"},{"$f":"IF(IFERROR(IF(C13=\"Self-drilling\",VLOOKUP(I13,'Fixing material data'!$A$18:$F$319,5,FALSE),VLOOKUP(I13,'Fixing material data'!$I$19:$O$51,5,FALSE)),\"\")=0,\"\",IFERROR(IF(C13=\"Self-drilling\",VLOOKUP(I13,'Fixing material data'!$A$18:$F$319,5,FALSE),VLOOKUP(I13,'Fixing material data'!$I$19:$O$51,5,FALSE)),\"\"))","v":""},{"$f":"IF(IFERROR(IF(C13=\"Self-drilling\",VLOOKUP(I13,'Fixing material data'!$A$18:$F$319,6,FALSE),VLOOKUP(I13,'Fixing material data'!$I$19:$O$51,7,FALSE)),\"\")=0,\"\",IFERROR(IF(C13=\"Self-drilling\",VLOOKUP(I13,'Fixing material data'!$A$18:$F$319,6,FALSE),VLOOKUP(I13,'Fixing material data'!$I$19:$O$51,7,FALSE)),\"\"))","v":""},{"$f":"IF(ISNUMBER(SEARCH(\"SFS\", E13)), \"Available on special request!\", \"\")","v":""}]
[null,null,null,null,null,{"$f":"IFERROR(\n_xlfn.IFNA(\nINDEX('Fixing material data'!J:J,MATCH(E14,'Fixing material data'!K:K,0)),\n_xlfn.IFNA(\nINDEX('Fixing material data'!L:L,MATCH(E14,'Fixing material data'!M:M,0)),\nINDEX('Fixing material data'!N:N,MATCH(E14,'Fixing material data'!O:O,0))\n)),\"\")","v":""},null,"pcs",{"$f":"IF(C14=\"Self-drilling\",B14&A14&D14,\"not relevant\"&A14&D14)","v":"not relevant"},{"$f":"IF(IFERROR(IF(C14=\"Self-drilling\",VLOOKUP(I14,'Fixing material data'!$A$18:$F$319,5,FALSE),VLOOKUP(I14,'Fixing material data'!$I$19:$O$51,5,FALSE)),\"\")=0,\"\",IFERROR(IF(C14=\"Self-drilling\",VLOOKUP(I14,'Fixing material data'!$A$18:$F$319,5,FALSE),VLOOKUP(I14,'Fixing material data'!$I$19:$O$51,5,FALSE)),\"\"))","v":""},{"$f":"IF(IFERROR(IF(C14=\"Self-drilling\",VLOOKUP(I14,'Fixing material data'!$A$18:$F$319,6,FALSE),VLOOKUP(I14,'Fixing material data'!$I$19:$O$51,7,FALSE)),\"\")=0,\"\",IFERROR(IF(C14=\"Self-drilling\",VLOOKUP(I14,'Fixing material data'!$A$18:$F$319,6,FALSE),VLOOKUP(I14,'Fixing material data'!$I$19:$O$51,7,FALSE)),\"\"))","v":""},{"$f":"IF(ISNUMBER(SEARCH(\"SFS\", E14)), \"Available on special request!\", \"\")","v":""}]
[null,null,null,null,null,{"$f":"IFERROR(\n_xlfn.IFNA(\nINDEX('Fixing material data'!J:J,MATCH(E15,'Fixing material data'!K:K,0)),\n_xlfn.IFNA(\nINDEX('Fixing material data'!L:L,MATCH(E15,'Fixing material data'!M:M,0)),\nINDEX('Fixing material data'!N:N,MATCH(E15,'Fixing material data'!O:O,0))\n)),\"\")","v":""},null,"pcs","not relevant",{"$f":"IF(IFERROR(IF(C15=\"Self-drilling\",VLOOKUP(I15,'Fixing material data'!$A$18:$F$319,5,FALSE),VLOOKUP(I15,'Fixing material data'!$I$19:$O$51,5,FALSE)),\"\")=0,\"\",IFERROR(IF(C15=\"Self-drilling\",VLOOKUP(I15,'Fixing material data'!$A$18:$F$319,5,FALSE),VLOOKUP(I15,'Fixing material data'!$I$19:$O$51,5,FALSE)),\"\"))","v":""},{"$f":"IF(IFERROR(IF(C15=\"Self-drilling\",VLOOKUP(I15,'Fixing material data'!$A$18:$F$319,6,FALSE),VLOOKUP(I15,'Fixing material data'!$I$19:$O$51,7,FALSE)),\"\")=0,\"\",IFERROR(IF(C15=\"Self-drilling\",VLOOKUP(I15,'Fixing material data'!$A$18:$F$319,6,FALSE),VLOOKUP(I15,'Fixing material data'!$I$19:$O$51,7,FALSE)),\"\"))","v":""},""]
[null,null,null,null,null,{"$f":"IFERROR(\n_xlfn.IFNA(\nINDEX('Fixing material data'!J:J,MATCH(E16,'Fixing material data'!K:K,0)),\n_xlfn.IFNA(\nINDEX('Fixing material data'!L:L,MATCH(E16,'Fixing material data'!M:M,0)),\nINDEX('Fixing material data'!N:N,MATCH(E16,'Fixing material data'!O:O,0))\n)),\"\")","v":""},null,"pcs","not relevant",{"$f":"IF(IFERROR(IF(C16=\"Self-drilling\",VLOOKUP(I16,'Fixing material data'!$A$18:$F$319,5,FALSE),VLOOKUP(I16,'Fixing material data'!$I$19:$O$51,5,FALSE)),\"\")=0,\"\",IFERROR(IF(C16=\"Self-drilling\",VLOOKUP(I16,'Fixing material data'!$A$18:$F$319,5,FALSE),VLOOKUP(I16,'Fixing material data'!$I$19:$O$51,5,FALSE)),\"\"))","v":""},{"$f":"IF(IFERROR(IF(C16=\"Self-drilling\",VLOOKUP(I16,'Fixing material data'!$A$18:$F$319,6,FALSE),VLOOKUP(I16,'Fixing material data'!$I$19:$O$51,7,FALSE)),\"\")=0,\"\",IFERROR(IF(C16=\"Self-drilling\",VLOOKUP(I16,'Fixing material data'!$A$18:$F$319,6,FALSE),VLOOKUP(I16,'Fixing material data'!$I$19:$O$51,7,FALSE)),\"\"))","v":""},""]
[]
["1) Place of installation options:"]
[]
[]
[]
[]
["Short fixation screw through internal steel sheet ",null,null,null,null,null,null,"(self-weight)"]
["Code of fixing screw","Name of fixing screw",null,null,"Drill capacity",null,"QTY","Unit"]
[30036761,"SCREW SFS-SX5/8-5,5x31",null,null,"1,5 mm - 2 mm",null,null,"pcs"]
[30024305,"SCREW EJOT JT3-6-6,3x25",null,null,"2 mm - 5 mm",null,null,"pcs"]
[30036018,"SCREW EJOT JT2-18-5,5-40",null,null,"4 mm - 16 mm",null,null,"pcs"]
[]
[]
[]
["Other Accessories"]
["ID","Name",null,null,null,null,"QTY","Unit"]
[{"$f":"_xlfn.IFNA(\nINDIRECT(\"AccessoriesMatrix_1!A\"&MATCH(\n\"O1\",\nINDEX(AccessoriesMatrix_1!A:AF,\n0,MATCH('Qbiss One elements'!$M$10,AccessoriesMatrix_1!1:1,0)),0)),\"NV\")","v":30025812},{"$f":"INDIRECT(CONCATENATE(\"'AccessoriesMatrix_1'!\",ADDRESS(MATCH(A33,AccessoriesMatrix_1!$A:$A,0),4)))","v":"ADHESIVE 600 ml, EPDM, BLACK (foil pack)"},null,null,null,"Colour: Black (30025812)",null,{"$f":"INDIRECT(CONCATENATE(\"'AccessoriesMatrix_1'!\",ADDRESS(MATCH(A33,AccessoriesMatrix_1!$A:$A,0),2)))","v":"pcs"}]
[null,null,{"$f":"INDIRECT(CONCATENATE(\"'AccessoriesMatrix_1'!\",ADDRESS(MATCH(A33,AccessoriesMatrix_1!$A:$A,0),6)))","v":"The element is installed during facade installation.\nConsumption: \napprox. 1 pcs/20 m or approx. 1 pcs/100 elements."},null,null,"Colour: Grey (30025811)",null,{"$f":"INDIRECT(CONCATENATE(\"'AccessoriesMatrix_1'!\",ADDRESS(MATCH(A33,AccessoriesMatrix_1!$A:$A,0),2)))","v":"pcs"}]
[null,null,null,null,null,"Colour: White (30024863)",null,{"$f":"INDIRECT(CONCATENATE(\"'AccessoriesMatrix_1'!\",ADDRESS(MATCH(A33,AccessoriesMatrix_1!$A:$A,0),2)))","v":"pcs"}]
[]
[{"$f":"_xlfn.IFNA(\nINDIRECT(\"AccessoriesMatrix_1!A\"&MATCH(\n\"O2\",\nINDEX(AccessoriesMatrix_1!A:AF,\n0,MATCH('Qbiss One elements'!$M$10,AccessoriesMatrix_1!1:1,0)),0)),\"NV\")","v":30006985},{"$f":"INDIRECT(CONCATENATE(\"'AccessoriesMatrix_1'!\",ADDRESS(MATCH(A37,AccessoriesMatrix_1!$A:$A,0),4)))","v":"Sealing tape (PE 5x10)"},null,null,null,null,null,{"$f":"INDIRECT(CONCATENATE(\"'AccessoriesMatrix_1'!\",ADDRESS(MATCH(A37,AccessoriesMatrix_1!$A:$A,0),2)))","v":"m"}]
[null,null,{"$f":"INDIRECT(CONCATENATE(\"'AccessoriesMatrix_1'!\",ADDRESS(MATCH(A37,AccessoriesMatrix_1!$A:$A,0),6)))","v":"The element is installed before facade installation.\nIts main purpouse is to assure air- and vapour-tightness."}]
[{"$f":"_xlfn.IFNA(\nINDIRECT(\"AccessoriesMatrix_1!A\"&MATCH(\n\"O3\",\nINDEX(AccessoriesMatrix_1!A:AF,\n0,MATCH('Qbiss One elements'!$M$10,AccessoriesMatrix_1!1:1,0)),0)),\"NV\")","v":30007182},{"$f":"INDIRECT(CONCATENATE(\"'AccessoriesMatrix_1'!\",ADDRESS(MATCH(A39,AccessoriesMatrix_1!$A:$A,0),4)))","v":"ADHESIVE 300 ml, Silicone (DC7091)"},null,null,null,null,null,{"$f":"INDIRECT(CONCATENATE(\"'AccessoriesMatrix_1'!\",ADDRESS(MATCH(A39,AccessoriesMatrix_1!$A:$A,0),2)))","v":"pcs"}]
[null,null,{"$f":"INDIRECT(CONCATENATE(\"'AccessoriesMatrix_1'!\",ADDRESS(MATCH(A39,AccessoriesMatrix_1!$A:$A,0),6)))","v":"The element is installed during facade installation.\nOnly used to prolongate silicone transversal gaskets."}]
[{"$f":"_xlfn.IFNA(\nINDIRECT(\"AccessoriesMatrix_1!A\"&MATCH(\n\"O4\",\nINDEX(AccessoriesMatrix_1!A:AF,\n0,MATCH('Qbiss One elements'!$M$10,AccessoriesMatrix_1!1:1,0)),0)),\"NV\")","v":"NV"},{"$f":"INDIRECT(CONCATENATE(\"'AccessoriesMatrix_1'!\",ADDRESS(MATCH(A41,AccessoriesMatrix_1!$A:$A,0),4)))","v":0},null,null,null,null,null,{"$f":"INDIRECT(CONCATENATE(\"'AccessoriesMatrix_1'!\",ADDRESS(MATCH(A41,AccessoriesMatrix_1!$A:$A,0),2)))","v":0}]
[null,null,{"$f":"INDIRECT(CONCATENATE(\"'AccessoriesMatrix_1'!\",ADDRESS(MATCH(A41,AccessoriesMatrix_1!$A:$A,0),6)))","v":0}]
[{"$f":"_xlfn.IFNA(\nINDIRECT(\"AccessoriesMatrix_1!A\"&MATCH(\n\"O5\",\nINDEX(AccessoriesMatrix_1!A:AF,\n0,MATCH('Qbiss One elements'!$M$10,AccessoriesMatrix_1!1:1,0)),0)),\"NV\")","v":"NV"},{"$f":"INDIRECT(CONCATENATE(\"'AccessoriesMatrix_1'!\",ADDRESS(MATCH(A43,AccessoriesMatrix_1!$A:$A,0),4)))","v":0},null,null,null,null,null,{"$f":"INDIRECT(CONCATENATE(\"'AccessoriesMatrix_1'!\",ADDRESS(MATCH(A43,AccessoriesMatrix_1!$A:$A,0),2)))","v":0}]
[null,null,{"$f":"INDIRECT(CONCATENATE(\"'AccessoriesMatrix_1'!\",ADDRESS(MATCH(A43,AccessoriesMatrix_1!$A:$A,0),6)))","v":0}]
[]
[]
["NOTE:"]

{"sheet":"FAQ","index":13,"n_rows":4,"n_cols":2,"rows_kept":4,"cut":false,"hidden":false,"merged":[[2,0,2,1]]}
["FAQ - Frequently asked questions",{"$f":"\"version \"&LOOKUP(2,1/(UPDATES!A:A<>\"\"),UPDATES!A:A)","v":"version 2.6"}]
[]
["1) When I open this file, I get warning that for security reason macros were blocked. File does not work ok. \n     How can I unblock macros and get fully functional file?"]
["In case you have set heigh security setings on your computer, all macros are blocked by default. You will need manually allow macros for this file. Please follow below steps to do that."]

{"sheet":"Fixing material data","index":14,"n_rows":319,"n_cols":16,"rows_kept":319,"cut":false,"hidden":true,"merged":[[0,2,0,9]]}
[null,null,"FIXING MATERIAL"]
[]
[null,"Thickness_of_substructure","Thickness_Of_Qbiss_One","Type_of_fixation","Thickness_of_substructure_tapping",null,"Fixing_method"]
[]
[null,1.5,80,"Self-drilling","not relevant",null,"X - through joint"]
[null,1.75,100,"Self-tapping",null,null,"Y - through element"]
[null,2,120,null,null,null,"Z - through longitudinal joint"]
[null,2.5,133]
[null,3,150]
[null,4,172]
[null,5,200]
[null,6,220]
[null,8,240]
[null,10,250]
[]
[null,"SELF-Drilling",null,null,null,null,null,null,null,"SELF-tapping"]
[null,"Thickness_of_Qbiss_One_element_data","Thickness_of_substructure_data","Code_of_fixing_screw_data","Name_of_fixing_screw_data","SFS option","TYP of fixing",null,null,"Thickness_of_Qbiss_One_element_data_tapping","Thickness_of_substructure_data_tapping","Code_of_fixing_screw_data_tapping","Name_of_fixing_screw_data_tapping","SFS ID","SFS Option","TYP of fixing"]
[{"$f":"C18&B18&G18","v":"1,580X - through joint"},80,1.5,{"$f":"VLOOKUP(B18,$I$63:$P$74,IF(C18>4,4,2),FALSE)","v":"30023341"},{"$f":"VLOOKUP(B18,$I$63:$P$74,IF(C18>4,5,3),FALSE)","v":"EJOT JT3-6-5,5x 70"},{"$f":"VLOOKUP(B18,$I$79:$P$90,IF(C18>5,5,3),FALSE)","v":"SFS SX5-5,5×78 (A2)"},"X - through joint"]
["1,7580X - through joint",80,1.75,"30023341","EJOT JT3-6-5,5x 70","SFS SX5-5,5×78 (A2)","X - through joint",null,{"$f":"K19&J19&P19","v":"not relevant80X - through joint"},80,"not relevant","30025142","EJOT JZ3 6,3x 64",{"$f":"VLOOKUP(O19,$O$61:$P$114,2,FALSE)","v":"N/D"},"SFS TDB-S-6,3x60","X - through joint"]
["280X - through joint",80,2,"30023341","EJOT JT3-6-5,5x 70","SFS SX5-5,5×78 (A2)","X - through joint",null,{"$f":"K20&J20&P20","v":"not relevant100X - through joint"},100,"not relevant","30025146","EJOT JZ3 6,3x 90","N/D","SFS TDB-S-6,3x80","X - through joint"]
["2,580X - through joint",80,2.5,"30023341","EJOT JT3-6-5,5x 70","SFS SX5-5,5×78 (A2)","X - through joint",null,"not relevant120X - through joint",120,"not relevant","30025247","EJOT JZ3 6,3x115","N/D","SFS TDB-S-6,3x100","X - through joint"]
["380X - through joint",80,3,"30023341","EJOT JT3-6-5,5x 70","SFS SX5-5,5×78 (A2)","X - through joint",null,"not relevant133X - through joint",133,"not relevant","30025136","EJOT JZ3 6,3x125","N/D","SFS TDB-S-6,3x100","X - through joint"]
["480X - through joint",80,4,"30023341","EJOT JT3-6-5,5x 70","SFS SX5-5,5×78 (A2)","X - through joint",null,"not relevant150X - through joint",150,"not relevant","30025138","EJOT JZ3 6,3x150","N/D","SFS TDB-S-6,3x120","X - through joint"]
["580X - through joint",80,5,"30023751","EJOT JT3-12-5,5x 78","SFS SX5-5,5×78 (A2)","X - through joint",null,"not relevant172X - through joint",172,"not relevant","30025140","EJOT JZ3 6,3x175","N/D","SFS TDB-S-6,3x140","X - through joint"]
["680X - through joint",80,6,"30023751","EJOT JT3-12-5,5x 78","SFS SX16-5,8×90 (A4)","X - through joint",null,"not relevant200X - through joint",200,"not relevant","30025262","EJOT JZ3 6,3x200","N/D","SFS TDB-S-6,3x180","X - through joint"]
["880X - through joint",80,8,"30023751","EJOT JT3-12-5,5x 78","SFS SX16-5,8×90 (A4)","X - through joint",null,"not relevant220X - through joint",220,"not relevant","30028705","EJOT JZ3 6,3x220","N/D","SFS TDB-S-6,3x200","X - through joint"]
["1080X - through joint",80,10,"30023751","EJOT JT3-12-5,5x 78","SFS SX16-5,8×90 (A4)","X - through joint",null,"not relevant240X - through joint",240,"not relevant","30028705","EJOT JZ3 6,3x220","N/D","SFS TDB-S-6,3x220","X - through joint"]
["1,5100X - through joint",100,1.5,"30023413","EJOT JT3-6-5,5x 90","SFS SX5-6,3×100 (A4)","X - through joint",null,"not relevant250X - through joint",250,"not relevant","30028705","EJOT JZ3 6,3x220","N/D","SFS TDB-S-6,3x220","X - through joint"]
["1,75100X - through joint",100,1.75,"30023413","EJOT JT3-6-5,5x 90","SFS SX5-6,3×100 (A4)","X - through joint"]
["2100X - through joint",100,2,"30023413","EJOT JT3-6-5,5x 90","SFS SX5-6,3×100 (A4)","X - through joint"]
["2,5100X - through joint",100,2.5,"30023413","EJOT JT3-6-5,5x 90","SFS SX5-6,3×100 (A4)","X - through joint",null,{"$f":"K31&J31&P31","v":"not relevant80Y - through element"},80,"not relevant","30025246","SCREW JZ3 6,3x100 E19",{"$f":"VLOOKUP(O31,$O$61:$P$114,2,FALSE)","v":"N/D"},"SFS TDB-S-S19-6,3x100","Y - through element"]
["3100X - through joint",100,3,"30023413","EJOT JT3-6-5,5x 90","SFS SX5-6,3×100 (A4)","X - through joint",null,{"$f":"K32&J32&P32","v":"not relevant100Y - through element"},100,"not relevant","30025137","SCREW JZ3 6,3x125 E19","N/D","SFS TDB-S-S19-6,3x120","Y - through element"]
["4100X - through joint",100,4,"30023413","EJOT JT3-6-5,5x 90","SFS SX5-6,3×100 (A4)","X - through joint",null,"not relevant120Y - through element",120,"not relevant","30025139","SCREW JZ3 6,3x150 E19","N/D","SFS TDB-S-S19-6,3x140","Y - through element"]
["5100X - through joint",100,5,"30023757","EJOT JT3-12-5,5x 98","SFS SX5-6,3×100 (A4)","X - through joint",null,"not relevant133Y - through element",133,"not relevant","30024291","SCREW JZ3 6,3x175 E19","N/D","SFS TDB-S-S19-6,3x160","Y - through element"]
["6100X - through joint",100,6,"30023757","EJOT JT3-12-5,5x 98","SFS SX16-5,8×110 (A4)","X - through joint",null,"not relevant150Y - through element",150,"not relevant","30024291","SCREW JZ3 6,3x175 E19","N/D","SFS TDB-S-S19-6,3x180","Y - through element"]
["8100X - through joint",100,8,"30023757","EJOT JT3-12-5,5x 98","SFS SX16-5,8×110 (A4)","X - through joint",null,"not relevant172Y - through element",172,"not relevant","30025261","SCREW JZ3 6,3x200 E19","N/D","SFS TDB-S-S19-6,3x200","Y - through element"]
["10100X - through joint",100,10,"30023757","EJOT JT3-12-5,5x 98","SFS SX16-5,8×110 (A4)","X - through joint",null,"not relevant200Y - through element",200,"not relevant","30025935","SCREW JZ3 6,3x220 E19","N/D","SFS TDB-S-S19-6,3x220","Y - through element"]
["1,5120X - through joint",120,1.5,"30023414","EJOT JT3-6-5,5x110","SFS SX5-6,3×120 (A4)","X - through joint",null,{"$f":"K38&J38&P38","v":"not relevant220Y - through element"},220,"not relevant","30025333","SCREW JZ3 6,3x270 E19","N/D","SFS TDB-S-S19-6,3x260","Y - through element"]
["1,75120X - through joint",120,1.75,"30023414","EJOT JT3-6-5,5x110","SFS SX5-6,3×120 (A4)","X - through joint",null,{"$f":"K39&J39&P39","v":"not relevant240Y - through element"},240,"not relevant","30025333","SCREW JZ3 6,3x270 E19","N/D","SFS TDB-S-S19-6,3x260","Y - through element"]
["2120X - through joint",120,2,"30023414","EJOT JT3-6-5,5x110","SFS SX5-6,3×120 (A4)","X - through joint",null,{"$f":"K40&J40&P40","v":"not relevant250Y - through element"},250,"not relevant","30025333","SCREW JZ3 6,3x270 E19","N/D","SFS TDB-S-S19-6,3x260","Y - through element"]
["2,5120X - through joint",120,2.5,"30023414","EJOT JT3-6-5,5x110","SFS SX5-6,3×120 (A4)","X - through joint"]
["3120X - through joint",120,3,"30023414","EJOT JT3-6-5,5x110","SFS SX5-6,3×120 (A4)","X - through joint",null,{"$f":"K42&J42&P42","v":"not relevant80Z - through longitudinal joint"},80,"not relevant","30024250","SCREW JZ3 6,3x 80 E19",{"$f":"VLOOKUP(O42,$O$61:$P$114,2,FALSE)","v":"N/D"},"SFS TDB-S-S19-6,3x80","Z - through longitudinal joint"]
["4120X - through joint",120,4,"30023414","EJOT JT3-6-5,5x110","SFS SX5-6,3×120 (A4)","X - through joint",null,{"$f":"K43&J43&P43","v":"not relevant100Z - through longitudinal joint"},100,"not relevant","30025145","SCREW JZ3 6,3x 90 E19","N/D","SFS TDB-S-S19-6,3x100","Z - through longitudinal joint"]
["5120X - through joint",120,5,"30023591","EJOT JT3-12-5,5x118","SFS SX5-6,3×120 (A4)","X - through joint",null,"not relevant120Z - through longitudinal joint",120,"not relevant","30025248","SCREW JZ3 6,3x115 E19","N/D","SFS TDB-S-S19-6,3x120","Z - through longitudinal joint"]
["6120X - through joint",120,6,"30023591","EJOT JT3-12-5,5x118","SFS SX16-5,8×130 (A4)","X - through joint",null,"not relevant133Z - through longitudinal joint",133,"not relevant","30025137","SCREW JZ3 6,3x125 E19","N/D","SFS TDB-S-S19-6,3x140","Z - through longitudinal joint"]
["8120X - through joint",120,8,"30023591","EJOT JT3-12-5,5x118","SFS SX16-5,8×130 (A4)","X - through joint",null,"not relevant150Z - through longitudinal joint",150,"not relevant","30025139","SCREW JZ3 6,3x150 E19","N/D","SFS TDB-S-S19-6,3x160","Z - through longitudinal joint"]
["10120X - through joint",120,10,"30023591","EJOT JT3-12-5,5x118","SFS SX16-5,8×130 (A4)","X - through joint",null,"not relevant172Z - through longitudinal joint",172,"not relevant","30024291","SCREW JZ3 6,3x175 E19","N/D","SFS TDB-S-S19-6,3x180","Z - through longitudinal joint"]
["1,5133X - through joint",133,1.5,"30023416","EJOT JT3-6-5,5x130","SFS SX5-6,3×120 (A4)","X - through joint",null,"not relevant200Z - through longitudinal joint",200,"not relevant","30025261","SCREW JZ3 6,3x200 E19","N/D","SFS TDB-S-S19-6,3x200","Z - through longitudinal joint"]
["1,75133X - through joint",133,1.75,"30023416","EJOT JT3-6-5,5x130","SFS SX5-6,3×120 (A4)","X - through joint",null,"not relevant220Z - through longitudinal joint",220,"not relevant","30025935","SCREW JZ3 6,3x220 E19","N/D","SFS TDB-S-S19-6,3x220","Z - through longitudinal joint"]
[{"$f":"C50&B50&G50","v":"2133X - through joint"},133,2,"30023416","EJOT JT3-6-5,5x130","SFS SX5-6,3×120 (A4)","X - through joint",null,"not relevant240Z - through longitudinal joint",240,"not relevant","30025333","SCREW JZ3 6,3x270 E19","N/D","SFS TDB-S-S19-6,3x260","Z - through longitudinal joint"]
["2,5133X - through joint",133,2.5,"30023416","EJOT JT3-6-5,5x130","SFS SX5-6,3×120 (A4)","X - through joint",null,"not relevant250Z - through longitudinal joint",250,"not relevant","30025333","SCREW JZ3 6,3x270 E19","N/D","SFS TDB-S-S19-6,3x260","Z - through longitudinal joint"]
["3133X - through joint",133,3,"30023416","EJOT JT3-6-5,5x130","SFS SX5-6,3×120 (A4)","X - through joint"]
["4133X - through joint",133,4,"30023416","EJOT JT3-6-5,5x130","SFS SX5-6,3×120 (A4)","X - through joint"]
["5133X - through joint",133,5,"30023592","EJOT JT3-12-5,5x138","SFS SX5-6,3×120 (A4)","X - through joint"]
["6133X - through joint",133,6,"30023592","EJOT JT3-12-5,5x138","SFS SX16-5,8×150 (A4)","X - through joint"]
["8133X - through joint",133,8,"30023592","EJOT JT3-12-5,5x138","SFS SX16-5,8×150 (A4)","X - through joint"]
["10133X - through joint",133,10,"30023592","EJOT JT3-12-5,5x138","SFS SX16-5,8×150 (A4)","X - through joint"]
["1,5150X - through joint",150,1.5,"30023416","EJOT JT3-6-5,5x130","SFS SX5-6,3×160 (A4)","X - through joint"]
["1,75150X - through joint",150,1.75,"30023416","EJOT JT3-6-5,5x130","SFS SX5-6,3×160 (A4)","X - through joint"]
["2150X - through joint",150,2,"30023416","EJOT JT3-6-5,5x130","SFS SX5-6,3×160 (A4)","X - through joint"]
["2,5150X - through joint",150,2.5,"30023416","EJOT JT3-6-5,5x130","SFS SX5-6,3×160 (A4)","X - through joint",null,null,null,null,null,null,null,"SFS TDB-S-6,3x60","N/D"]
["3150X - through joint",150,3,"30023416","EJOT JT3-6-5,5x130","SFS SX5-6,3×160 (A4)","X - through joint",null,"EJOT",null,null,null,null,null,"SFS TDB-S-6,3x80","N/D"]
["4150X - through joint",150,4,"30023416","EJOT JT3-6-5,5x130","SFS SX5-6,3×160 (A4)","X - through joint",null,null,"Tip pritrjevanja X (čez spoj)",null,null,null,null,"SFS TDB-S-6,3x100","N/D"]
["5150X - through joint",150,5,"30023592","EJOT JT3-12-5,5x138","SFS SX5-6,3×160 (A4)","X - through joint",null,null,"Do debeline 4mm",null,"nad debelino 4mm",null,null,"SFS TDB-S-6,3x100","N/D"]
["6150X - through joint",150,6,"30023592","EJOT JT3-12-5,5x138","SFS SX16-5,8×170 (A4)","X - through joint",null,80,"30023341","EJOT JT3-6-5,5x 70","30023751","EJOT JT3-12-5,5x 78",null,"SFS TDB-S-6,3x120","N/D"]
["8150X - through joint",150,8,"30023592","EJOT JT3-12-5,5x138","SFS SX16-5,8×170 (A4)","X - through joint",null,100,"30023413","EJOT JT3-6-5,5x 90","30023757","EJOT JT3-12-5,5x 98",null,"SFS TDB-S-6,3x140","N/D"]
["10150X - through joint",150,10,"30023592","EJOT JT3-12-5,5x138","SFS SX16-5,8×170 (A4)","X - through joint",null,120,"30023414","EJOT JT3-6-5,5x110","30023591","EJOT JT3-12-5,5x118",null,"SFS TDB-S-6,3x180","N/D"]
["1,5172X - through joint",172,1.5,"30023468","EJOT JT3-6-5,5x150","SFS SX5-6,3×160 (A4)","X - through joint",null,133,"30023416","EJOT JT3-6-5,5x130","30023592","EJOT JT3-12-5,5x138",null,"SFS TDB-S-6,3x200","N/D"]
["1,75172X - through joint",172,1.75,"30023468","EJOT JT3-6-5,5x150","SFS SX5-6,3×160 (A4)","X - through joint",null,150,"30023416","EJOT JT3-6-5,5x130","30023592","EJOT JT3-12-5,5x138",null,"SFS TDB-S-6,3x220","N/D"]
["2172X - through joint",172,2,"30023468","EJOT JT3-6-5,5x150","SFS SX5-6,3×160 (A4)","X - through joint",null,172,"30023468","EJOT JT3-6-5,5x150","30023410","EJOT JT3-12-5,5x158"]
["2,5172X - through joint",172,2.5,"30023468","EJOT JT3-6-5,5x150","SFS SX5-6,3×160 (A4)","X - through joint",null,200,"30023607","EJOT JT3-6-5,5x190","30023758","EJOT JT3-12-5,5x198",null,"SFS TDB-S-S19-6,3x80","N/D"]
["3172X - through joint",172,3,"30023468","EJOT JT3-6-5,5x150","SFS SX5-6,3×160 (A4)","X - through joint",null,220,"30023820","EJOT JT3-D-6H-5,5/6,3 x 237","30024059","EJOT JT3-D-12H-5,5/6,6x245",null,"SFS TDB-S-S19-6,3x100","N/D"]
["4172X - through joint",172,4,"30023468","EJOT JT3-6-5,5x150","SFS SX5-6,3×160 (A4)","X - through joint",null,240,"30023820","EJOT JT3-D-6H-5,5/6,3 x 237","30024059","EJOT JT3-D-12H-5,5/6,6x245",null,"SFS TDB-S-S19-6,3x120","N/D"]
["5172X - through joint",172,5,"30023410","EJOT JT3-12-5,5x158","SFS SX5-6,3×160 (A4)","X - through joint",null,250,"30023820","EJOT JT3-D-6H-5,5/6,3 x 237","30024059","EJOT JT3-D-12H-5,5/6,6x245",null,"SFS TDB-S-S19-6,3x140","N/D"]
["6172X - through joint",172,6,"30023410","EJOT JT3-12-5,5x158","SFS SX16-5,8×200 (A4)","X - through joint",null,null,null,null,null,null,null,"SFS TDB-S-S19-6,3x160","N/D"]
["8172X - through joint",172,8,"30023410","EJOT JT3-12-5,5x158","SFS SX16-5,8×200 (A4)","X - through joint",null,null,null,null,null,null,null,"SFS TDB-S-S19-6,3x180","N/D"]
["10172X - through joint",172,10,"30023410","EJOT JT3-12-5,5x158","SFS SX16-5,8×200 (A4)","X - through joint",null,null,null,null,null,null,null,"SFS TDB-S-S19-6,3x200","N/D"]
["1,5200X - through joint",200,1.5,"30023607","EJOT JT3-6-5,5x190","SFS SX5-6,3×190 (A4)","X - through joint",null,"SFS",null,null,null,null,null,"SFS TDB-S-S19-6,3x220","N/D"]
["1,75200X - through joint",200,1.75,"30023607","EJOT JT3-6-5,5x190","SFS SX5-6,3×190 (A4)","X - through joint",null,null,"Tip pritrjevanja X (čez spoj)",null,null,null,null,"SFS TDB-S-S19-6,3x260","N/D"]
["2200X - through joint",200,2,"30023607","EJOT JT3-6-5,5x190","SFS SX5-6,3×190 (A4)","X - through joint",null,null,"Do debeline 5mm",null,"nad debelino 5mm"]
["2,5200X - through joint",200,2.5,"30023607","EJOT JT3-6-5,5x190","SFS SX5-6,3×190 (A4)","X - through joint",null,80,{"$f":"VLOOKUP(K81,$O$61:$P$114,2,FALSE)","v":"N/D"},"SFS SX5-5,5×78 (A2)",{"$f":"VLOOKUP(M81,$O$61:$P$114,2,FALSE)","v":"N/D"},"SFS SX16-5,8×90 (A4)",null,"SFS SX5-5,5×78 (A2)","N/D"]
[{"$f":"C82&B82&G82","v":"3200X - through joint"},200,3,{"$f":"VLOOKUP(B82,$I$63:$P$74,IF(C82>4,4,2),FALSE)","v":"30023607"},{"$f":"VLOOKUP(B82,$I$63:$P$74,IF(C82>4,5,3),FALSE)","v":"EJOT JT3-6-5,5x190"},{"$f":"VLOOKUP(B82,$I$79:$P$90,IF(C82>5,5,3),FALSE)","v":"SFS SX5-6,3×190 (A4)"},"X - through joint",null,100,{"$f":"VLOOKUP(K82,$O$61:$P$114,2,FALSE)","v":"N/D"},"SFS SX5-6,3×100 (A4)","N/D","SFS SX16-5,8×110 (A4)",null,"SFS SX5-6,3×100 (A4)","N/D"]
["4200X - through joint",200,4,"30023607","EJOT JT3-6-5,5x190","SFS SX5-6,3×190 (A4)","X - through joint",null,120,"N/D","SFS SX5-6,3×120 (A4)","N/D","SFS SX16-5,8×130 (A4)",null,"SFS SX5-6,3×120 (A4)","N/D"]
["5200X - through joint",200,5,"30023758","EJOT JT3-12-5,5x198","SFS SX5-6,3×190 (A4)","X - through joint",null,133,"N/D","SFS SX5-6,3×120 (A4)","N/D","SFS SX16-5,8×150 (A4)",null,"SFS SX5-6,3×160 (A4)","N/D"]
["6200X - through joint",200,6,"30023758","EJOT JT3-12-5,5x198","SFS SX16-5,8×230 (A4)","X - through joint",null,150,{"$f":"VLOOKUP(K85,$O$61:$P$114,2,FALSE)","v":"N/D"},"SFS SX5-6,3×160 (A4)","N/D","SFS SX16-5,8×170 (A4)",null,"SFS SX5-6,3×190 (A4)","N/D"]
["8200X - through joint",200,8,"30023758","EJOT JT3-12-5,5x198","SFS SX16-5,8×230 (A4)","X - through joint",null,172,"N/D","SFS SX5-6,3×160 (A4)","N/D","SFS SX16-5,8×200 (A4)",null,"SFS SX5-6,3×220 (A4)","N/D"]
["10200X - through joint",200,10,"30023758","EJOT JT3-12-5,5x198","SFS SX16-5,8×230 (A4)","X - through joint",null,200,"N/D","SFS SX5-6,3×190 (A4)","N/D","SFS SX16-5,8×230 (A4)",null,"SFS SX5-6,3×250 (A4)","N/D"]
["1,5220X - through joint",220,1.5,"30023820","EJOT JT3-D-6H-5,5/6,3 x 237","SFS SX5-6,3×220 (A4)","X - through joint",null,220,"N/D","SFS SX5-6,3×220 (A4)","N/D","SFS SX16-5,8×230 (A4)"]
["1,75220X - through joint",220,1.75,"30023820","EJOT JT3-D-6H-5,5/6,3 x 237","SFS SX5-6,3×220 (A4)","X - through joint",null,240,"N/D","SFS SX5-6,3×250 (A4)","N/D","SFS SX16-5,8×260 (A4)",null,"SFS SX16-5,8×90 (A4)","N/D"]
["2220X - through joint",220,2,"30023820","EJOT JT3-D-6H-5,5/6,3 x 237","SFS SX5-6,3×220 (A4)","X - through joint",null,250,"N/D","SFS SX5-6,3×250 (A4)","N/D","SFS SX16-5,8×260 (A4)",null,"SFS SX16-5,8×110 (A4)","N/D"]
["2,5220X - through joint",220,2.5,"30023820","EJOT JT3-D-6H-5,5/6,3 x 237","SFS SX5-6,3×220 (A4)","X - through joint",null,null,null,null,null,null,null,"SFS SX16-5,8×130 (A4)","N/D"]
["3220X - through joint",220,3,"30023820","EJOT JT3-D-6H-5,5/6,3 x 237","SFS SX5-6,3×220 (A4)","X - through joint",null,null,null,null,null,null,null,"SFS SX16-5,8×150 (A4)","N/D"]
["4220X - through joint",220,4,"30023820","EJOT JT3-D-6H-5,5/6,3 x 237","SFS SX5-6,3×220 (A4)","X - through joint",null,null,null,null,null,null,null,"SFS SX16-5,8×170 (A4)","N/D"]
["5220X - through joint",220,5,"30024059",{"$f":"VLOOKUP(B94,$I$63:$P$74,IF(C94>4,5,3),FALSE)","v":"EJOT JT3-D-12H-5,5/6,6x245"},"SFS SX5-6,3×220 (A4)","X - through joint",null,null,null,null,null,null,null,"SFS SX16-5,8×200 (A4)","N/D"]
["6220X - through joint",220,6,"30024059","EJOT JT3-D-12H-5,5/6,6x245","SFS SX16-5,8×230 (A4)","X - through joint",null,null,null,null,null,null,null,"SFS SX16-5,8×230 (A4)","N/D"]
["8220X - through joint",220,8,"30024059","EJOT JT3-D-12H-5,5/6,6x245","SFS SX16-5,8×230 (A4)","X - through joint",null,null,null,null,null,null,null,"SFS SX16-5,8×260 (A4)","N/D"]
["10220X - through joint",220,10,"30024059","EJOT JT3-D-12H-5,5/6,6x245","SFS SX16-5,8×230 (A4)","X - through joint"]
["1,5240X - through joint",240,1.5,"30023820","EJOT JT3-D-6H-5,5/6,3 x 237","SFS SX5-6,3×250 (A4)","X - through joint",null,null,null,null,null,null,null,"SFS SXC5-S19 6.3x100 (A2)",30032715]
["1,75240X - through joint",240,1.75,"30023820","EJOT JT3-D-6H-5,5/6,3 x 237","SFS SX5-6,3×250 (A4)","X - through joint",null,null,null,null,null,null,null,"SFS SXC5-S19 6.3x120 (A2)",30032052]
["2240X - through joint",240,2,"30023820","EJOT JT3-D-6H-5,5/6,3 x 237","SFS SX5-6,3×250 (A4)","X - through joint",null,null,null,null,null,null,null,"SFS SXC5-S19 6.3x140 (A2)",30032810]
["2,5240X - through joint",240,2.5,"30023820","EJOT JT3-D-6H-5,5/6,3 x 237","SFS SX5-6,3×250 (A4)","X - through joint",null,null,null,null,null,null,null,"SFS SXC5-S19 6.3x160 (A2)",30032051]
["3240X - through joint",240,3,"30023820","EJOT JT3-D-6H-5,5/6,3 x 237","SFS SX5-6,3×250 (A4)","X - through joint",null,null,null,null,null,null,null,"SFS SXC5-S19 6.3x190 (A2)",30032383]
["4240X - through joint",240,4,"30023820","EJOT JT3-D-6H-5,5/6,3 x 237","SFS SX5-6,3×250 (A4)","X - through joint",null,null,null,null,null,null,null,"SFS SXC5-S19 6.3x220 (A2)",30031695]
["5240X - through joint",240,5,"30024059","EJOT JT3-D-12H-5,5/6,6x245","SFS SX5-6,3×250 (A4)","X - through joint",null,null,null,null,null,null,null,"SFS SXC5-S19 6.3x250 (A2)",30032841]
["6240X - through joint",240,6,"30024059","EJOT JT3-D-12H-5,5/6,6x245","SFS SX16-5,8×260 (A4)","X - through joint",null,null,null,null,null,null,null,"SFS SXC5-S19 6.3x290 (A2)",30032842]
["8240X - through joint",240,8,{"$f":"VLOOKUP(B106,$I$63:$P$74,IF(C106>4,4,2),FALSE)","v":"30024059"},"EJOT JT3-D-12H-5,5/6,6x245","SFS SX16-5,8×260 (A4)","X - through joint"]
["10240X - through joint",240,10,"30024059","EJOT JT3-D-12H-5,5/6,6x245","SFS SX16-5,8×260 (A4)","X - through joint",null,null,null,null,null,null,null,"SFS SXC16-S19 5.8x110 (A2)","N/D"]
["1,5250X - through joint",250,1.5,"30023820","EJOT JT3-D-6H-5,5/6,3 x 237","SFS SX5-6,3×250 (A4)","X - through joint",null,null,null,null,null,null,null,"SFS SXC16-S19 5.8x130 (A2)",30033265]
["1,75250X - through joint",250,1.75,"30023820","EJOT JT3-D-6H-5,5/6,3 x 237","SFS SX5-6,3×250 (A4)","X - through joint",null,null,null,null,null,null,null,"SFS SXC16-S19 5.8x150 (A2)",30036596]
["2250X - through joint",250,2,"30023820","EJOT JT3-D-6H-5,5/6,3 x 237","SFS SX5-6,3×250 (A4)","X - through joint",null,null,null,null,null,null,null,"SFS SXC16-S19 5.8x170 (A2)","N/D"]
["2,5250X - through joint",250,2.5,"30023820","EJOT JT3-D-6H-5,5/6,3 x 237","SFS SX5-6,3×250 (A4)","X - through joint",null,null,null,null,null,null,null,"SFS SXC16-S19 5.8x200 (A2)",30036269]
["3250X - through joint",250,3,"30023820","EJOT JT3-D-6H-5,5/6,3 x 237","SFS SX5-6,3×250 (A4)","X - through joint",null,null,null,null,null,null,null,"SFS SXC16-S19 5.8x230 (A2)",30032843]
["4250X - through joint",250,4,"30023820","EJOT JT3-D-6H-5,5/6,3 x 237","SFS SX5-6,3×250 (A4)","X - through joint",null,null,null,null,null,null,null,"SFS SXC16-S19 5.8x260 (A2)",30032844]
[{"$f":"C114&B114&G114","v":"5250X - through joint"},250,5,"30024059","EJOT JT3-D-12H-5,5/6,6x245","SFS SX5-6,3×250 (A4)","X - through joint",null,null,null,null,null,null,null,"SFS SXC16-S19 5.8x300 (A2)","N/D"]
["6250X - through joint",250,6,"30024059","EJOT JT3-D-12H-5,5/6,6x245","SFS SX16-5,8×260 (A4)","X - through joint"]
["8250X - through joint",250,8,"30024059","EJOT JT3-D-12H-5,5/6,6x245","SFS SX16-5,8×260 (A4)","X - through joint"]
["10250X - through joint",250,10,{"$f":"VLOOKUP(B117,$I$63:$P$74,IF(C117>4,4,2),FALSE)","v":"30024059"},{"$f":"VLOOKUP(B117,$I$63:$P$74,IF(C117>4,5,3),FALSE)","v":"EJOT JT3-D-12H-5,5/6,6x245"},{"$f":"VLOOKUP(B117,$I$79:$P$90,IF(C117>5,5,3),FALSE)","v":"SFS SX16-5,8×260 (A4)"},"X - through joint"]
[null,null,null,null,null,null,null,null,"EJOT"]
[{"$f":"C119&B119&G119","v":"1,580Y - through element"},80,1.5,{"$f":"VLOOKUP(B119,$I$119:$P$130,IF(C119>4,4,2),FALSE)","v":"30024462"},{"$f":"VLOOKUP(B119,$I$119:$P$130,IF(C119>4,5,3),FALSE)","v":"EJOT JT3-D-6H-5,5/6,3x127 E19"},{"$f":"VLOOKUP(B119,$I$135:$P$146,IF(C119>5,5,3),FALSE)","v":"SFS SXC5-S19 6.3x120 (A2)"},"Y - through element",null,null,"Tip pritrjevanja Y (čez panel)"]
["1,7580Y - through element",80,1.75,"30024462","EJOT JT3-D-6H-5,5/6,3x127 E19",{"$f":"VLOOKUP(B120,$I$135:$P$146,IF(C120>5,5,3),FALSE)","v":"SFS SXC5-S19 6.3x120 (A2)"},"Y - through element",null,null,"Do debeline 4mm",null,"nad debelino 4mm"]
["280Y - through element",80,2,"30024462","EJOT JT3-D-6H-5,5/6,3x127 E19",{"$f":"VLOOKUP(B121,$I$135:$P$146,IF(C121>5,5,3),FALSE)","v":"SFS SXC5-S19 6.3x120 (A2)"},"Y - through element",null,80,"30024462","EJOT JT3-D-6H-5,5/6,3x127 E19","30024463","EJOT JT3-D-12H-5,5/6,3x135 E19"]
["2,580Y - through element",80,2.5,"30024462","EJOT JT3-D-6H-5,5/6,3x127 E19","SFS SXC5-S19 6.3x120 (A2)","Y - through element",null,100,"30024462","EJOT JT3-D-6H-5,5/6,3x127 E19","30027301","EJOT JT3-D-12H-5,5/6,3x155 E19"]
["380Y - through element",80,3,"30024462","EJOT JT3-D-6H-5,5/6,3x127 E19","SFS SXC5-S19 6.3x120 (A2)","Y - through element",null,120,"30024990","EJOT JT3-D-6H-5,5/6,3x167 E19","30027306","EJOT JT3-D-12H-5,5/6,3x175 E19"]
["480Y - through element",80,4,"30024462","EJOT JT3-D-6H-5,5/6,3x127 E19","SFS SXC5-S19 6.3x120 (A2)","Y - through element",null,133,"30024990","EJOT JT3-D-6H-5,5/6,3x167 E19","30027306","EJOT JT3-D-12H-5,5/6,3x175 E19"]
["580Y - through element",80,5,"30024463","EJOT JT3-D-12H-5,5/6,3x135 E19","SFS SXC5-S19 6.3x120 (A2)","Y - through element",null,150,"30011562","EJOT JT3-D-6H-5,5/6,3x197 E19","30027305","EJOT JT3-D-12H-5,5/6,3x195 E19"]
["680Y - through element",80,6,"30024463","EJOT JT3-D-12H-5,5/6,3x135 E19","SFS SXC16-S19 5.8x130 (A2)","Y - through element",null,172,"30023821","EJOT JT3-D-6H-5,5/6,3x237 E19","30024060","EJOT JT3-D-12H-5,5/6,3x245 E19"]
["880Y - through element",80,8,"30024463","EJOT JT3-D-12H-5,5/6,3x135 E19","SFS SXC16-S19 5.8x130 (A2)","Y - through element",null,200,"30023821","EJOT JT3-D-6H-5,5/6,3x237 E19","30024060","EJOT JT3-D-12H-5,5/6,3x245 E19"]
["1080Y - through element",80,10,"30024463","EJOT JT3-D-12H-5,5/6,3x135 E19","SFS SXC16-S19 5.8x130 (A2)","Y - through element",null,220,"30027310","EJOT JT3-D-6H-5,5/6,3x267 E19","30027304","EJOT JT3-D-12H-5,5/6,3x275 E19"]
["1,5100Y - through element",100,1.5,"30024462","EJOT JT3-D-6H-5,5/6,3x127 E19","SFS SXC5-S19 6.3x140 (A2)","Y - through element",null,240,"30027310","EJOT JT3-D-6H-5,5/6,3x267 E19","30027304","EJOT JT3-D-12H-5,5/6,3x275 E19"]
["1,75100Y - through element",100,1.75,"30024462","EJOT JT3-D-6H-5,5/6,3x127 E19","SFS SXC5-S19 6.3x140 (A2)","Y - through element",null,250,"xx","xx",30024102,"EJOT JT3-D-12H-5,5/6,3x300 E19"]
["2100Y - through element",100,2,"30024462","EJOT JT3-D-6H-5,5/6,3x127 E19","SFS SXC5-S19 6.3x140 (A2)","Y - through element"]
["2,5100Y - through element",100,2.5,"30024462","EJOT JT3-D-6H-5,5/6,3x127 E19","SFS SXC5-S19 6.3x140 (A2)","Y - through element"]
["3100Y - through element",100,3,"30024462","EJOT JT3-D-6H-5,5/6,3x127 E19",{"$f":"VLOOKUP(B133,$I$135:$P$146,IF(C133>5,5,3),FALSE)","v":"SFS SXC5-S19 6.3x140 (A2)"},"Y - through element"]
["4100Y - through element",100,4,"30024462","EJOT JT3-D-6H-5,5/6,3x127 E19","SFS SXC5-S19 6.3x140 (A2)","Y - through element",null,"SFS"]
["5100Y - through element",100,5,"30027301","EJOT JT3-D-12H-5,5/6,3x155 E19","SFS SXC5-S19 6.3x140 (A2)","Y - through element",null,null,"Tip pritrjevanja Y (čez panel)"]
["6100Y - through element",100,6,"30027301","EJOT JT3-D-12H-5,5/6,3x155 E19","SFS SXC16-S19 5.8x150 (A2)","Y - through element",null,null,"Do debeline 5mm",null,"nad debelino 5mm"]
["8100Y - through element",100,8,"30027301","EJOT JT3-D-12H-5,5/6,3x155 E19","SFS SXC16-S19 5.8x150 (A2)","Y - through element",null,80,{"$f":"VLOOKUP(K137,$O$61:$P$114,2,FALSE)","v":30032052},"SFS SXC5-S19 6.3x120 (A2)",{"$f":"VLOOKUP(M137,$O$61:$P$114,2,FALSE)","v":30033265},"SFS SXC16-S19 5.8x130 (A2)"]
["10100Y - through element",100,10,"30027301","EJOT JT3-D-12H-5,5/6,3x155 E19","SFS SXC16-S19 5.8x150 (A2)","Y - through element",null,100,30032810,"SFS SXC5-S19 6.3x140 (A2)",30036596,"SFS SXC16-S19 5.8x150 (A2)"]
["1,5120Y - through element",120,1.5,"30024990","EJOT JT3-D-6H-5,5/6,3x167 E19","SFS SXC5-S19 6.3x160 (A2)","Y - through element",null,120,30032051,"SFS SXC5-S19 6.3x160 (A2)","N/D","SFS SXC16-S19 5.8x170 (A2)"]
["1,75120Y - through element",120,1.75,"30024990","EJOT JT3-D-6H-5,5/6,3x167 E19","SFS SXC5-S19 6.3x160 (A2)","Y - through element",null,133,30032383,"SFS SXC5-S19 6.3x190 (A2)",30036269,"SFS SXC16-S19 5.8x200 (A2)"]
["2120Y - through element",120,2,"30024990","EJOT JT3-D-6H-5,5/6,3x167 E19","SFS SXC5-S19 6.3x160 (A2)","Y - through element",null,150,30032383,"SFS SXC5-S19 6.3x190 (A2)",30036269,"SFS SXC16-S19 5.8x200 (A2)"]
["2,5120Y - through element",120,2.5,"30024990","EJOT JT3-D-6H-5,5/6,3x167 E19","SFS SXC5-S19 6.3x160 (A2)","Y - through element",null,172,30031695,"SFS SXC5-S19 6.3x220 (A2)",30032843,"SFS SXC16-S19 5.8x230 (A2)"]
["3120Y - through element",120,3,"30024990","EJOT JT3-D-6H-5,5/6,3x167 E19","SFS SXC5-S19 6.3x160 (A2)","Y - through element",null,200,30032841,"SFS SXC5-S19 6.3x250 (A2)",30032844,"SFS SXC16-S19 5.8x260 (A2)"]
["4120Y - through element",120,4,"30024990","EJOT JT3-D-6H-5,5/6,3x167 E19","SFS SXC5-S19 6.3x160 (A2)","Y - through element",null,220,30032842,"SFS SXC5-S19 6.3x290 (A2)","N/D","SFS SXC16-S19 5.8x300 (A2)"]
["5120Y - through element",120,5,"30027306","EJOT JT3-D-12H-5,5/6,3x175 E19","SFS SXC5-S19 6.3x160 (A2)","Y - through element",null,240,30032842,"SFS SXC5-S19 6.3x290 (A2)","N/D","SFS SXC16-S19 5.8x300 (A2)"]
["6120Y - through element",120,6,"30027306","EJOT JT3-D-12H-5,5/6,3x175 E19","SFS SXC16-S19 5.8x170 (A2)","Y - through element",null,250,30032842,"SFS SXC5-S19 6.3x290 (A2)","N/D","SFS SXC16-S19 5.8x300 (A2)"]
["8120Y - through element",120,8,"30027306","EJOT JT3-D-12H-5,5/6,3x175 E19","SFS SXC16-S19 5.8x170 (A2)","Y - through element"]
["10120Y - through element",120,10,"30027306","EJOT JT3-D-12H-5,5/6,3x175 E19","SFS SXC16-S19 5.8x170 (A2)","Y - through element"]
["1,5133Y - through element",133,1.5,"30024990","EJOT JT3-D-6H-5,5/6,3x167 E19","SFS SXC5-S19 6.3x190 (A2)","Y - through element"]
["1,75133Y - through element",133,1.75,"30024990","EJOT JT3-D-6H-5,5/6,3x167 E19","SFS SXC5-S19 6.3x190 (A2)","Y - through element"]
[{"$f":"C151&B151&G151","v":"2133Y - through element"},133,2,{"$f":"VLOOKUP(B151,$I$119:$P$130,IF(C151>4,4,2),FALSE)","v":"30024990"},{"$f":"VLOOKUP(B151,$I$119:$P$130,IF(C151>4,5,3),FALSE)","v":"EJOT JT3-D-6H-5,5/6,3x167 E19"},"SFS SXC5-S19 6.3x190 (A2)","Y - through element"]
["2,5133Y - through element",133,2.5,"30024990","EJOT JT3-D-6H-5,5/6,3x167 E19","SFS SXC5-S19 6.3x190 (A2)","Y - through element"]
["3133Y - through element",133,3,"30024990","EJOT JT3-D-6H-5,5/6,3x167 E19","SFS SXC5-S19 6.3x190 (A2)","Y - through element"]
["4133Y - through element",133,4,"30024990","EJOT JT3-D-6H-5,5/6,3x167 E19","SFS SXC5-S19 6.3x190 (A2)","Y - through element"]
["5133Y - through element",133,5,"30027306","EJOT JT3-D-12H-5,5/6,3x175 E19","SFS SXC5-S19 6.3x190 (A2)","Y - through element"]
["6133Y - through element",133,6,"30027306","EJOT JT3-D-12H-5,5/6,3x175 E19","SFS SXC16-S19 5.8x200 (A2)","Y - through element"]
["8133Y - through element",133,8,"30027306","EJOT JT3-D-12H-5,5/6,3x175 E19","SFS SXC16-S19 5.8x200 (A2)","Y - through element"]
["10133Y - through element",133,10,"30027306","EJOT JT3-D-12H-5,5/6,3x175 E19","SFS SXC16-S19 5.8x200 (A2)","Y - through element"]
["1,5150Y - through element",150,1.5,"30011562","EJOT JT3-D-6H-5,5/6,3x197 E19","SFS SXC5-S19 6.3x190 (A2)","Y - through element"]
["1,75150Y - through element",150,1.75,"30011562","EJOT JT3-D-6H-5,5/6,3x197 E19","SFS SXC5-S19 6.3x190 (A2)","Y - through element"]
["2150Y - through element",150,2,"30011562","EJOT JT3-D-6H-5,5/6,3x197 E19","SFS SXC5-S19 6.3x190 (A2)","Y - through element"]
["2,5150Y - through element",150,2.5,"30011562","EJOT JT3-D-6H-5,5/6,3x197 E19","SFS SXC5-S19 6.3x190 (A2)","Y - through element"]
["3150Y - through element",150,3,"30011562","EJOT JT3-D-6H-5,5/6,3x197 E19","SFS SXC5-S19 6.3x190 (A2)","Y - through element"]
["4150Y - through element",150,4,"30011562","EJOT JT3-D-6H-5,5/6,3x197 E19","SFS SXC5-S19 6.3x190 (A2)","Y - through element"]
["5150Y - through element",150,5,"30027305","EJOT JT3-D-12H-5,5/6,3x195 E19","SFS SXC5-S19 6.3x190 (A2)","Y - through element"]
["6150Y - through element",150,6,"30027305","EJOT JT3-D-12H-5,5/6,3x195 E19","SFS SXC16-S19 5.8x200 (A2)","Y - through element"]
["8150Y - through element",150,8,"30027305","EJOT JT3-D-12H-5,5/6,3x195 E19","SFS SXC16-S19 5.8x200 (A2)","Y - through element"]
["10150Y - through element",150,10,"30027305","EJOT JT3-D-12H-5,5/6,3x195 E19","SFS SXC16-S19 5.8x200 (A2)","Y - through element"]
["1,5172Y - through element",172,1.5,"30023821","EJOT JT3-D-6H-5,5/6,3x237 E19","SFS SXC5-S19 6.3x220 (A2)","Y - through element"]
["1,75172Y - through element",172,1.75,"30023821","EJOT JT3-D-6H-5,5/6,3x237 E19","SFS SXC5-S19 6.3x220 (A2)","Y - through element"]
["2172Y - through element",172,2,"30023821","EJOT JT3-D-6H-5,5/6,3x237 E19","SFS SXC5-S19 6.3x220 (A2)","Y - through element"]
["2,5172Y - through element",172,2.5,"30023821","EJOT JT3-D-6H-5,5/6,3x237 E19","SFS SXC5-S19 6.3x220 (A2)","Y - through element"]
["3172Y - through element",172,3,"30023821","EJOT JT3-D-6H-5,5/6,3x237 E19","SFS SXC5-S19 6.3x220 (A2)","Y - through element"]
["4172Y - through element",172,4,"30023821","EJOT JT3-D-6H-5,5/6,3x237 E19","SFS SXC5-S19 6.3x220 (A2)","Y - through element"]
["5172Y - through element",172,5,"30024060","EJOT JT3-D-12H-5,5/6,3x245 E19","SFS SXC5-S19 6.3x220 (A2)","Y - through element"]
["6172Y - through element",172,6,"30024060","EJOT JT3-D-12H-5,5/6,3x245 E19","SFS SXC16-S19 5.8x230 (A2)","Y - through element"]
["8172Y - through element",172,8,"30024060","EJOT JT3-D-12H-5,5/6,3x245 E19","SFS SXC16-S19 5.8x230 (A2)","Y - through element"]
["10172Y - through element",172,10,"30024060","EJOT JT3-D-12H-5,5/6,3x245 E19","SFS SXC16-S19 5.8x230 (A2)","Y - through element"]
["1,5200Y - through element",200,1.5,"30023821","EJOT JT3-D-6H-5,5/6,3x237 E19","SFS SXC5-S19 6.3x250 (A2)","Y - through element"]
["1,75200Y - through element",200,1.75,"30023821","EJOT JT3-D-6H-5,5/6,3x237 E19","SFS SXC5-S19 6.3x250 (A2)","Y - through element"]
["2200Y - through element",200,2,"30023821","EJOT JT3-D-6H-5,5/6,3x237 E19","SFS SXC5-S19 6.3x250 (A2)","Y - through element"]
["2,5200Y - through element",200,2.5,"30023821","EJOT JT3-D-6H-5,5/6,3x237 E19","SFS SXC5-S19 6.3x250 (A2)","Y - through element"]
[{"$f":"C183&B183&G183","v":"3200Y - through element"},200,3,{"$f":"VLOOKUP(B183,$I$119:$P$130,IF(C183>4,4,2),FALSE)","v":"30023821"},{"$f":"VLOOKUP(B183,$I$119:$P$130,IF(C183>4,5,3),FALSE)","v":"EJOT JT3-D-6H-5,5/6,3x237 E19"},"SFS SXC5-S19 6.3x250 (A2)","Y - through element"]
["4200Y - through element",200,4,"30023821","EJOT JT3-D-6H-5,5/6,3x237 E19","SFS SXC5-S19 6.3x250 (A2)","Y - through element"]
["5200Y - through element",200,5,"30024060","EJOT JT3-D-12H-5,5/6,3x245 E19",{"$f":"VLOOKUP(B185,$I$135:$P$146,IF(C185>5,5,3),FALSE)","v":"SFS SXC5-S19 6.3x250 (A2)"},"Y - through element"]
["6200Y - through element",200,6,"30024060","EJOT JT3-D-12H-5,5/6,3x245 E19","SFS SXC16-S19 5.8x260 (A2)","Y - through element"]
["8200Y - through element",200,8,"30024060","EJOT JT3-D-12H-5,5/6,3x245 E19","SFS SXC16-S19 5.8x260 (A2)","Y - through element"]
["10200Y - through element",200,10,"30024060","EJOT JT3-D-12H-5,5/6,3x245 E19","SFS SXC16-S19 5.8x260 (A2)","Y - through element"]
["1,5220Y - through element",220,1.5,"30027310","EJOT JT3-D-6H-5,5/6,3x267 E19","SFS SXC5-S19 6.3x290 (A2)","Y - through element"]
["1,75220Y - through element",220,1.75,"30027310","EJOT JT3-D-6H-5,5/6,3x267 E19","SFS SXC5-S19 6.3x290 (A2)","Y - through element"]
["2220Y - through element",220,2,"30027310","EJOT JT3-D-6H-5,5/6,3x267 E19","SFS SXC5-S19 6.3x290 (A2)","Y - through element"]
["2,5220Y - through element",220,2.5,"30027310","EJOT JT3-D-6H-5,5/6,3x267 E19","SFS SXC5-S19 6.3x290 (A2)","Y - through element"]
["3220Y - through element",220,3,"30027310","EJOT JT3-D-6H-5,5/6,3x267 E19","SFS SXC5-S19 6.3x290 (A2)","Y - through element"]
["4220Y - through element",220,4,"30027310","EJOT JT3-D-6H-5,5/6,3x267 E19","SFS SXC5-S19 6.3x290 (A2)","Y - through element"]
["5220Y - through element",220,5,"30027304","EJOT JT3-D-12H-5,5/6,3x275 E19","SFS SXC5-S19 6.3x290 (A2)","Y - through element"]
["6220Y - through element",220,6,"30027304","EJOT JT3-D-12H-5,5/6,3x275 E19","SFS SXC16-S19 5.8x300 (A2)","Y - through element"]
["8220Y - through element",220,8,"30027304","EJOT JT3-D-12H-5,5/6,3x275 E19","SFS SXC16-S19 5.8x300 (A2)","Y - through element"]
["10220Y - through element",220,10,"30027304","EJOT JT3-D-12H-5,5/6,3x275 E19","SFS SXC16-S19 5.8x300 (A2)","Y - through element"]
["1,5240Y - through element",240,1.5,"30027310","EJOT JT3-D-6H-5,5/6,3x267 E19","SFS SXC5-S19 6.3x290 (A2)","Y - through element"]
["1,75240Y - through element",240,1.75,"30027310","EJOT JT3-D-6H-5,5/6,3x267 E19","SFS SXC5-S19 6.3x290 (A2)","Y - through element"]
["2240Y - through element",240,2,"30027310","EJOT JT3-D-6H-5,5/6,3x267 E19","SFS SXC5-S19 6.3x290 (A2)","Y - through element"]
["2,5240Y - through element",240,2.5,"30027310","EJOT JT3-D-6H-5,5/6,3x267 E19","SFS SXC5-S19 6.3x290 (A2)","Y - through element"]
["3240Y - through element",240,3,"30027310","EJOT JT3-D-6H-5,5/6,3x267 E19","SFS SXC5-S19 6.3x290 (A2)","Y - through element"]
["4240Y - through element",240,4,"30027310","EJOT JT3-D-6H-5,5/6,3x267 E19","SFS SXC5-S19 6.3x290 (A2)","Y - through element"]
["5240Y - through element",240,5,"30027304","EJOT JT3-D-12H-5,5/6,3x275 E19","SFS SXC5-S19 6.3x290 (A2)","Y - through element"]
["6240Y - through element",240,6,"30027304","EJOT JT3-D-12H-5,5/6,3x275 E19","SFS SXC16-S19 5.8x300 (A2)","Y - through element"]
["8240Y - through element",240,8,"30027304","EJOT JT3-D-12H-5,5/6,3x275 E19","SFS SXC16-S19 5.8x300 (A2)","Y - through element"]
["10240Y - through element",240,10,"30027304","EJOT JT3-D-12H-5,5/6,3x275 E19","SFS SXC16-S19 5.8x300 (A2)","Y - through element"]
["1,5250Y - through element",250,1.5,"xx","xx","SFS SXC5-S19 6.3x290 (A2)","Y - through element"]
["1,75250Y - through element",250,1.75,"xx","xx","SFS SXC5-S19 6.3x290 (A2)","Y - through element"]
["2250Y - through element",250,2,"xx","xx","SFS SXC5-S19 6.3x290 (A2)","Y - through element"]
["2,5250Y - through element",250,2.5,"xx","xx","SFS SXC5-S19 6.3x290 (A2)","Y - through element"]
["3250Y - through element",250,3,"xx","xx","SFS SXC5-S19 6.3x290 (A2)","Y - through element"]
["4250Y - through element",250,4,"xx","xx","SFS SXC5-S19 6.3x290 (A2)","Y - through element"]
[{"$f":"C215&B215&G215","v":"5250Y - through element"},250,5,{"$f":"VLOOKUP(B215,$I$119:$P$130,IF(C215>4,4,2),FALSE)","v":30024102},"EJOT JT3-D-12H-5,5/6,3x300 E19","SFS SXC5-S19 6.3x290 (A2)","Y - through element"]
["6250Y - through element",250,6,30024102,"EJOT JT3-D-12H-5,5/6,3x300 E19","SFS SXC16-S19 5.8x300 (A2)","Y - through element"]
["8250Y - through element",250,8,30024102,"EJOT JT3-D-12H-5,5/6,3x300 E19","SFS SXC16-S19 5.8x300 (A2)","Y - through element"]
["10250Y - through element",250,10,30024102,"EJOT JT3-D-12H-5,5/6,3x300 E19","SFS SXC16-S19 5.8x300 (A2)","Y - through element"]
[]
[{"$f":"C220&B220&G220","v":"1,580Z - through longitudinal joint"},80,1.5,{"$f":"VLOOKUP(B220,$I$224:$P$235,IF(C220>4,4,2),FALSE)","v":"30027331"},{"$f":"VLOOKUP(B220,$I$224:$P$235,IF(C220>4,5,3),FALSE)","v":"SCREW JT3-D-6H-5,5/6,3x 87 E19"},{"$f":"VLOOKUP(B220,$I$240:$P$251,IF(C220>5,5,3),FALSE)","v":"SFS SXC5-S19 6.3x100 (A2)"},"Z - through longitudinal joint"]
["1,7580Z - through longitudinal joint",80,1.75,"30027331","SCREW JT3-D-6H-5,5/6,3x 87 E19",{"$f":"VLOOKUP(B221,$I$240:$P$251,IF(C221>5,5,3),FALSE)","v":"SFS SXC5-S19 6.3x100 (A2)"},"Z - through longitudinal joint"]
["280Z - through longitudinal joint",80,2,"30027331","SCREW JT3-D-6H-5,5/6,3x 87 E19","SFS SXC5-S19 6.3x100 (A2)","Z - through longitudinal joint"]
["2,580Z - through longitudinal joint",80,2.5,"30027331","SCREW JT3-D-6H-5,5/6,3x 87 E19","SFS SXC5-S19 6.3x100 (A2)","Z - through longitudinal joint",null,"EJOT"]
["380Z - through longitudinal joint",80,3,"30027331","SCREW JT3-D-6H-5,5/6,3x 87 E19","SFS SXC5-S19 6.3x100 (A2)","Z - through longitudinal joint",null,null,"Tip pritrjevanja Z (v moškem spoju)"]
["480Z - through longitudinal joint",80,4,"30027331","SCREW JT3-D-6H-5,5/6,3x 87 E19","SFS SXC5-S19 6.3x100 (A2)","Z - through longitudinal joint",null,null,"Do debeline 4mm",null,"nad debelino 4mm"]
["580Z - through longitudinal joint",80,5,"30027308","EJOT JT3-D-12H-5,5/6,3x 95 E19","SFS SXC5-S19 6.3x100 (A2)","Z - through longitudinal joint",null,80,"30027331","SCREW JT3-D-6H-5,5/6,3x 87 E19","30027308","EJOT JT3-D-12H-5,5/6,3x 95 E19"]
["680Z - through longitudinal joint",80,6,"30027308","EJOT JT3-D-12H-5,5/6,3x 95 E19","SFS SXC16-S19 5.8x110 (A2)","Z - through longitudinal joint",null,100,"30026964","EJOT JT3-D-6H-5,5/6,3x107 E19","30027307","EJOT JT3-D-12H-5,5/6,3x115 E19"]
["880Z - through longitudinal joint",80,8,"30027308","EJOT JT3-D-12H-5,5/6,3x 95 E19","SFS SXC16-S19 5.8x110 (A2)","Z - through longitudinal joint",null,120,"30024462","EJOT JT3-D-6H-5,5/6,3x127 E19","30024463","EJOT JT3-D-12H-5,5/6,3x135 E19"]
["1080Z - through longitudinal joint",80,10,"30027308","EJOT JT3-D-12H-5,5/6,3x 95 E19","SFS SXC16-S19 5.8x110 (A2)","Z - through longitudinal joint",null,133,"30027300","EJOT JT3-D-6H-5,5/6,3x147 E19","30027301","EJOT JT3-D-12H-5,5/6,3x155 E19"]
["1,5100Z - through longitudinal joint",100,1.5,"30026964","EJOT JT3-D-6H-5,5/6,3x107 E19","SFS SXC5-S19 6.3x120 (A2)","Z - through longitudinal joint",null,150,"30024990","EJOT JT3-D-6H-5,5/6,3x167 E19","30027306","EJOT JT3-D-12H-5,5/6,3x175 E19"]
["1,75100Z - through longitudinal joint",100,1.75,"30026964","EJOT JT3-D-6H-5,5/6,3x107 E19","SFS SXC5-S19 6.3x120 (A2)","Z - through longitudinal joint",null,172,"30011562","EJOT JT3-D-6H-5,5/6,3x197 E19","30027305","EJOT JT3-D-12H-5,5/6,3x195 E19"]
["2100Z - through longitudinal joint",100,2,"30026964","EJOT JT3-D-6H-5,5/6,3x107 E19","SFS SXC5-S19 6.3x120 (A2)","Z - through longitudinal joint",null,200,"30023821","EJOT JT3-D-6H-5,5/6,3x237 E19","30024060","EJOT JT3-D-12H-5,5/6,3x245 E19"]
["2,5100Z - through longitudinal joint",100,2.5,"30026964","EJOT JT3-D-6H-5,5/6,3x107 E19","SFS SXC5-S19 6.3x120 (A2)","Z - through longitudinal joint",null,220,"30023821","EJOT JT3-D-6H-5,5/6,3x237 E19","30024060","EJOT JT3-D-12H-5,5/6,3x245 E19"]
["3100Z - through longitudinal joint",100,3,"30026964","EJOT JT3-D-6H-5,5/6,3x107 E19","SFS SXC5-S19 6.3x120 (A2)","Z - through longitudinal joint",null,240,"30027310","EJOT JT3-D-6H-5,5/6,3x267 E19","30027304","EJOT JT3-D-12H-5,5/6,3x275 E19"]
["4100Z - through longitudinal joint",100,4,"30026964","EJOT JT3-D-6H-5,5/6,3x107 E19","SFS SXC5-S19 6.3x120 (A2)","Z - through longitudinal joint",null,250,"30027310","EJOT JT3-D-6H-5,5/6,3x267 E19","30027304","EJOT JT3-D-12H-5,5/6,3x275 E19"]
["5100Z - through longitudinal joint",100,5,"30027307","EJOT JT3-D-12H-5,5/6,3x115 E19","SFS SXC5-S19 6.3x120 (A2)","Z - through longitudinal joint"]
["6100Z - through longitudinal joint",100,6,"30027307","EJOT JT3-D-12H-5,5/6,3x115 E19","SFS SXC16-S19 5.8x130 (A2)","Z - through longitudinal joint"]
["8100Z - through longitudinal joint",100,8,"30027307","EJOT JT3-D-12H-5,5/6,3x115 E19","SFS SXC16-S19 5.8x130 (A2)","Z - through longitudinal joint"]
["10100Z - through longitudinal joint",100,10,"30027307","EJOT JT3-D-12H-5,5/6,3x115 E19","SFS SXC16-S19 5.8x130 (A2)","Z - through longitudinal joint",null,"SFS"]
["1,5120Z - through longitudinal joint",120,1.5,"30024462","EJOT JT3-D-6H-5,5/6,3x127 E19","SFS SXC5-S19 6.3x140 (A2)","Z - through longitudinal joint",null,null,"Tip pritrjevanja Z (v moškem spoju)"]
["1,75120Z - through longitudinal joint",120,1.75,"30024462","EJOT JT3-D-6H-5,5/6,3x127 E19","SFS SXC5-S19 6.3x140 (A2)","Z - through longitudinal joint",null,null,"Do debeline 5mm",null,"nad debelino 5mm"]
["2120Z - through longitudinal joint",120,2,"30024462","EJOT JT3-D-6H-5,5/6,3x127 E19","SFS SXC5-S19 6.3x140 (A2)","Z - through longitudinal joint",null,80,{"$f":"VLOOKUP(K242,$O$61:$P$114,2,FALSE)","v":30032715},"SFS SXC5-S19 6.3x100 (A2)",{"$f":"VLOOKUP(M242,$O$61:$P$114,2,FALSE)","v":"N/D"},"SFS SXC16-S19 5.8x110 (A2)"]
["2,5120Z - through longitudinal joint",120,2.5,"30024462","EJOT JT3-D-6H-5,5/6,3x127 E19","SFS SXC5-S19 6.3x140 (A2)","Z - through longitudinal joint",null,100,30032052,"SFS SXC5-S19 6.3x120 (A2)",30033265,"SFS SXC16-S19 5.8x130 (A2)"]
["3120Z - through longitudinal joint",120,3,"30024462","EJOT JT3-D-6H-5,5/6,3x127 E19","SFS SXC5-S19 6.3x140 (A2)","Z - through longitudinal joint",null,120,30032810,"SFS SXC5-S19 6.3x140 (A2)",30036596,"SFS SXC16-S19 5.8x150 (A2)"]
["4120Z - through longitudinal joint",120,4,"30024462","EJOT JT3-D-6H-5,5/6,3x127 E19","SFS SXC5-S19 6.3x140 (A2)","Z - through longitudinal joint",null,133,30032051,"SFS SXC5-S19 6.3x160 (A2)","N/D","SFS SXC16-S19 5.8x170 (A2)"]
["5120Z - through longitudinal joint",120,5,"30024463","EJOT JT3-D-12H-5,5/6,3x135 E19","SFS SXC5-S19 6.3x140 (A2)","Z - through longitudinal joint",null,150,30032383,"SFS SXC5-S19 6.3x190 (A2)",30036269,"SFS SXC16-S19 5.8x200 (A2)"]
["6120Z - through longitudinal joint",120,6,"30024463","EJOT JT3-D-12H-5,5/6,3x135 E19","SFS SXC16-S19 5.8x150 (A2)","Z - through longitudinal joint",null,172,30032383,"SFS SXC5-S19 6.3x190 (A2)",30036269,"SFS SXC16-S19 5.8x200 (A2)"]
["8120Z - through longitudinal joint",120,8,"30024463","EJOT JT3-D-12H-5,5/6,3x135 E19","SFS SXC16-S19 5.8x150 (A2)","Z - through longitudinal joint",null,200,30031695,"SFS SXC5-S19 6.3x220 (A2)",30032843,"SFS SXC16-S19 5.8x230 (A2)"]
["10120Z - through longitudinal joint",120,10,"30024463","EJOT JT3-D-12H-5,5/6,3x135 E19","SFS SXC16-S19 5.8x150 (A2)","Z - through longitudinal joint",null,220,30032841,"SFS SXC5-S19 6.3x250 (A2)",30032844,"SFS SXC16-S19 5.8x260 (A2)"]
["1,5133Z - through longitudinal joint",133,1.5,"30027300","EJOT JT3-D-6H-5,5/6,3x147 E19","SFS SXC5-S19 6.3x160 (A2)","Z - through longitudinal joint",null,240,30032841,"SFS SXC5-S19 6.3x250 (A2)",30032844,"SFS SXC16-S19 5.8x260 (A2)"]
["1,75133Z - through longitudinal joint",133,1.75,"30027300","EJOT JT3-D-6H-5,5/6,3x147 E19","SFS SXC5-S19 6.3x160 (A2)","Z - through longitudinal joint",null,250,30032842,"SFS SXC5-S19 6.3x290 (A2)","N/D","SFS SXC16-S19 5.8x300 (A2)"]
[{"$f":"C252&B252&G252","v":"2133Z - through longitudinal joint"},133,2,{"$f":"VLOOKUP(B252,$I$224:$P$235,IF(C252>4,4,2),FALSE)","v":"30027300"},{"$f":"VLOOKUP(B252,$I$224:$P$235,IF(C252>4,5,3),FALSE)","v":"EJOT JT3-D-6H-5,5/6,3x147 E19"},"SFS SXC5-S19 6.3x160 (A2)","Z - through longitudinal joint"]
["2,5133Z - through longitudinal joint",133,2.5,"30027300","EJOT JT3-D-6H-5,5/6,3x147 E19","SFS SXC5-S19 6.3x160 (A2)","Z - through longitudinal joint"]
["3133Z - through longitudinal joint",133,3,"30027300","EJOT JT3-D-6H-5,5/6,3x147 E19","SFS SXC5-S19 6.3x160 (A2)","Z - through longitudinal joint"]
["4133Z - through longitudinal joint",133,4,"30027300","EJOT JT3-D-6H-5,5/6,3x147 E19","SFS SXC5-S19 6.3x160 (A2)","Z - through longitudinal joint"]
["5133Z - through longitudinal joint",133,5,"30027301","EJOT JT3-D-12H-5,5/6,3x155 E19","SFS SXC5-S19 6.3x160 (A2)","Z - through longitudinal joint"]
["6133Z - through longitudinal joint",133,6,"30027301","EJOT JT3-D-12H-5,5/6,3x155 E19","SFS SXC16-S19 5.8x170 (A2)","Z - through longitudinal joint"]
["8133Z - through longitudinal joint",133,8,"30027301","EJOT JT3-D-12H-5,5/6,3x155 E19","SFS SXC16-S19 5.8x170 (A2)","Z - through longitudinal joint"]
["10133Z - through longitudinal joint",133,10,"30027301","EJOT JT3-D-12H-5,5/6,3x155 E19","SFS SXC16-S19 5.8x170 (A2)","Z - through longitudinal joint"]
["1,5150Z - through longitudinal joint",150,1.5,"30024990","EJOT JT3-D-6H-5,5/6,3x167 E19","SFS SXC5-S19 6.3x190 (A2)","Z - through longitudinal joint"]
["1,75150Z - through longitudinal joint",150,1.75,"30024990","EJOT JT3-D-6H-5,5/6,3x167 E19","SFS SXC5-S19 6.3x190 (A2)","Z - through longitudinal joint"]
["2150Z - through longitudinal joint",150,2,"30024990","EJOT JT3-D-6H-5,5/6,3x167 E19","SFS SXC5-S19 6.3x190 (A2)","Z - through longitudinal joint"]
["2,5150Z - through longitudinal joint",150,2.5,"30024990","EJOT JT3-D-6H-5,5/6,3x167 E19","SFS SXC5-S19 6.3x190 (A2)","Z - through longitudinal joint"]
["3150Z - through longitudinal joint",150,3,"30024990","EJOT JT3-D-6H-5,5/6,3x167 E19","SFS SXC5-S19 6.3x190 (A2)","Z - through longitudinal joint"]
["4150Z - through longitudinal joint",150,4,"30024990","EJOT JT3-D-6H-5,5/6,3x167 E19","SFS SXC5-S19 6.3x190 (A2)","Z - through longitudinal joint"]
["5150Z - through longitudinal joint",150,5,"30027306","EJOT JT3-D-12H-5,5/6,3x175 E19","SFS SXC5-S19 6.3x190 (A2)","Z - through longitudinal joint"]
["6150Z - through longitudinal joint",150,6,"30027306","EJOT JT3-D-12H-5,5/6,3x175 E19","SFS SXC16-S19 5.8x200 (A2)","Z - through longitudinal joint"]
["8150Z - through longitudinal joint",150,8,"30027306","EJOT JT3-D-12H-5,5/6,3x175 E19","SFS SXC16-S19 5.8x200 (A2)","Z - through longitudinal joint"]
["10150Z - through longitudinal joint",150,10,"30027306","EJOT JT3-D-12H-5,5/6,3x175 E19","SFS SXC16-S19 5.8x200 (A2)","Z - through longitudinal joint"]
["1,5172Z - through longitudinal joint",172,1.5,"30011562","EJOT JT3-D-6H-5,5/6,3x197 E19","SFS SXC5-S19 6.3x190 (A2)","Z - through longitudinal joint"]
["1,75172Z - through longitudinal joint",172,1.75,"30011562","EJOT JT3-D-6H-5,5/6,3x197 E19","SFS SXC5-S19 6.3x190 (A2)","Z - through longitudinal joint"]
["2172Z - through longitudinal joint",172,2,"30011562","EJOT JT3-D-6H-5,5/6,3x197 E19","SFS SXC5-S19 6.3x190 (A2)","Z - through longitudinal joint"]
["2,5172Z - through longitudinal joint",172,2.5,"30011562","EJOT JT3-D-6H-5,5/6,3x197 E19","SFS SXC5-S19 6.3x190 (A2)","Z - through longitudinal joint"]
["3172Z - through longitudinal joint",172,3,"30011562","EJOT JT3-D-6H-5,5/6,3x197 E19","SFS SXC5-S19 6.3x190 (A2)","Z - through longitudinal joint"]
["4172Z - through longitudinal joint",172,4,"30011562","EJOT JT3-D-6H-5,5/6,3x197 E19","SFS SXC5-S19 6.3x190 (A2)","Z - through longitudinal joint"]
["5172Z - through longitudinal joint",172,5,"30027305","EJOT JT3-D-12H-5,5/6,3x195 E19","SFS SXC5-S19 6.3x190 (A2)","Z - through longitudinal joint"]
["6172Z - through longitudinal joint",172,6,"30027305","EJOT JT3-D-12H-5,5/6,3x195 E19","SFS SXC16-S19 5.8x200 (A2)","Z - through longitudinal joint"]
["8172Z - through longitudinal joint",172,8,"30027305","EJOT JT3-D-12H-5,5/6,3x195 E19","SFS SXC16-S19 5.8x200 (A2)","Z - through longitudinal joint"]
["10172Z - through longitudinal joint",172,10,"30027305","EJOT JT3-D-12H-5,5/6,3x195 E19","SFS SXC16-S19 5.8x200 (A2)","Z - through longitudinal joint"]
["1,5200Z - through longitudinal joint",200,1.5,"30023821","EJOT JT3-D-6H-5,5/6,3x237 E19","SFS SXC5-S19 6.3x220 (A2)","Z - through longitudinal joint"]
["1,75200Z - through longitudinal joint",200,1.75,"30023821","EJOT JT3-D-6H-5,5/6,3x237 E19","SFS SXC5-S19 6.3x220 (A2)","Z - through longitudinal joint"]
["2200Z - through longitudinal joint",200,2,"30023821","EJOT JT3-D-6H-5,5/6,3x237 E19","SFS SXC5-S19 6.3x220 (A2)","Z - through longitudinal joint"]
["2,5200Z - through longitudinal joint",200,2.5,"30023821","EJOT JT3-D-6H-5,5/6,3x237 E19","SFS SXC5-S19 6.3x220 (A2)","Z - through longitudinal joint"]
[{"$f":"C284&B284&G284","v":"3200Z - through longitudinal joint"},200,3,{"$f":"VLOOKUP(B284,$I$224:$P$235,IF(C284>4,4,2),FALSE)","v":"30023821"},"EJOT JT3-D-6H-5,5/6,3x237 E19","SFS SXC5-S19 6.3x220 (A2)","Z - through longitudinal joint"]
["4200Z - through longitudinal joint",200,4,{"$f":"VLOOKUP(B285,$I$224:$P$235,IF(C285>4,4,2),FALSE)","v":"30023821"},{"$f":"VLOOKUP(B285,$I$224:$P$235,IF(C285>4,5,3),FALSE)","v":"EJOT JT3-D-6H-5,5/6,3x237 E19"},{"$f":"VLOOKUP(B285,$I$240:$P$251,IF(C285>5,5,3),FALSE)","v":"SFS SXC5-S19 6.3x220 (A2)"},"Z - through longitudinal joint"]
["5200Z - through longitudinal joint",200,5,"30024060","EJOT JT3-D-12H-5,5/6,3x245 E19","SFS SXC5-S19 6.3x220 (A2)","Z - through longitudinal joint"]
["6200Z - through longitudinal joint",200,6,"30024060","EJOT JT3-D-12H-5,5/6,3x245 E19","SFS SXC16-S19 5.8x230 (A2)","Z - through longitudinal joint"]
["8200Z - through longitudinal joint",200,8,"30024060","EJOT JT3-D-12H-5,5/6,3x245 E19","SFS SXC16-S19 5.8x230 (A2)","Z - through longitudinal joint"]
["10200Z - through longitudinal joint",200,10,"30024060","EJOT JT3-D-12H-5,5/6,3x245 E19","SFS SXC16-S19 5.8x230 (A2)","Z - through longitudinal joint"]
["1,5220Z - through longitudinal joint",220,1.5,"30023821","EJOT JT3-D-6H-5,5/6,3x237 E19","SFS SXC5-S19 6.3x250 (A2)","Z - through longitudinal joint"]
["1,75220Z - through longitudinal joint",220,1.75,"30023821","EJOT JT3-D-6H-5,5/6,3x237 E19","SFS SXC5-S19 6.3x250 (A2)","Z - through longitudinal joint"]
["2220Z - through longitudinal joint",220,2,"30023821","EJOT JT3-D-6H-5,5/6,3x237 E19","SFS SXC5-S19 6.3x250 (A2)","Z - through longitudinal joint"]
["2,5220Z - through longitudinal joint",220,2.5,"30023821","EJOT JT3-D-6H-5,5/6,3x237 E19","SFS SXC5-S19 6.3x250 (A2)","Z - through longitudinal joint"]
["3220Z - through longitudinal joint",220,3,"30023821","EJOT JT3-D-6H-5,5/6,3x237 E19","SFS SXC5-S19 6.3x250 (A2)","Z - through longitudinal joint"]
["4220Z - through longitudinal joint",220,4,"30023821","EJOT JT3-D-6H-5,5/6,3x237 E19","SFS SXC5-S19 6.3x250 (A2)","Z - through longitudinal joint"]
["5220Z - through longitudinal joint",220,5,"30024060","EJOT JT3-D-12H-5,5/6,3x245 E19","SFS SXC5-S19 6.3x250 (A2)","Z - through longitudinal joint"]
["6220Z - through longitudinal joint",220,6,"30024060","EJOT JT3-D-12H-5,5/6,3x245 E19","SFS SXC16-S19 5.8x260 (A2)","Z - through longitudinal joint"]
["8220Z - through longitudinal joint",220,8,"30024060","EJOT JT3-D-12H-5,5/6,3x245 E19","SFS SXC16-S19 5.8x260 (A2)","Z - through longitudinal joint"]
["10220Z - through longitudinal joint",220,10,"30024060","EJOT JT3-D-12H-5,5/6,3x245 E19","SFS SXC16-S19 5.8x260 (A2)","Z - through longitudinal joint"]
["1,5240Z - through longitudinal joint",240,1.5,"30027310","EJOT JT3-D-6H-5,5/6,3x267 E19","SFS SXC5-S19 6.3x250 (A2)","Z - through longitudinal joint"]
["1,75240Z - through longitudinal joint",240,1.75,"30027310","EJOT JT3-D-6H-5,5/6,3x267 E19","SFS SXC5-S19 6.3x250 (A2)","Z - through longitudinal joint"]
["2240Z - through longitudinal joint",240,2,"30027310","EJOT JT3-D-6H-5,5/6,3x267 E19","SFS SXC5-S19 6.3x250 (A2)","Z - through longitudinal joint"]
["2,5240Z - through longitudinal joint",240,2.5,"30027310","EJOT JT3-D-6H-5,5/6,3x267 E19","SFS SXC5-S19 6.3x250 (A2)","Z - through longitudinal joint"]
["3240Z - through longitudinal joint",240,3,"30027310","EJOT JT3-D-6H-5,5/6,3x267 E19","SFS SXC5-S19 6.3x250 (A2)","Z - through longitudinal joint"]
["4240Z - through longitudinal joint",240,4,"30027310","EJOT JT3-D-6H-5,5/6,3x267 E19","SFS SXC5-S19 6.3x250 (A2)","Z - through longitudinal joint"]
["5240Z - through longitudinal joint",240,5,"30027304","EJOT JT3-D-12H-5,5/6,3x275 E19","SFS SXC5-S19 6.3x250 (A2)","Z - through longitudinal joint"]
["6240Z - through longitudinal joint",240,6,"30027304","EJOT JT3-D-12H-5,5/6,3x275 E19","SFS SXC16-S19 5.8x260 (A2)","Z - through longitudinal joint"]
["8240Z - through longitudinal joint",240,8,"30027304","EJOT JT3-D-12H-5,5/6,3x275 E19","SFS SXC16-S19 5.8x260 (A2)","Z - through longitudinal joint"]
["10240Z - through longitudinal joint",240,10,"30027304","EJOT JT3-D-12H-5,5/6,3x275 E19","SFS SXC16-S19 5.8x260 (A2)","Z - through longitudinal joint"]
["1,5250Z - through longitudinal joint",250,1.5,"30027310","EJOT JT3-D-6H-5,5/6,3x267 E19","SFS SXC5-S19 6.3x290 (A2)","Z - through longitudinal joint"]
["1,75250Z - through longitudinal joint",250,1.75,"30027310","EJOT JT3-D-6H-5,5/6,3x267 E19","SFS SXC5-S19 6.3x290 (A2)","Z - through longitudinal joint"]
["2250Z - through longitudinal joint",250,2,"30027310","EJOT JT3-D-6H-5,5/6,3x267 E19","SFS SXC5-S19 6.3x290 (A2)","Z - through longitudinal joint"]
["2,5250Z - through longitudinal joint",250,2.5,"30027310","EJOT JT3-D-6H-5,5/6,3x267 E19","SFS SXC5-S19 6.3x290 (A2)","Z - through longitudinal joint"]
["3250Z - through longitudinal joint",250,3,"30027310","EJOT JT3-D-6H-5,5/6,3x267 E19","SFS SXC5-S19 6.3x290 (A2)","Z - through longitudinal joint"]
["4250Z - through longitudinal joint",250,4,"30027310","EJOT JT3-D-6H-5,5/6,3x267 E19","SFS SXC5-S19 6.3x290 (A2)","Z - through longitudinal joint"]
[{"$f":"C316&B316&G316","v":"5250Z - through longitudinal joint"},250,5,"30027304","EJOT JT3-D-12H-5,5/6,3x275 E19","SFS SXC5-S19 6.3x290 (A2)","Z - through longitudinal joint"]
["6250Z - through longitudinal joint",250,6,"30027304","EJOT JT3-D-12H-5,5/6,3x275 E19","SFS SXC16-S19 5.8x300 (A2)","Z - through longitudinal joint"]
["8250Z - through longitudinal joint",250,8,"30027304","EJOT JT3-D-12H-5,5/6,3x275 E19","SFS SXC16-S19 5.8x300 (A2)","Z - through longitudinal joint"]
["10250Z - through longitudinal joint",250,10,"30027304","EJOT JT3-D-12H-5,5/6,3x275 E19","SFS SXC16-S19 5.8x300 (A2)","Z - through longitudinal joint"]

{"sheet":"AccessoriesMatrix_1","index":15,"n_rows":36,"n_cols":32,"rows_kept":36,"cut":false,"hidden":true,"merged":[]}
["ID","UNIT","IMG","Name","Thickness","Note","B_B_Horizontal","B_BF_Horizontal","BF_B_Horizontal","BF_BF_Horizontal","F_B_Horizontal","F_BF_Horizontal","B_B_Horizontal_brick","B_BF_Horizontal_brick","BF_B_Horizontal_brick","BF_BF_Horizontal_brick","F_B_Horizontal_brick","F_BF_Horizontal_brick","B_B_Horizontal_asymmetrical_brick","B_BF_Horizontal_asymmetrical_brick","BF_B_Horizontal_asymmetrical_brick","BF_BF_Horizontal_asymmetrical_brick","F_B_Horizontal_asymmetrical_brick","F_BF_Horizontal_asymmetrical_brick","B_B_Vertical","B_BF_Vertical","BF_B_Vertical","BF_BF_Vertical","B_B_Vertical_brick","B_BF_Vertical_brick","BF_B_Vertical_brick","BF_BF_Vertical_brick"]
[30032065,"m",null,"Silicone transversal gasket",null,"Gasket is installed together with Decorative aluminium extrusion and can be prolongated anywhere along the joint.\n\nOn special request: \nEPDM Transversal gasket (30014372) - Leave a request in the notes section.","Q2","Q4","Q2","Q4","Q2","Q4","Q2","Q4","Q2","Q4","Q2","Q4","Q2","Q4","Q2","Q4","Q2","Q4","Q2","Q4","Q2","Q4","Q2","Q4","Q2","Q4"]
[30006439,"pcs",null,"Junction drip element (44x156)",null,"The element is installed during facade installation.","Q3","Q5","Q3","Q5"]
[30007027,"pcs",null,"Junction drip element - Brick (44x92)",null,"The element is installed during facade installation.",null,null,null,null,null,null,"Q3","Q5","Q3","Q5","Q3","Q5","Q3","Q5","Q3","Q5","Q3","Q5"]
[30025013,"pcs",null,"Junction drip element - FB (44x140)",null,"The element is installed during facade installation.",null,null,null,null,"Q3","Q5"]
["HF40","pcs",null,"Decorative ALU extrusion (T-HF40)",null,"Aluminium exstrusion is supplied in 4,0m length and is installed together with transversal gasket. It can be powdercoated to match the colour of facade element, or in any other colour to expose the lines on facade.","Q1",null,"Q1",null,"Q1",null,"Q1",null,"Q1",null,"Q1",null,"Q1",null,"Q1",null,"Q1",null,"Q1",null,"Q1",null,"Q1",null,"Q1"]
["HF52","pcs",null,"Decorative ALU extrusion (SQ-HF52)",null,"Aluminium exstrusion is supplied in 4,0m length and is installed together with transversal gasket. It can be powdercoated to match the colour of facade element, or in any other colour to expose the lines on facade.",null,"Q1",null,"Q1",null,"Q1",null,"Q1",null,"Q1",null,"Q1",null,"Q1",null,"Q1",null,"Q1",null,"Q1",null,"Q1",null,"Q1",null,"Q1"]
[30036952,"m",null,"Gasket for HF52 alignment",null,"The gasket is applied to the HF52 profile just before installation into the joint to ensure that the profile is held in the center of the joint. The gasket is supplied in a continuous strap and should be cut into 2-3 cm long pieces. These pieces should be applied to both ends of the profile and at intervals of no more than 2 meters.\nConsumption: approximately 5% of the HF52 length.",null,"Q2",null,"Q2",null,"Q2",null,"Q2",null,"Q2",null,"Q2",null,"Q2",null,"Q2",null,"Q2",null,"Q2",null,"Q2",null,"Q2",null,"Q2"]
[30037045,"pcs",null,"Corner insert for HF52",null,"Element is installed together with HF52 aluminium profile (corners only).\nIts function is to align both ends of HF52.",null,"Q3",null,"Q3",null,"Q3",null,"Q3",null,"Q3",null,"Q3",null,"Q3",null,"Q3",null,"Q3",null,"Q3",null,"Q3",null,"Q3",null,"Q3"]
[30007025,"pcs",null,"EPDM cube gasket (26x26x30)",null,"Gasket is installed in hole after facade elements are installed.","Q4","Q6","Q4","Q6","Q4","Q6","Q4","Q6","Q4",null,"Q4",null,"Q4","Q6","Q4",null,"Q4",null,"Q3","Q5","Q3",null,"Q3","Q5","Q3"]
[30018981,"pcs",null,"EPDM cube gasket (20x20x15)",null,"The element is installed in HF52 verticals (on top). To prevent water to entry inside.",null,"Q7",null,"Q7",null,"Q7",null,"Q6",null,"Q6",null,"Q6",null,"Q7",null,"Q6",null,"Q6",null,"Q6",null,"Q5",null,"Q6",null,"Q5"]
[30006438,"pcs",null,"EPDM drip element",null,"The element is installed during facade installation.","Q5","Q8","Q5","Q8","Q5","Q8","Q5","Q8","Q5","Q7","Q5","Q7","Q5","Q8","Q5","Q7","Q5","Q7"]
[30026912,"pcs",null,"Stainless drip element",null,"The element is installed after facade elements are installed. A mastic seal must be used for sufficient sealing.","Q6","Q9","Q6","Q9","Q6","Q9","Q6","Q9","Q6","Q8","Q6","Q8","Q6","Q9","Q6","Q8","Q6","Q8"]
[30033030,"pcs",null,"Load bearing fixing plate (10x23x150)",null,"The element is installed during facade installation.\nThe majority of plates are preinstalled on facade elements. Where it is not, needs to be ordered separately.","Q7","Q10","Q7","Q10","Q7","Q10","Q7","Q10","Q7","Q9","Q7","Q9","Q7","Q10","Q7","Q9","Q7","Q9","Q4","Q7","Q4","Q6","Q4","Q7","Q4","Q6"]
[30016941,"pcs",null,"Butyl tape+PE (1X50x200)",null,"The element is installed during facade installation.",null,null,null,null,null,null,null,null,null,null,null,null,null,null,null,null,null,null,"Q5","Q8","Q5","Q7","Q5","Q8","Q5","Q7"]
[30029421,"pcs",null,"Seaming tool PS 130",null,"Mechanical assistance tool to assist with squeezing the panels together.",null,null,null,null,null,null,null,null,null,null,null,null,null,null,null,null,null,null,"O4","O4","O4","O4","O4","O4","O4","O4"]
[30007109,"pcs",null,"Qbiss One Installation kit B\n",null,"1 pcs per order plus additional 1 pcs for each 500 m2","Q8","Q11",null,null,null,null,null,null,null,null,null,null,null,null,null,null,null,null,"Q6","Q9"]
[30018303,"pcs",null,"Qbiss One Installation kit Brick",null,"1 pcs per order plus additional 1 pcs for each 500 m2",null,null,null,null,null,null,"Q8","Q11","Q8","Q10","Q8","Q10","Q8","Q11","Q8","Q10","Q8","Q10",null,null,null,null,"Q6","Q9","Q6","Q8"]
[30012195,"pcs",null,"Qbiss One Installation Kit F",null,"1 pcs per order plus additional 1 pcs for each 500 m2",null,null,"Q8","Q11","Q8","Q11",null,null,null,null,null,null,null,null,null,null,null,null,null,null,"Q6","Q8"]
[30025812,"pcs",null,"ADHESIVE 600 ml, EPDM, BLACK (foil pack)",null,"The element is installed during facade installation.\nConsumption: \napprox. 1 pcs/20 m or approx. 1 pcs/100 elements.","O1","O1","O1","O1","O1","O1","O1","O1","O1","O1","O1","O1","O1","O1","O1","O1","O1","O1","O1","O1","O1","O1","O1","O1","O1","O1"]
[30007182,"pcs",null,"ADHESIVE 300 ml, Silicone (DC7091)",null,"The element is installed during facade installation.\nOnly used to prolongate silicone transversal gaskets.","O3","O3","O3","O3","O3","O3","O3","O3","O3","O3","O3","O3","O3","O3","O3","O3","O3","O3","O3","O3","O3","O3","O3","O3","O3","O3"]
[30006985,"m",null,"Sealing tape (PE 5x10)",null,"The element is installed before facade installation.\nIts main purpouse is to assure air- and vapour-tightness.","O2","O2","O2","O2","O2","O2","O2","O2","O2","O2","O2","O2","O2","O2","O2","O2","O2","O2","O2","O2","O2","O2","O2","O2","O2","O2"]
["81010514 (A)","pcs",null,{"$f":"\"Joint profile (L 20x25x1mm L=\"&Table15[[#This Row],[Thickness]]-5&\"mm) (vertical Qbiss)\"","v":{"$error":"#VALUE!"}},{"$f":"IFERROR(SMALL(_xlfn.UNIQUE('Qbiss One elements'!$F$23:$F$297),1),\"NV\")","v":"NV"},{"$f":"IF(COUNTA(_xlfn.UNIQUE(_xlfn._xlws.FILTER('Qbiss One elements'!$F$24:$F$297, 'Qbiss One elements'!$F$24:$F$297<>\"\")))>4,\n\"The element is installed during facade installation. \"&CHAR(10)&\"Its dimension, L = \"&Table15[[#This Row],[Thickness]]-5&\" mm, fits the \"&Table15[[#This Row],[Thickness]]&\" mm module (Lmax = M - 5 mm).\"&CHAR(10)&CHAR(10)&\"In Cutting list are more than 4 different modules! Make list of all lengths manually.\",\n\"The element is installed during facade installation. \"&CHAR(10)&\"Its dimension, L = \"&Table15[[#This Row],[Thickness]]-5&\" mm, fits the \"&Table15[[#This Row],[Thickness]]&\" mm module (Lmax = M - 5 mm).\")","v":{"$error":"#VALUE!"}},null,null,null,null,null,null,null,null,null,null,null,null,null,null,null,null,null,null,{"$f":"IF($E23=\"NV\",\"\",\"Q\"&MAX(IF(ISNUMBER(SEARCH(\"Q\",Y$2:Y22)),MID(Y$2:Y22,2,LEN(Y$2:Y22)-1)+0,0))+1)","v":""},{"$f":"IF($E23=\"NV\",\"\",\"Q\"&MAX(IF(ISNUMBER(SEARCH(\"Q\",Z$2:Z22)),MID(Z$2:Z22,2,LEN(Z$2:Z22)-1)+0,0))+1)","v":""},{"$f":"IF($E23=\"NV\",\"\",\"Q\"&MAX(IF(ISNUMBER(SEARCH(\"Q\",AA$2:AA22)),MID(AA$2:AA22,2,LEN(AA$2:AA22)-1)+0,0))+1)","v":""},{"$f":"IF($E23=\"NV\",\"\",\"Q\"&MAX(IF(ISNUMBER(SEARCH(\"Q\",AB$2:AB22)),MID(AB$2:AB22,2,LEN(AB$2:AB22)-1)+0,0))+1)","v":""},{"$f":"IF($E23=\"NV\",\"\",\"Q\"&MAX(IF(ISNUMBER(SEARCH(\"Q\",AC$2:AC22)),MID(AC$2:AC22,2,LEN(AC$2:AC22)-1)+0,0))+1)","v":""},{"$f":"IF($E23=\"NV\",\"\",\"Q\"&MAX(IF(ISNUMBER(SEARCH(\"Q\",AD$2:AD22)),MID(AD$2:AD22,2,LEN(AD$2:AD22)-1)+0,0))+1)","v":""},{"$f":"IF($E23=\"NV\",\"\",\"Q\"&MAX(IF(ISNUMBER(SEARCH(\"Q\",AE$2:AE22)),MID(AE$2:AE22,2,LEN(AE$2:AE22)-1)+0,0))+1)","v":""},{"$f":"IF($E23=\"NV\",\"\",\"Q\"&MAX(IF(ISNUMBER(SEARCH(\"Q\",AF$2:AF22)),MID(AF$2:AF22,2,LEN(AF$2:AF22)-1)+0,0))+1)","v":""}]
["81010514 (B)","pcs",null,{"$f":"\"Joint profile (L 20x25x1mm L=\"&Table15[[#This Row],[Thickness]]-5&\"mm) (vertical Qbiss)\"","v":{"$error":"#VALUE!"}},{"$f":"IFERROR(SMALL(_xlfn.UNIQUE('Qbiss One elements'!$F$23:$F$297),2),\"NV\")","v":"NV"},{"$f":"IF(COUNTA(_xlfn.UNIQUE(_xlfn._xlws.FILTER('Qbiss One elements'!$F$24:$F$297, 'Qbiss One elements'!$F$24:$F$297<>\"\")))>4,\n\"The element is installed during facade installation. \"&CHAR(10)&\"Its dimension, L = \"&Table15[[#This Row],[Thickness]]-5&\" mm, fits the \"&Table15[[#This Row],[Thickness]]&\" mm module (Lmax = M - 5 mm).\"&CHAR(10)&CHAR(10)&\"In Cutting list are more than 4 different modules! Make list of all lengths manually.\",\n\"The element is installed during facade installation. \"&CHAR(10)&\"Its dimension, L = \"&Table15[[#This Row],[Thickness]]-5&\" mm, fits the \"&Table15[[#This Row],[Thickness]]&\" mm module (Lmax = M - 5 mm).\")","v":{"$error":"#VALUE!"}},null,null,null,null,null,null,null,null,null,null,null,null,null,null,null,null,null,null,{"$f":"IF($E24=\"NV\",\"\",\"Q\"&MAX(IF(ISNUMBER(SEARCH(\"Q\",Y$2:Y23)),MID(Y$2:Y23,2,LEN(Y$2:Y23)-1)+0,0))+1)","v":""},{"$f":"IF($E24=\"NV\",\"\",\"Q\"&MAX(IF(ISNUMBER(SEARCH(\"Q\",Z$2:Z23)),MID(Z$2:Z23,2,LEN(Z$2:Z23)-1)+0,0))+1)","v":""},{"$f":"IF($E24=\"NV\",\"\",\"Q\"&MAX(IF(ISNUMBER(SEARCH(\"Q\",AA$2:AA23)),MID(AA$2:AA23,2,LEN(AA$2:AA23)-1)+0,0))+1)","v":""},{"$f":"IF($E24=\"NV\",\"\",\"Q\"&MAX(IF(ISNUMBER(SEARCH(\"Q\",AB$2:AB23)),MID(AB$2:AB23,2,LEN(AB$2:AB23)-1)+0,0))+1)","v":""},{"$f":"IF($E24=\"NV\",\"\",\"Q\"&MAX(IF(ISNUMBER(SEARCH(\"Q\",AC$2:AC23)),MID(AC$2:AC23,2,LEN(AC$2:AC23)-1)+0,0))+1)","v":""},{"$f":"IF($E24=\"NV\",\"\",\"Q\"&MAX(IF(ISNUMBER(SEARCH(\"Q\",AD$2:AD23)),MID(AD$2:AD23,2,LEN(AD$2:AD23)-1)+0,0))+1)","v":""},{"$f":"IF($E24=\"NV\",\"\",\"Q\"&MAX(IF(ISNUMBER(SEARCH(\"Q\",AE$2:AE23)),MID(AE$2:AE23,2,LEN(AE$2:AE23)-1)+0,0))+1)","v":""},{"$f":"IF($E24=\"NV\",\"\",\"Q\"&MAX(IF(ISNUMBER(SEARCH(\"Q\",AF$2:AF23)),MID(AF$2:AF23,2,LEN(AF$2:AF23)-1)+0,0))+1)","v":""}]
["81010514 (C)","pcs",null,{"$f":"\"Joint profile (L 20x25x1mm L=\"&Table15[[#This Row],[Thickness]]-5&\"mm) (vertical Qbiss)\"","v":{"$error":"#VALUE!"}},{"$f":"IFERROR(SMALL(_xlfn.UNIQUE('Qbiss One elements'!$F$23:$F$297),3),\"NV\")","v":"NV"},{"$f":"IF(COUNTA(_xlfn.UNIQUE(_xlfn._xlws.FILTER('Qbiss One elements'!$F$24:$F$297, 'Qbiss One elements'!$F$24:$F$297<>\"\")))>4,\n\"The element is installed during facade installation. \"&CHAR(10)&\"Its dimension, L = \"&Table15[[#This Row],[Thickness]]-5&\" mm, fits the \"&Table15[[#This Row],[Thickness]]&\" mm module (Lmax = M - 5 mm).\"&CHAR(10)&CHAR(10)&\"In Cutting list are more than 4 different modules! Make list of all lengths manually.\",\n\"The element is installed during facade installation. \"&CHAR(10)&\"Its dimension, L = \"&Table15[[#This Row],[Thickness]]-5&\" mm, fits the \"&Table15[[#This Row],[Thickness]]&\" mm module (Lmax = M - 5 mm).\")","v":{"$error":"#VALUE!"}},null,null,null,null,null,null,null,null,null,null,null,null,null,null,null,null,null,null,{"$f":"IF($E25=\"NV\",\"\",\"Q\"&MAX(IF(ISNUMBER(SEARCH(\"Q\",Y$2:Y24)),MID(Y$2:Y24,2,LEN(Y$2:Y24)-1)+0,0))+1)","v":""},{"$f":"IF($E25=\"NV\",\"\",\"Q\"&MAX(IF(ISNUMBER(SEARCH(\"Q\",Z$2:Z24)),MID(Z$2:Z24,2,LEN(Z$2:Z24)-1)+0,0))+1)","v":""},{"$f":"IF($E25=\"NV\",\"\",\"Q\"&MAX(IF(ISNUMBER(SEARCH(\"Q\",AA$2:AA24)),MID(AA$2:AA24,2,LEN(AA$2:AA24)-1)+0,0))+1)","v":""},{"$f":"IF($E25=\"NV\",\"\",\"Q\"&MAX(IF(ISNUMBER(SEARCH(\"Q\",AB$2:AB24)),MID(AB$2:AB24,2,LEN(AB$2:AB24)-1)+0,0))+1)","v":""},{"$f":"IF($E25=\"NV\",\"\",\"Q\"&MAX(IF(ISNUMBER(SEARCH(\"Q\",AC$2:AC24)),MID(AC$2:AC24,2,LEN(AC$2:AC24)-1)+0,0))+1)","v":""},{"$f":"IF($E25=\"NV\",\"\",\"Q\"&MAX(IF(ISNUMBER(SEARCH(\"Q\",AD$2:AD24)),MID(AD$2:AD24,2,LEN(AD$2:AD24)-1)+0,0))+1)","v":""},{"$f":"IF($E25=\"NV\",\"\",\"Q\"&MAX(IF(ISNUMBER(SEARCH(\"Q\",AE$2:AE24)),MID(AE$2:AE24,2,LEN(AE$2:AE24)-1)+0,0))+1)","v":""},{"$f":"IF($E25=\"NV\",\"\",\"Q\"&MAX(IF(ISNUMBER(SEARCH(\"Q\",AF$2:AF24)),MID(AF$2:AF24,2,LEN(AF$2:AF24)-1)+0,0))+1)","v":""}]
["81010514 (D)","pcs",null,{"$f":"\"Joint profile (L 20x25x1mm L=\"&Table15[[#This Row],[Thickness]]-5&\"mm) (vertical Qbiss)\"","v":{"$error":"#VALUE!"}},{"$f":"IFERROR(SMALL(_xlfn.UNIQUE('Qbiss One elements'!$F$23:$F$297),4),\"NV\")","v":"NV"},{"$f":"IF(COUNTA(_xlfn.UNIQUE(_xlfn._xlws.FILTER('Qbiss One elements'!$F$24:$F$297, 'Qbiss One elements'!$F$24:$F$297<>\"\")))>4,\n\"The element is installed during facade installation. \"&CHAR(10)&\"Its dimension, L = \"&Table15[[#This Row],[Thickness]]-5&\" mm, fits the \"&Table15[[#This Row],[Thickness]]&\" mm module (Lmax = M - 5 mm).\"&CHAR(10)&CHAR(10)&\"In Cutting list are more than 4 different modules! Make list of all lengths manually.\",\n\"The element is installed during facade installation. \"&CHAR(10)&\"Its dimension, L = \"&Table15[[#This Row],[Thickness]]-5&\" mm, fits the \"&Table15[[#This Row],[Thickness]]&\" mm module (Lmax = M - 5 mm).\")","v":{"$error":"#VALUE!"}},null,null,null,null,null,null,null,null,null,null,null,null,null,null,null,null,null,null,{"$f":"IF($E26=\"NV\",\"\",\"Q\"&MAX(IF(ISNUMBER(SEARCH(\"Q\",Y$2:Y25)),MID(Y$2:Y25,2,LEN(Y$2:Y25)-1)+0,0))+1)","v":""},{"$f":"IF($E26=\"NV\",\"\",\"Q\"&MAX(IF(ISNUMBER(SEARCH(\"Q\",Z$2:Z25)),MID(Z$2:Z25,2,LEN(Z$2:Z25)-1)+0,0))+1)","v":""},{"$f":"IF($E26=\"NV\",\"\",\"Q\"&MAX(IF(ISNUMBER(SEARCH(\"Q\",AA$2:AA25)),MID(AA$2:AA25,2,LEN(AA$2:AA25)-1)+0,0))+1)","v":""},{"$f":"IF($E26=\"NV\",\"\",\"Q\"&MAX(IF(ISNUMBER(SEARCH(\"Q\",AB$2:AB25)),MID(AB$2:AB25,2,LEN(AB$2:AB25)-1)+0,0))+1)","v":""},{"$f":"IF($E26=\"NV\",\"\",\"Q\"&MAX(IF(ISNUMBER(SEARCH(\"Q\",AC$2:AC25)),MID(AC$2:AC25,2,LEN(AC$2:AC25)-1)+0,0))+1)","v":""},{"$f":"IF($E26=\"NV\",\"\",\"Q\"&MAX(IF(ISNUMBER(SEARCH(\"Q\",AD$2:AD25)),MID(AD$2:AD25,2,LEN(AD$2:AD25)-1)+0,0))+1)","v":""},{"$f":"IF($E26=\"NV\",\"\",\"Q\"&MAX(IF(ISNUMBER(SEARCH(\"Q\",AE$2:AE25)),MID(AE$2:AE25,2,LEN(AE$2:AE25)-1)+0,0))+1)","v":""},{"$f":"IF($E26=\"NV\",\"\",\"Q\"&MAX(IF(ISNUMBER(SEARCH(\"Q\",AF$2:AF25)),MID(AF$2:AF25,2,LEN(AF$2:AF25)-1)+0,0))+1)","v":""}]
["NV"]
[30006617,"pcs",null,"Gripper of Qbiss One \nPHQ-80",80,"Specific for element thickness.\nLifting with one gripper is allowed for element length up to 1,0 m. \nFor longer elements two grippers are requested.",{"$f":"IF(COUNTIF('Qbiss One elements'!$E$24:$E$494,Table15[[#This Row],[Thickness]])>0,\n\"O\"&MAX(IF(ISNUMBER(SEARCH(\"O\",G$2:G27)),MID(G$2:G27,2,LEN(G$2:G27)-1)+0,0))+1,\"\")","v":""},{"$f":"IF(COUNTIF('Qbiss One elements'!$E$24:$E$494,Table15[[#This Row],[Thickness]])>0,\n\"O\"&MAX(IF(ISNUMBER(SEARCH(\"O\",H$2:H27)),MID(H$2:H27,2,LEN(H$2:H27)-1)+0,0))+1,\"\")","v":""},{"$f":"IF(COUNTIF('Qbiss One elements'!$E$24:$E$494,Table15[[#This Row],[Thickness]])>0,\n\"O\"&MAX(IF(ISNUMBER(SEARCH(\"O\",I$2:I27)),MID(I$2:I27,2,LEN(I$2:I27)-1)+0,0))+1,\"\")","v":""},{"$f":"IF(COUNTIF('Qbiss One elements'!$E$24:$E$494,Table15[[#This Row],[Thickness]])>0,\n\"O\"&MAX(IF(ISNUMBER(SEARCH(\"O\",J$2:J27)),MID(J$2:J27,2,LEN(J$2:J27)-1)+0,0))+1,\"\")","v":""},{"$f":"IF(COUNTIF('Qbiss One elements'!$E$24:$E$494,Table15[[#This Row],[Thickness]])>0,\n\"O\"&MAX(IF(ISNUMBER(SEARCH(\"O\",K$2:K27)),MID(K$2:K27,2,LEN(K$2:K27)-1)+0,0))+1,\"\")","v":""},{"$f":"IF(COUNTIF('Qbiss One elements'!$E$24:$E$494,Table15[[#This Row],[Thickness]])>0,\n\"O\"&MAX(IF(ISNUMBER(SEARCH(\"O\",L$2:L27)),MID(L$2:L27,2,LEN(L$2:L27)-1)+0,0))+1,\"\")","v":""},{"$f":"IF(COUNTIF('Qbiss One elements'!$E$24:$E$494,Table15[[#This Row],[Thickness]])>0,\n\"O\"&MAX(IF(ISNUMBER(SEARCH(\"O\",M$2:M27)),MID(M$2:M27,2,LEN(M$2:M27)-1)+0,0))+1,\"\")","v":""},{"$f":"IF(COUNTIF('Qbiss One elements'!$E$24:$E$494,Table15[[#This Row],[Thickness]])>0,\n\"O\"&MAX(IF(ISNUMBER(SEARCH(\"O\",N$2:N27)),MID(N$2:N27,2,LEN(N$2:N27)-1)+0,0))+1,\"\")","v":""},{"$f":"IF(COUNTIF('Qbiss One elements'!$E$24:$E$494,Table15[[#This Row],[Thickness]])>0,\n\"O\"&MAX(IF(ISNUMBER(SEARCH(\"O\",O$2:O27)),MID(O$2:O27,2,LEN(O$2:O27)-1)+0,0))+1,\"\")","v":""},{"$f":"IF(COUNTIF('Qbiss One elements'!$E$24:$E$494,Table15[[#This Row],[Thickness]])>0,\n\"O\"&MAX(IF(ISNUMBER(SEARCH(\"O\",P$2:P27)),MID(P$2:P27,2,LEN(P$2:P27)-1)+0,0))+1,\"\")","v":""},{"$f":"IF(COUNTIF('Qbiss One elements'!$E$24:$E$494,Table15[[#This Row],[Thickness]])>0,\n\"O\"&MAX(IF(ISNUMBER(SEARCH(\"O\",Q$2:Q27)),MID(Q$2:Q27,2,LEN(Q$2:Q27)-1)+0,0))+1,\"\")","v":""},{"$f":"IF(COUNTIF('Qbiss One elements'!$E$24:$E$494,Table15[[#This Row],[Thickness]])>0,\n\"O\"&MAX(IF(ISNUMBER(SEARCH(\"O\",R$2:R27)),MID(R$2:R27,2,LEN(R$2:R27)-1)+0,0))+1,\"\")","v":""},{"$f":"IF(COUNTIF('Qbiss One elements'!$E$24:$E$494,Table15[[#This Row],[Thickness]])>0,\n\"O\"&MAX(IF(ISNUMBER(SEARCH(\"O\",S$2:S27)),MID(S$2:S27,2,LEN(S$2:S27)-1)+0,0))+1,\"\")","v":""},{"$f":"IF(COUNTIF('Qbiss One elements'!$E$24:$E$494,Table15[[#This Row],[Thickness]])>0,\n\"O\"&MAX(IF(ISNUMBER(SEARCH(\"O\",T$2:T27)),MID(T$2:T27,2,LEN(T$2:T27)-1)+0,0))+1,\"\")","v":""},{"$f":"IF(COUNTIF('Qbiss One elements'!$E$24:$E$494,Table15[[#This Row],[Thickness]])>0,\n\"O\"&MAX(IF(ISNUMBER(SEARCH(\"O\",U$2:U27)),MID(U$2:U27,2,LEN(U$2:U27)-1)+0,0))+1,\"\")","v":""},{"$f":"IF(COUNTIF('Qbiss One elements'!$E$24:$E$494,Table15[[#This Row],[Thickness]])>0,\n\"O\"&MAX(IF(ISNUMBER(SEARCH(\"O\",V$2:V27)),MID(V$2:V27,2,LEN(V$2:V27)-1)+0,0))+1,\"\")","v":""},{"$f":"IF(COUNTIF('Qbiss One elements'!$E$24:$E$494,Table15[[#This Row],[Thickness]])>0,\"O\"&MAX(IF(ISNUMBER(SEARCH(\"O\",W$2:W27)),MID(W$2:W27,2,LEN(W$2:W27)-1)+0,0))+1,\"\")","v":""},{"$f":"IF(COUNTIF('Qbiss One elements'!$E$24:$E$494,Table15[[#This Row],[Thickness]])>0,\n\"O\"&MAX(IF(ISNUMBER(SEARCH(\"O\",X$2:X27)),MID(X$2:X27,2,LEN(X$2:X27)-1)+0,0))+1,\"\")","v":""}]
[30006784,"pcs",null,"Gripper of Qbiss One \nPHQ-100",100,"Specific for element thickness.\nLifting with one gripper is allowed for element length up to 1,0 m. \nFor longer elements two grippers are requested.",{"$f":"IF(COUNTIF('Qbiss One elements'!$E$24:$E$494,Table15[[#This Row],[Thickness]])>0,\n\"O\"&MAX(IF(ISNUMBER(SEARCH(\"O\",G$2:G28)),MID(G$2:G28,2,LEN(G$2:G28)-1)+0,0))+1,\"\")","v":""},{"$f":"IF(COUNTIF('Qbiss One elements'!$E$24:$E$494,Table15[[#This Row],[Thickness]])>0,\n\"O\"&MAX(IF(ISNUMBER(SEARCH(\"O\",H$2:H28)),MID(H$2:H28,2,LEN(H$2:H28)-1)+0,0))+1,\"\")","v":""},{"$f":"IF(COUNTIF('Qbiss One elements'!$E$24:$E$494,Table15[[#This Row],[Thickness]])>0,\n\"O\"&MAX(IF(ISNUMBER(SEARCH(\"O\",I$2:I28)),MID(I$2:I28,2,LEN(I$2:I28)-1)+0,0))+1,\"\")","v":""},{"$f":"IF(COUNTIF('Qbiss One elements'!$E$24:$E$494,Table15[[#This Row],[Thickness]])>0,\n\"O\"&MAX(IF(ISNUMBER(SEARCH(\"O\",J$2:J28)),MID(J$2:J28,2,LEN(J$2:J28)-1)+0,0))+1,\"\")","v":""},{"$f":"IF(COUNTIF('Qbiss One elements'!$E$24:$E$494,Table15[[#This Row],[Thickness]])>0,\n\"O\"&MAX(IF(ISNUMBER(SEARCH(\"O\",K$2:K28)),MID(K$2:K28,2,LEN(K$2:K28)-1)+0,0))+1,\"\")","v":""},{"$f":"IF(COUNTIF('Qbiss One elements'!$E$24:$E$494,Table15[[#This Row],[Thickness]])>0,\n\"O\"&MAX(IF(ISNUMBER(SEARCH(\"O\",L$2:L28)),MID(L$2:L28,2,LEN(L$2:L28)-1)+0,0))+1,\"\")","v":""},{"$f":"IF(COUNTIF('Qbiss One elements'!$E$24:$E$494,Table15[[#This Row],[Thickness]])>0,\n\"O\"&MAX(IF(ISNUMBER(SEARCH(\"O\",M$2:M28)),MID(M$2:M28,2,LEN(M$2:M28)-1)+0,0))+1,\"\")","v":""},{"$f":"IF(COUNTIF('Qbiss One elements'!$E$24:$E$494,Table15[[#This Row],[Thickness]])>0,\n\"O\"&MAX(IF(ISNUMBER(SEARCH(\"O\",N$2:N28)),MID(N$2:N28,2,LEN(N$2:N28)-1)+0,0))+1,\"\")","v":""},{"$f":"IF(COUNTIF('Qbiss One elements'!$E$24:$E$494,Table15[[#This Row],[Thickness]])>0,\n\"O\"&MAX(IF(ISNUMBER(SEARCH(\"O\",O$2:O28)),MID(O$2:O28,2,LEN(O$2:O28)-1)+0,0))+1,\"\")","v":""},{"$f":"IF(COUNTIF('Qbiss One elements'!$E$24:$E$494,Table15[[#This Row],[Thickness]])>0,\n\"O\"&MAX(IF(ISNUMBER(SEARCH(\"O\",P$2:P28)),MID(P$2:P28,2,LEN(P$2:P28)-1)+0,0))+1,\"\")","v":""},{"$f":"IF(COUNTIF('Qbiss One elements'!$E$24:$E$494,Table15[[#This Row],[Thickness]])>0,\n\"O\"&MAX(IF(ISNUMBER(SEARCH(\"O\",Q$2:Q28)),MID(Q$2:Q28,2,LEN(Q$2:Q28)-1)+0,0))+1,\"\")","v":""},{"$f":"IF(COUNTIF('Qbiss One elements'!$E$24:$E$494,Table15[[#This Row],[Thickness]])>0,\n\"O\"&MAX(IF(ISNUMBER(SEARCH(\"O\",R$2:R28)),MID(R$2:R28,2,LEN(R$2:R28)-1)+0,0))+1,\"\")","v":""},{"$f":"IF(COUNTIF('Qbiss One elements'!$E$24:$E$494,Table15[[#This Row],[Thickness]])>0,\n\"O\"&MAX(IF(ISNUMBER(SEARCH(\"O\",S$2:S28)),MID(S$2:S28,2,LEN(S$2:S28)-1)+0,0))+1,\"\")","v":""},{"$f":"IF(COUNTIF('Qbiss One elements'!$E$24:$E$494,Table15[[#This Row],[Thickness]])>0,\n\"O\"&MAX(IF(ISNUMBER(SEARCH(\"O\",T$2:T28)),MID(T$2:T28,2,LEN(T$2:T28)-1)+0,0))+1,\"\")","v":""},{"$f":"IF(COUNTIF('Qbiss One elements'!$E$24:$E$494,Table15[[#This Row],[Thickness]])>0,\n\"O\"&MAX(IF(ISNUMBER(SEARCH(\"O\",U$2:U28)),MID(U$2:U28,2,LEN(U$2:U28)-1)+0,0))+1,\"\")","v":""},{"$f":"IF(COUNTIF('Qbiss One elements'!$E$24:$E$494,Table15[[#This Row],[Thickness]])>0,\n\"O\"&MAX(IF(ISNUMBER(SEARCH(\"O\",V$2:V28)),MID(V$2:V28,2,LEN(V$2:V28)-1)+0,0))+1,\"\")","v":""},{"$f":"IF(COUNTIF('Qbiss One elements'!$E$24:$E$494,Table15[[#This Row],[Thickness]])>0,\n\"O\"&MAX(IF(ISNUMBER(SEARCH(\"O\",W$2:W28)),MID(W$2:W28,2,LEN(W$2:W28)-1)+0,0))+1,\"\")","v":""},{"$f":"IF(COUNTIF('Qbiss One elements'!$E$24:$E$494,Table15[[#This Row],[Thickness]])>0,\n\"O\"&MAX(IF(ISNUMBER(SEARCH(\"O\",X$2:X28)),MID(X$2:X28,2,LEN(X$2:X28)-1)+0,0))+1,\"\")","v":""}]
[30006785,"pcs",null,"Gripper of Qbiss One \nPHQ-120",120,"Specific for element thickness.\nLifting with one gripper is allowed for element length up to 1,0 m. \nFor longer elements two grippers are requested.",{"$f":"IF(COUNTIF('Qbiss One elements'!$E$24:$E$494,Table15[[#This Row],[Thickness]])>0,\n\"O\"&MAX(IF(ISNUMBER(SEARCH(\"O\",G$2:G29)),MID(G$2:G29,2,LEN(G$2:G29)-1)+0,0))+1,\"\")","v":""},{"$f":"IF(COUNTIF('Qbiss One elements'!$E$24:$E$494,Table15[[#This Row],[Thickness]])>0,\n\"O\"&MAX(IF(ISNUMBER(SEARCH(\"O\",H$2:H29)),MID(H$2:H29,2,LEN(H$2:H29)-1)+0,0))+1,\"\")","v":""},{"$f":"IF(COUNTIF('Qbiss One elements'!$E$24:$E$494,Table15[[#This Row],[Thickness]])>0,\n\"O\"&MAX(IF(ISNUMBER(SEARCH(\"O\",I$2:I29)),MID(I$2:I29,2,LEN(I$2:I29)-1)+0,0))+1,\"\")","v":""},{"$f":"IF(COUNTIF('Qbiss One elements'!$E$24:$E$494,Table15[[#This Row],[Thickness]])>0,\n\"O\"&MAX(IF(ISNUMBER(SEARCH(\"O\",J$2:J29)),MID(J$2:J29,2,LEN(J$2:J29)-1)+0,0))+1,\"\")","v":""},{"$f":"IF(COUNTIF('Qbiss One elements'!$E$24:$E$494,Table15[[#This Row],[Thickness]])>0,\n\"O\"&MAX(IF(ISNUMBER(SEARCH(\"O\",K$2:K29)),MID(K$2:K29,2,LEN(K$2:K29)-1)+0,0))+1,\"\")","v":""},{"$f":"IF(COUNTIF('Qbiss One elements'!$E$24:$E$494,Table15[[#This Row],[Thickness]])>0,\n\"O\"&MAX(IF(ISNUMBER(SEARCH(\"O\",L$2:L29)),MID(L$2:L29,2,LEN(L$2:L29)-1)+0,0))+1,\"\")","v":""},{"$f":"IF(COUNTIF('Qbiss One elements'!$E$24:$E$494,Table15[[#This Row],[Thickness]])>0,\n\"O\"&MAX(IF(ISNUMBER(SEARCH(\"O\",M$2:M29)),MID(M$2:M29,2,LEN(M$2:M29)-1)+0,0))+1,\"\")","v":""},{"$f":"IF(COUNTIF('Qbiss One elements'!$E$24:$E$494,Table15[[#This Row],[Thickness]])>0,\n\"O\"&MAX(IF(ISNUMBER(SEARCH(\"O\",N$2:N29)),MID(N$2:N29,2,LEN(N$2:N29)-1)+0,0))+1,\"\")","v":""},{"$f":"IF(COUNTIF('Qbiss One elements'!$E$24:$E$494,Table15[[#This Row],[Thickness]])>0,\n\"O\"&MAX(IF(ISNUMBER(SEARCH(\"O\",O$2:O29)),MID(O$2:O29,2,LEN(O$2:O29)-1)+0,0))+1,\"\")","v":""},{"$f":"IF(COUNTIF('Qbiss One elements'!$E$24:$E$494,Table15[[#This Row],[Thickness]])>0,\n\"O\"&MAX(IF(ISNUMBER(SEARCH(\"O\",P$2:P29)),MID(P$2:P29,2,LEN(P$2:P29)-1)+0,0))+1,\"\")","v":""},{"$f":"IF(COUNTIF('Qbiss One elements'!$E$24:$E$494,Table15[[#This Row],[Thickness]])>0,\n\"O\"&MAX(IF(ISNUMBER(SEARCH(\"O\",Q$2:Q29)),MID(Q$2:Q29,2,LEN(Q$2:Q29)-1)+0,0))+1,\"\")","v":""},{"$f":"IF(COUNTIF('Qbiss One elements'!$E$24:$E$494,Table15[[#This Row],[Thickness]])>0,\n\"O\"&MAX(IF(ISNUMBER(SEARCH(\"O\",R$2:R29)),MID(R$2:R29,2,LEN(R$2:R29)-1)+0,0))+1,\"\")","v":""},{"$f":"IF(COUNTIF('Qbiss One elements'!$E$24:$E$494,Table15[[#This Row],[Thickness]])>0,\n\"O\"&MAX(IF(ISNUMBER(SEARCH(\"O\",S$2:S29)),MID(S$2:S29,2,LEN(S$2:S29)-1)+0,0))+1,\"\")","v":""},{"$f":"IF(COUNTIF('Qbiss One elements'!$E$24:$E$494,Table15[[#This Row],[Thickness]])>0,\n\"O\"&MAX(IF(ISNUMBER(SEARCH(\"O\",T$2:T29)),MID(T$2:T29,2,LEN(T$2:T29)-1)+0,0))+1,\"\")","v":""},{"$f":"IF(COUNTIF('Qbiss One elements'!$E$24:$E$494,Table15[[#This Row],[Thickness]])>0,\n\"O\"&MAX(IF(ISNUMBER(SEARCH(\"O\",U$2:U29)),MID(U$2:U29,2,LEN(U$2:U29)-1)+0,0))+1,\"\")","v":""},{"$f":"IF(COUNTIF('Qbiss One elements'!$E$24:$E$494,Table15[[#This Row],[Thickness]])>0,\n\"O\"&MAX(IF(ISNUMBER(SEARCH(\"O\",V$2:V29)),MID(V$2:V29,2,LEN(V$2:V29)-1)+0,0))+1,\"\")","v":""},{"$f":"IF(COUNTIF('Qbiss One elements'!$E$24:$E$494,Table15[[#This Row],[Thickness]])>0,\n\"O\"&MAX(IF(ISNUMBER(SEARCH(\"O\",W$2:W29)),MID(W$2:W29,2,LEN(W$2:W29)-1)+0,0))+1,\"\")","v":""},{"$f":"IF(COUNTIF('Qbiss One elements'!$E$24:$E$494,Table15[[#This Row],[Thickness]])>0,\n\"O\"&MAX(IF(ISNUMBER(SEARCH(\"O\",X$2:X29)),MID(X$2:X29,2,LEN(X$2:X29)-1)+0,0))+1,\"\")","v":""}]
[30014866,"pcs",null,"Gripper of Qbiss One \nPHQ-133",133,"Specific for element thickness.\nLifting with one gripper is allowed for element length up to 1,0 m. \nFor longer elements two grippers are requested.",{"$f":"IF(COUNTIF('Qbiss One elements'!$E$24:$E$494,Table15[[#This Row],[Thickness]])>0,\n\"O\"&MAX(IF(ISNUMBER(SEARCH(\"O\",G$2:G30)),MID(G$2:G30,2,LEN(G$2:G30)-1)+0,0))+1,\"\")","v":""},{"$f":"IF(COUNTIF('Qbiss One elements'!$E$24:$E$494,Table15[[#This Row],[Thickness]])>0,\n\"O\"&MAX(IF(ISNUMBER(SEARCH(\"O\",H$2:H30)),MID(H$2:H30,2,LEN(H$2:H30)-1)+0,0))+1,\"\")","v":""},{"$f":"IF(COUNTIF('Qbiss One elements'!$E$24:$E$494,Table15[[#This Row],[Thickness]])>0,\n\"O\"&MAX(IF(ISNUMBER(SEARCH(\"O\",I$2:I30)),MID(I$2:I30,2,LEN(I$2:I30)-1)+0,0))+1,\"\")","v":""},{"$f":"IF(COUNTIF('Qbiss One elements'!$E$24:$E$494,Table15[[#This Row],[Thickness]])>0,\n\"O\"&MAX(IF(ISNUMBER(SEARCH(\"O\",J$2:J30)),MID(J$2:J30,2,LEN(J$2:J30)-1)+0,0))+1,\"\")","v":""},{"$f":"IF(COUNTIF('Qbiss One elements'!$E$24:$E$494,Table15[[#This Row],[Thickness]])>0,\n\"O\"&MAX(IF(ISNUMBER(SEARCH(\"O\",K$2:K30)),MID(K$2:K30,2,LEN(K$2:K30)-1)+0,0))+1,\"\")","v":""},{"$f":"IF(COUNTIF('Qbiss One elements'!$E$24:$E$494,Table15[[#This Row],[Thickness]])>0,\n\"O\"&MAX(IF(ISNUMBER(SEARCH(\"O\",L$2:L30)),MID(L$2:L30,2,LEN(L$2:L30)-1)+0,0))+1,\"\")","v":""},{"$f":"IF(COUNTIF('Qbiss One elements'!$E$24:$E$494,Table15[[#This Row],[Thickness]])>0,\n\"O\"&MAX(IF(ISNUMBER(SEARCH(\"O\",M$2:M30)),MID(M$2:M30,2,LEN(M$2:M30)-1)+0,0))+1,\"\")","v":""},{"$f":"IF(COUNTIF('Qbiss One elements'!$E$24:$E$494,Table15[[#This Row],[Thickness]])>0,\n\"O\"&MAX(IF(ISNUMBER(SEARCH(\"O\",N$2:N30)),MID(N$2:N30,2,LEN(N$2:N30)-1)+0,0))+1,\"\")","v":""},{"$f":"IF(COUNTIF('Qbiss One elements'!$E$24:$E$494,Table15[[#This Row],[Thickness]])>0,\n\"O\"&MAX(IF(ISNUMBER(SEARCH(\"O\",O$2:O30)),MID(O$2:O30,2,LEN(O$2:O30)-1)+0,0))+1,\"\")","v":""},{"$f":"IF(COUNTIF('Qbiss One elements'!$E$24:$E$494,Table15[[#This Row],[Thickness]])>0,\n\"O\"&MAX(IF(ISNUMBER(SEARCH(\"O\",P$2:P30)),MID(P$2:P30,2,LEN(P$2:P30)-1)+0,0))+1,\"\")","v":""},{"$f":"IF(COUNTIF('Qbiss One elements'!$E$24:$E$494,Table15[[#This Row],[Thickness]])>0,\n\"O\"&MAX(IF(ISNUMBER(SEARCH(\"O\",Q$2:Q30)),MID(Q$2:Q30,2,LEN(Q$2:Q30)-1)+0,0))+1,\"\")","v":""},{"$f":"IF(COUNTIF('Qbiss One elements'!$E$24:$E$494,Table15[[#This Row],[Thickness]])>0,\n\"O\"&MAX(IF(ISNUMBER(SEARCH(\"O\",R$2:R30)),MID(R$2:R30,2,LEN(R$2:R30)-1)+0,0))+1,\"\")","v":""},{"$f":"IF(COUNTIF('Qbiss One elements'!$E$24:$E$494,Table15[[#This Row],[Thickness]])>0,\n\"O\"&MAX(IF(ISNUMBER(SEARCH(\"O\",S$2:S30)),MID(S$2:S30,2,LEN(S$2:S30)-1)+0,0))+1,\"\")","v":""},{"$f":"IF(COUNTIF('Qbiss One elements'!$E$24:$E$494,Table15[[#This Row],[Thickness]])>0,\n\"O\"&MAX(IF(ISNUMBER(SEARCH(\"O\",T$2:T30)),MID(T$2:T30,2,LEN(T$2:T30)-1)+0,0))+1,\"\")","v":""},{"$f":"IF(COUNTIF('Qbiss One elements'!$E$24:$E$494,Table15[[#This Row],[Thickness]])>0,\n\"O\"&MAX(IF(ISNUMBER(SEARCH(\"O\",U$2:U30)),MID(U$2:U30,2,LEN(U$2:U30)-1)+0,0))+1,\"\")","v":""},{"$f":"IF(COUNTIF('Qbiss One elements'!$E$24:$E$494,Table15[[#This Row],[Thickness]])>0,\n\"O\"&MAX(IF(ISNUMBER(SEARCH(\"O\",V$2:V30)),MID(V$2:V30,2,LEN(V$2:V30)-1)+0,0))+1,\"\")","v":""},{"$f":"IF(COUNTIF('Qbiss One elements'!$E$24:$E$494,Table15[[#This Row],[Thickness]])>0,\n\"O\"&MAX(IF(ISNUMBER(SEARCH(\"O\",W$2:W30)),MID(W$2:W30,2,LEN(W$2:W30)-1)+0,0))+1,\"\")","v":""},{"$f":"IF(COUNTIF('Qbiss One elements'!$E$24:$E$494,Table15[[#This Row],[Thickness]])>0,\n\"O\"&MAX(IF(ISNUMBER(SEARCH(\"O\",X$2:X30)),MID(X$2:X30,2,LEN(X$2:X30)-1)+0,0))+1,\"\")","v":""}]
[30006582,"pcs",null,"Gripper of Qbiss One \nPHQ-150",150,"Specific for element thickness.\nLifting with one gripper is allowed for element length up to 1,0 m. \nFor longer elements two grippers are requested.",{"$f":"IF(COUNTIF('Qbiss One elements'!$E$24:$E$494,Table15[[#This Row],[Thickness]])>0,\n\"O\"&MAX(IF(ISNUMBER(SEARCH(\"O\",G$2:G31)),MID(G$2:G31,2,LEN(G$2:G31)-1)+0,0))+1,\"\")","v":""},{"$f":"IF(COUNTIF('Qbiss One elements'!$E$24:$E$494,Table15[[#This Row],[Thickness]])>0,\n\"O\"&MAX(IF(ISNUMBER(SEARCH(\"O\",H$2:H31)),MID(H$2:H31,2,LEN(H$2:H31)-1)+0,0))+1,\"\")","v":""},{"$f":"IF(COUNTIF('Qbiss One elements'!$E$24:$E$494,Table15[[#This Row],[Thickness]])>0,\n\"O\"&MAX(IF(ISNUMBER(SEARCH(\"O\",I$2:I31)),MID(I$2:I31,2,LEN(I$2:I31)-1)+0,0))+1,\"\")","v":""},{"$f":"IF(COUNTIF('Qbiss One elements'!$E$24:$E$494,Table15[[#This Row],[Thickness]])>0,\n\"O\"&MAX(IF(ISNUMBER(SEARCH(\"O\",J$2:J31)),MID(J$2:J31,2,LEN(J$2:J31)-1)+0,0))+1,\"\")","v":""},{"$f":"IF(COUNTIF('Qbiss One elements'!$E$24:$E$494,Table15[[#This Row],[Thickness]])>0,\n\"O\"&MAX(IF(ISNUMBER(SEARCH(\"O\",K$2:K31)),MID(K$2:K31,2,LEN(K$2:K31)-1)+0,0))+1,\"\")","v":""},{"$f":"IF(COUNTIF('Qbiss One elements'!$E$24:$E$494,Table15[[#This Row],[Thickness]])>0,\n\"O\"&MAX(IF(ISNUMBER(SEARCH(\"O\",L$2:L31)),MID(L$2:L31,2,LEN(L$2:L31)-1)+0,0))+1,\"\")","v":""},{"$f":"IF(COUNTIF('Qbiss One elements'!$E$24:$E$494,Table15[[#This Row],[Thickness]])>0,\n\"O\"&MAX(IF(ISNUMBER(SEARCH(\"O\",M$2:M31)),MID(M$2:M31,2,LEN(M$2:M31)-1)+0,0))+1,\"\")","v":""},{"$f":"IF(COUNTIF('Qbiss One elements'!$E$24:$E$494,Table15[[#This Row],[Thickness]])>0,\n\"O\"&MAX(IF(ISNUMBER(SEARCH(\"O\",N$2:N31)),MID(N$2:N31,2,LEN(N$2:N31)-1)+0,0))+1,\"\")","v":""},{"$f":"IF(COUNTIF('Qbiss One elements'!$E$24:$E$494,Table15[[#This Row],[Thickness]])>0,\n\"O\"&MAX(IF(ISNUMBER(SEARCH(\"O\",O$2:O31)),MID(O$2:O31,2,LEN(O$2:O31)-1)+0,0))+1,\"\")","v":""},{"$f":"IF(COUNTIF('Qbiss One elements'!$E$24:$E$494,Table15[[#This Row],[Thickness]])>0,\n\"O\"&MAX(IF(ISNUMBER(SEARCH(\"O\",P$2:P31)),MID(P$2:P31,2,LEN(P$2:P31)-1)+0,0))+1,\"\")","v":""},{"$f":"IF(COUNTIF('Qbiss One elements'!$E$24:$E$494,Table15[[#This Row],[Thickness]])>0,\n\"O\"&MAX(IF(ISNUMBER(SEARCH(\"O\",Q$2:Q31)),MID(Q$2:Q31,2,LEN(Q$2:Q31)-1)+0,0))+1,\"\")","v":""},{"$f":"IF(COUNTIF('Qbiss One elements'!$E$24:$E$494,Table15[[#This Row],[Thickness]])>0,\n\"O\"&MAX(IF(ISNUMBER(SEARCH(\"O\",R$2:R31)),MID(R$2:R31,2,LEN(R$2:R31)-1)+0,0))+1,\"\")","v":""},{"$f":"IF(COUNTIF('Qbiss One elements'!$E$24:$E$494,Table15[[#This Row],[Thickness]])>0,\n\"O\"&MAX(IF(ISNUMBER(SEARCH(\"O\",S$2:S31)),MID(S$2:S31,2,LEN(S$2:S31)-1)+0,0))+1,\"\")","v":""},{"$f":"IF(COUNTIF('Qbiss One elements'!$E$24:$E$494,Table15[[#This Row],[Thickness]])>0,\n\"O\"&MAX(IF(ISNUMBER(SEARCH(\"O\",T$2:T31)),MID(T$2:T31,2,LEN(T$2:T31)-1)+0,0))+1,\"\")","v":""},{"$f":"IF(COUNTIF('Qbiss One elements'!$E$24:$E$494,Table15[[#This Row],[Thickness]])>0,\n\"O\"&MAX(IF(ISNUMBER(SEARCH(\"O\",U$2:U31)),MID(U$2:U31,2,LEN(U$2:U31)-1)+0,0))+1,\"\")","v":""},{"$f":"IF(COUNTIF('Qbiss One elements'!$E$24:$E$494,Table15[[#This Row],[Thickness]])>0,\n\"O\"&MAX(IF(ISNUMBER(SEARCH(\"O\",V$2:V31)),MID(V$2:V31,2,LEN(V$2:V31)-1)+0,0))+1,\"\")","v":""},{"$f":"IF(COUNTIF('Qbiss One elements'!$E$24:$E$494,Table15[[#This Row],[Thickness]])>0,\n\"O\"&MAX(IF(ISNUMBER(SEARCH(\"O\",W$2:W31)),MID(W$2:W31,2,LEN(W$2:W31)-1)+0,0))+1,\"\")","v":""},{"$f":"IF(COUNTIF('Qbiss One elements'!$E$24:$E$494,Table15[[#This Row],[Thickness]])>0,\n\"O\"&MAX(IF(ISNUMBER(SEARCH(\"O\",X$2:X31)),MID(X$2:X31,2,LEN(X$2:X31)-1)+0,0))+1,\"\")","v":""}]
[30014865,"pcs",null,"Gripper of Qbiss One \nPHQ-172",172,"Specific for element thickness.\nLifting with one gripper is allowed for element length up to 1,0 m. \nFor longer elements two grippers are requested.",{"$f":"IF(COUNTIF('Qbiss One elements'!$E$24:$E$494,Table15[[#This Row],[Thickness]])>0,\n\"O\"&MAX(IF(ISNUMBER(SEARCH(\"O\",G$2:G32)),MID(G$2:G32,2,LEN(G$2:G32)-1)+0,0))+1,\"\")","v":""},{"$f":"IF(COUNTIF('Qbiss One elements'!$E$24:$E$494,Table15[[#This Row],[Thickness]])>0,\n\"O\"&MAX(IF(ISNUMBER(SEARCH(\"O\",H$2:H32)),MID(H$2:H32,2,LEN(H$2:H32)-1)+0,0))+1,\"\")","v":""},{"$f":"IF(COUNTIF('Qbiss One elements'!$E$24:$E$494,Table15[[#This Row],[Thickness]])>0,\n\"O\"&MAX(IF(ISNUMBER(SEARCH(\"O\",I$2:I32)),MID(I$2:I32,2,LEN(I$2:I32)-1)+0,0))+1,\"\")","v":""},{"$f":"IF(COUNTIF('Qbiss One elements'!$E$24:$E$494,Table15[[#This Row],[Thickness]])>0,\n\"O\"&MAX(IF(ISNUMBER(SEARCH(\"O\",J$2:J32)),MID(J$2:J32,2,LEN(J$2:J32)-1)+0,0))+1,\"\")","v":""},{"$f":"IF(COUNTIF('Qbiss One elements'!$E$24:$E$494,Table15[[#This Row],[Thickness]])>0,\n\"O\"&MAX(IF(ISNUMBER(SEARCH(\"O\",K$2:K32)),MID(K$2:K32,2,LEN(K$2:K32)-1)+0,0))+1,\"\")","v":""},{"$f":"IF(COUNTIF('Qbiss One elements'!$E$24:$E$494,Table15[[#This Row],[Thickness]])>0,\n\"O\"&MAX(IF(ISNUMBER(SEARCH(\"O\",L$2:L32)),MID(L$2:L32,2,LEN(L$2:L32)-1)+0,0))+1,\"\")","v":""},{"$f":"IF(COUNTIF('Qbiss One elements'!$E$24:$E$494,Table15[[#This Row],[Thickness]])>0,\n\"O\"&MAX(IF(ISNUMBER(SEARCH(\"O\",M$2:M32)),MID(M$2:M32,2,LEN(M$2:M32)-1)+0,0))+1,\"\")","v":""},{"$f":"IF(COUNTIF('Qbiss One elements'!$E$24:$E$494,Table15[[#This Row],[Thickness]])>0,\n\"O\"&MAX(IF(ISNUMBER(SEARCH(\"O\",N$2:N32)),MID(N$2:N32,2,LEN(N$2:N32)-1)+0,0))+1,\"\")","v":""},{"$f":"IF(COUNTIF('Qbiss One elements'!$E$24:$E$494,Table15[[#This Row],[Thickness]])>0,\n\"O\"&MAX(IF(ISNUMBER(SEARCH(\"O\",O$2:O32)),MID(O$2:O32,2,LEN(O$2:O32)-1)+0,0))+1,\"\")","v":""},{"$f":"IF(COUNTIF('Qbiss One elements'!$E$24:$E$494,Table15[[#This Row],[Thickness]])>0,\n\"O\"&MAX(IF(ISNUMBER(SEARCH(\"O\",P$2:P32)),MID(P$2:P32,2,LEN(P$2:P32)-1)+0,0))+1,\"\")","v":""},{"$f":"IF(COUNTIF('Qbiss One elements'!$E$24:$E$494,Table15[[#This Row],[Thickness]])>0,\n\"O\"&MAX(IF(ISNUMBER(SEARCH(\"O\",Q$2:Q32)),MID(Q$2:Q32,2,LEN(Q$2:Q32)-1)+0,0))+1,\"\")","v":""},{"$f":"IF(COUNTIF('Qbiss One elements'!$E$24:$E$494,Table15[[#This Row],[Thickness]])>0,\n\"O\"&MAX(IF(ISNUMBER(SEARCH(\"O\",R$2:R32)),MID(R$2:R32,2,LEN(R$2:R32)-1)+0,0))+1,\"\")","v":""},{"$f":"IF(COUNTIF('Qbiss One elements'!$E$24:$E$494,Table15[[#This Row],[Thickness]])>0,\n\"O\"&MAX(IF(ISNUMBER(SEARCH(\"O\",S$2:S32)),MID(S$2:S32,2,LEN(S$2:S32)-1)+0,0))+1,\"\")","v":""},{"$f":"IF(COUNTIF('Qbiss One elements'!$E$24:$E$494,Table15[[#This Row],[Thickness]])>0,\n\"O\"&MAX(IF(ISNUMBER(SEARCH(\"O\",T$2:T32)),MID(T$2:T32,2,LEN(T$2:T32)-1)+0,0))+1,\"\")","v":""},{"$f":"IF(COUNTIF('Qbiss One elements'!$E$24:$E$494,Table15[[#This Row],[Thickness]])>0,\n\"O\"&MAX(IF(ISNUMBER(SEARCH(\"O\",U$2:U32)),MID(U$2:U32,2,LEN(U$2:U32)-1)+0,0))+1,\"\")","v":""},{"$f":"IF(COUNTIF('Qbiss One elements'!$E$24:$E$494,Table15[[#This Row],[Thickness]])>0,\n\"O\"&MAX(IF(ISNUMBER(SEARCH(\"O\",V$2:V32)),MID(V$2:V32,2,LEN(V$2:V32)-1)+0,0))+1,\"\")","v":""},{"$f":"IF(COUNTIF('Qbiss One elements'!$E$24:$E$494,Table15[[#This Row],[Thickness]])>0,\n\"O\"&MAX(IF(ISNUMBER(SEARCH(\"O\",W$2:W32)),MID(W$2:W32,2,LEN(W$2:W32)-1)+0,0))+1,\"\")","v":""},{"$f":"IF(COUNTIF('Qbiss One elements'!$E$24:$E$494,Table15[[#This Row],[Thickness]])>0,\n\"O\"&MAX(IF(ISNUMBER(SEARCH(\"O\",X$2:X32)),MID(X$2:X32,2,LEN(X$2:X32)-1)+0,0))+1,\"\")","v":""}]
[30006786,"pcs",null,"Gripper of Qbiss One \nPHQ-200",200,"Specific for element thickness.\nLifting with one gripper is allowed for element length up to 1,0 m. \nFor longer elements two grippers are requested.",{"$f":"IF(COUNTIF('Qbiss One elements'!$E$24:$E$494,Table15[[#This Row],[Thickness]])>0,\n\"O\"&MAX(IF(ISNUMBER(SEARCH(\"O\",G$2:G33)),MID(G$2:G33,2,LEN(G$2:G33)-1)+0,0))+1,\"\")","v":""},{"$f":"IF(COUNTIF('Qbiss One elements'!$E$24:$E$494,Table15[[#This Row],[Thickness]])>0,\n\"O\"&MAX(IF(ISNUMBER(SEARCH(\"O\",H$2:H33)),MID(H$2:H33,2,LEN(H$2:H33)-1)+0,0))+1,\"\")","v":""},{"$f":"IF(COUNTIF('Qbiss One elements'!$E$24:$E$494,Table15[[#This Row],[Thickness]])>0,\n\"O\"&MAX(IF(ISNUMBER(SEARCH(\"O\",I$2:I33)),MID(I$2:I33,2,LEN(I$2:I33)-1)+0,0))+1,\"\")","v":""},{"$f":"IF(COUNTIF('Qbiss One elements'!$E$24:$E$494,Table15[[#This Row],[Thickness]])>0,\n\"O\"&MAX(IF(ISNUMBER(SEARCH(\"O\",J$2:J33)),MID(J$2:J33,2,LEN(J$2:J33)-1)+0,0))+1,\"\")","v":""},{"$f":"IF(COUNTIF('Qbiss One elements'!$E$24:$E$494,Table15[[#This Row],[Thickness]])>0,\n\"O\"&MAX(IF(ISNUMBER(SEARCH(\"O\",K$2:K33)),MID(K$2:K33,2,LEN(K$2:K33)-1)+0,0))+1,\"\")","v":""},{"$f":"IF(COUNTIF('Qbiss One elements'!$E$24:$E$494,Table15[[#This Row],[Thickness]])>0,\n\"O\"&MAX(IF(ISNUMBER(SEARCH(\"O\",L$2:L33)),MID(L$2:L33,2,LEN(L$2:L33)-1)+0,0))+1,\"\")","v":""},{"$f":"IF(COUNTIF('Qbiss One elements'!$E$24:$E$494,Table15[[#This Row],[Thickness]])>0,\n\"O\"&MAX(IF(ISNUMBER(SEARCH(\"O\",M$2:M33)),MID(M$2:M33,2,LEN(M$2:M33)-1)+0,0))+1,\"\")","v":""},{"$f":"IF(COUNTIF('Qbiss One elements'!$E$24:$E$494,Table15[[#This Row],[Thickness]])>0,\n\"O\"&MAX(IF(ISNUMBER(SEARCH(\"O\",N$2:N33)),MID(N$2:N33,2,LEN(N$2:N33)-1)+0,0))+1,\"\")","v":""},{"$f":"IF(COUNTIF('Qbiss One elements'!$E$24:$E$494,Table15[[#This Row],[Thickness]])>0,\n\"O\"&MAX(IF(ISNUMBER(SEARCH(\"O\",O$2:O33)),MID(O$2:O33,2,LEN(O$2:O33)-1)+0,0))+1,\"\")","v":""},{"$f":"IF(COUNTIF('Qbiss One elements'!$E$24:$E$494,Table15[[#This Row],[Thickness]])>0,\n\"O\"&MAX(IF(ISNUMBER(SEARCH(\"O\",P$2:P33)),MID(P$2:P33,2,LEN(P$2:P33)-1)+0,0))+1,\"\")","v":""},{"$f":"IF(COUNTIF('Qbiss One elements'!$E$24:$E$494,Table15[[#This Row],[Thickness]])>0,\n\"O\"&MAX(IF(ISNUMBER(SEARCH(\"O\",Q$2:Q33)),MID(Q$2:Q33,2,LEN(Q$2:Q33)-1)+0,0))+1,\"\")","v":""},{"$f":"IF(COUNTIF('Qbiss One elements'!$E$24:$E$494,Table15[[#This Row],[Thickness]])>0,\n\"O\"&MAX(IF(ISNUMBER(SEARCH(\"O\",R$2:R33)),MID(R$2:R33,2,LEN(R$2:R33)-1)+0,0))+1,\"\")","v":""},{"$f":"IF(COUNTIF('Qbiss One elements'!$E$24:$E$494,Table15[[#This Row],[Thickness]])>0,\n\"O\"&MAX(IF(ISNUMBER(SEARCH(\"O\",S$2:S33)),MID(S$2:S33,2,LEN(S$2:S33)-1)+0,0))+1,\"\")","v":""},{"$f":"IF(COUNTIF('Qbiss One elements'!$E$24:$E$494,Table15[[#This Row],[Thickness]])>0,\n\"O\"&MAX(IF(ISNUMBER(SEARCH(\"O\",T$2:T33)),MID(T$2:T33,2,LEN(T$2:T33)-1)+0,0))+1,\"\")","v":""},{"$f":"IF(COUNTIF('Qbiss One elements'!$E$24:$E$494,Table15[[#This Row],[Thickness]])>0,\n\"O\"&MAX(IF(ISNUMBER(SEARCH(\"O\",U$2:U33)),MID(U$2:U33,2,LEN(U$2:U33)-1)+0,0))+1,\"\")","v":""},{"$f":"IF(COUNTIF('Qbiss One elements'!$E$24:$E$494,Table15[[#This Row],[Thickness]])>0,\n\"O\"&MAX(IF(ISNUMBER(SEARCH(\"O\",V$2:V33)),MID(V$2:V33,2,LEN(V$2:V33)-1)+0,0))+1,\"\")","v":""},{"$f":"IF(COUNTIF('Qbiss One elements'!$E$24:$E$494,Table15[[#This Row],[Thickness]])>0,\n\"O\"&MAX(IF(ISNUMBER(SEARCH(\"O\",W$2:W33)),MID(W$2:W33,2,LEN(W$2:W33)-1)+0,0))+1,\"\")","v":""},{"$f":"IF(COUNTIF('Qbiss One elements'!$E$24:$E$494,Table15[[#This Row],[Thickness]])>0,\n\"O\"&MAX(IF(ISNUMBER(SEARCH(\"O\",X$2:X33)),MID(X$2:X33,2,LEN(X$2:X33)-1)+0,0))+1,\"\")","v":""}]
[30012793,"pcs",null,"Gripper of Qbiss One \nPHQ-240",240,"Specific for element thickness.\nLifting with one gripper is allowed for element length up to 1,0 m. \nFor longer elements two grippers are requested.",{"$f":"IF(COUNTIF('Qbiss One elements'!$E$24:$E$494,Table15[[#This Row],[Thickness]])>0,\n\"O\"&MAX(IF(ISNUMBER(SEARCH(\"O\",G$2:G34)),MID(G$2:G34,2,LEN(G$2:G34)-1)+0,0))+1,\"\")","v":""},{"$f":"IF(COUNTIF('Qbiss One elements'!$E$24:$E$494,Table15[[#This Row],[Thickness]])>0,\n\"O\"&MAX(IF(ISNUMBER(SEARCH(\"O\",H$2:H34)),MID(H$2:H34,2,LEN(H$2:H34)-1)+0,0))+1,\"\")","v":""},{"$f":"IF(COUNTIF('Qbiss One elements'!$E$24:$E$494,Table15[[#This Row],[Thickness]])>0,\n\"O\"&MAX(IF(ISNUMBER(SEARCH(\"O\",I$2:I34)),MID(I$2:I34,2,LEN(I$2:I34)-1)+0,0))+1,\"\")","v":""},{"$f":"IF(COUNTIF('Qbiss One elements'!$E$24:$E$494,Table15[[#This Row],[Thickness]])>0,\n\"O\"&MAX(IF(ISNUMBER(SEARCH(\"O\",J$2:J34)),MID(J$2:J34,2,LEN(J$2:J34)-1)+0,0))+1,\"\")","v":""},{"$f":"IF(COUNTIF('Qbiss One elements'!$E$24:$E$494,Table15[[#This Row],[Thickness]])>0,\n\"O\"&MAX(IF(ISNUMBER(SEARCH(\"O\",K$2:K34)),MID(K$2:K34,2,LEN(K$2:K34)-1)+0,0))+1,\"\")","v":""},{"$f":"IF(COUNTIF('Qbiss One elements'!$E$24:$E$494,Table15[[#This Row],[Thickness]])>0,\n\"O\"&MAX(IF(ISNUMBER(SEARCH(\"O\",L$2:L34)),MID(L$2:L34,2,LEN(L$2:L34)-1)+0,0))+1,\"\")","v":""},{"$f":"IF(COUNTIF('Qbiss One elements'!$E$24:$E$494,Table15[[#This Row],[Thickness]])>0,\n\"O\"&MAX(IF(ISNUMBER(SEARCH(\"O\",M$2:M34)),MID(M$2:M34,2,LEN(M$2:M34)-1)+0,0))+1,\"\")","v":""},{"$f":"IF(COUNTIF('Qbiss One elements'!$E$24:$E$494,Table15[[#This Row],[Thickness]])>0,\n\"O\"&MAX(IF(ISNUMBER(SEARCH(\"O\",N$2:N34)),MID(N$2:N34,2,LEN(N$2:N34)-1)+0,0))+1,\"\")","v":""},{"$f":"IF(COUNTIF('Qbiss One elements'!$E$24:$E$494,Table15[[#This Row],[Thickness]])>0,\n\"O\"&MAX(IF(ISNUMBER(SEARCH(\"O\",O$2:O34)),MID(O$2:O34,2,LEN(O$2:O34)-1)+0,0))+1,\"\")","v":""},{"$f":"IF(COUNTIF('Qbiss One elements'!$E$24:$E$494,Table15[[#This Row],[Thickness]])>0,\n\"O\"&MAX(IF(ISNUMBER(SEARCH(\"O\",P$2:P34)),MID(P$2:P34,2,LEN(P$2:P34)-1)+0,0))+1,\"\")","v":""},{"$f":"IF(COUNTIF('Qbiss One elements'!$E$24:$E$494,Table15[[#This Row],[Thickness]])>0,\n\"O\"&MAX(IF(ISNUMBER(SEARCH(\"O\",Q$2:Q34)),MID(Q$2:Q34,2,LEN(Q$2:Q34)-1)+0,0))+1,\"\")","v":""},{"$f":"IF(COUNTIF('Qbiss One elements'!$E$24:$E$494,Table15[[#This Row],[Thickness]])>0,\n\"O\"&MAX(IF(ISNUMBER(SEARCH(\"O\",R$2:R34)),MID(R$2:R34,2,LEN(R$2:R34)-1)+0,0))+1,\"\")","v":""},{"$f":"IF(COUNTIF('Qbiss One elements'!$E$24:$E$494,Table15[[#This Row],[Thickness]])>0,\n\"O\"&MAX(IF(ISNUMBER(SEARCH(\"O\",S$2:S34)),MID(S$2:S34,2,LEN(S$2:S34)-1)+0,0))+1,\"\")","v":""},{"$f":"IF(COUNTIF('Qbiss One elements'!$E$24:$E$494,Table15[[#This Row],[Thickness]])>0,\n\"O\"&MAX(IF(ISNUMBER(SEARCH(\"O\",T$2:T34)),MID(T$2:T34,2,LEN(T$2:T34)-1)+0,0))+1,\"\")","v":""},{"$f":"IF(COUNTIF('Qbiss One elements'!$E$24:$E$494,Table15[[#This Row],[Thickness]])>0,\n\"O\"&MAX(IF(ISNUMBER(SEARCH(\"O\",U$2:U34)),MID(U$2:U34,2,LEN(U$2:U34)-1)+0,0))+1,\"\")","v":""},{"$f":"IF(COUNTIF('Qbiss One elements'!$E$24:$E$494,Table15[[#This Row],[Thickness]])>0,\n\"O\"&MAX(IF(ISNUMBER(SEARCH(\"O\",V$2:V34)),MID(V$2:V34,2,LEN(V$2:V34)-1)+0,0))+1,\"\")","v":""},{"$f":"IF(COUNTIF('Qbiss One elements'!$E$24:$E$494,Table15[[#This Row],[Thickness]])>0,\n\"O\"&MAX(IF(ISNUMBER(SEARCH(\"O\",W$2:W34)),MID(W$2:W34,2,LEN(W$2:W34)-1)+0,0))+1,\"\")","v":""},{"$f":"IF(COUNTIF('Qbiss One elements'!$E$24:$E$494,Table15[[#This Row],[Thickness]])>0,\n\"O\"&MAX(IF(ISNUMBER(SEARCH(\"O\",X$2:X34)),MID(X$2:X34,2,LEN(X$2:X34)-1)+0,0))+1,\"\")","v":""}]
[30033040,"pcs",null,"Gripper of Qbiss One \nPHQ-250",250,"Specific for element thickness.\nLifting with one gripper is allowed for element length up to 1,0 m. \nFor longer elements two grippers are requested.",{"$f":"IF(COUNTIF('Qbiss One elements'!$E$24:$E$494,Table15[[#This Row],[Thickness]])>0,\n\"O\"&MAX(IF(ISNUMBER(SEARCH(\"O\",G$2:G35)),MID(G$2:G35,2,LEN(G$2:G35)-1)+0,0))+1,\"\")","v":""},{"$f":"IF(COUNTIF('Qbiss One elements'!$E$24:$E$494,Table15[[#This Row],[Thickness]])>0,\n\"O\"&MAX(IF(ISNUMBER(SEARCH(\"O\",H$2:H35)),MID(H$2:H35,2,LEN(H$2:H35)-1)+0,0))+1,\"\")","v":""},{"$f":"IF(COUNTIF('Qbiss One elements'!$E$24:$E$494,Table15[[#This Row],[Thickness]])>0,\n\"O\"&MAX(IF(ISNUMBER(SEARCH(\"O\",I$2:I35)),MID(I$2:I35,2,LEN(I$2:I35)-1)+0,0))+1,\"\")","v":""},{"$f":"IF(COUNTIF('Qbiss One elements'!$E$24:$E$494,Table15[[#This Row],[Thickness]])>0,\n\"O\"&MAX(IF(ISNUMBER(SEARCH(\"O\",J$2:J35)),MID(J$2:J35,2,LEN(J$2:J35)-1)+0,0))+1,\"\")","v":""},{"$f":"IF(COUNTIF('Qbiss One elements'!$E$24:$E$494,Table15[[#This Row],[Thickness]])>0,\n\"O\"&MAX(IF(ISNUMBER(SEARCH(\"O\",K$2:K35)),MID(K$2:K35,2,LEN(K$2:K35)-1)+0,0))+1,\"\")","v":""},{"$f":"IF(COUNTIF('Qbiss One elements'!$E$24:$E$494,Table15[[#This Row],[Thickness]])>0,\n\"O\"&MAX(IF(ISNUMBER(SEARCH(\"O\",L$2:L35)),MID(L$2:L35,2,LEN(L$2:L35)-1)+0,0))+1,\"\")","v":""},{"$f":"IF(COUNTIF('Qbiss One elements'!$E$24:$E$494,Table15[[#This Row],[Thickness]])>0,\n\"O\"&MAX(IF(ISNUMBER(SEARCH(\"O\",M$2:M35)),MID(M$2:M35,2,LEN(M$2:M35)-1)+0,0))+1,\"\")","v":""},{"$f":"IF(COUNTIF('Qbiss One elements'!$E$24:$E$494,Table15[[#This Row],[Thickness]])>0,\n\"O\"&MAX(IF(ISNUMBER(SEARCH(\"O\",N$2:N35)),MID(N$2:N35,2,LEN(N$2:N35)-1)+0,0))+1,\"\")","v":""},{"$f":"IF(COUNTIF('Qbiss One elements'!$E$24:$E$494,Table15[[#This Row],[Thickness]])>0,\n\"O\"&MAX(IF(ISNUMBER(SEARCH(\"O\",O$2:O35)),MID(O$2:O35,2,LEN(O$2:O35)-1)+0,0))+1,\"\")","v":""},{"$f":"IF(COUNTIF('Qbiss One elements'!$E$24:$E$494,Table15[[#This Row],[Thickness]])>0,\n\"O\"&MAX(IF(ISNUMBER(SEARCH(\"O\",P$2:P35)),MID(P$2:P35,2,LEN(P$2:P35)-1)+0,0))+1,\"\")","v":""},{"$f":"IF(COUNTIF('Qbiss One elements'!$E$24:$E$494,Table15[[#This Row],[Thickness]])>0,\n\"O\"&MAX(IF(ISNUMBER(SEARCH(\"O\",Q$2:Q35)),MID(Q$2:Q35,2,LEN(Q$2:Q35)-1)+0,0))+1,\"\")","v":""},{"$f":"IF(COUNTIF('Qbiss One elements'!$E$24:$E$494,Table15[[#This Row],[Thickness]])>0,\n\"O\"&MAX(IF(ISNUMBER(SEARCH(\"O\",R$2:R35)),MID(R$2:R35,2,LEN(R$2:R35)-1)+0,0))+1,\"\")","v":""},{"$f":"IF(COUNTIF('Qbiss One elements'!$E$24:$E$494,Table15[[#This Row],[Thickness]])>0,\n\"O\"&MAX(IF(ISNUMBER(SEARCH(\"O\",S$2:S35)),MID(S$2:S35,2,LEN(S$2:S35)-1)+0,0))+1,\"\")","v":""},{"$f":"IF(COUNTIF('Qbiss One elements'!$E$24:$E$494,Table15[[#This Row],[Thickness]])>0,\n\"O\"&MAX(IF(ISNUMBER(SEARCH(\"O\",T$2:T35)),MID(T$2:T35,2,LEN(T$2:T35)-1)+0,0))+1,\"\")","v":""},{"$f":"IF(COUNTIF('Qbiss One elements'!$E$24:$E$494,Table15[[#This Row],[Thickness]])>0,\n\"O\"&MAX(IF(ISNUMBER(SEARCH(\"O\",U$2:U35)),MID(U$2:U35,2,LEN(U$2:U35)-1)+0,0))+1,\"\")","v":""},{"$f":"IF(COUNTIF('Qbiss One elements'!$E$24:$E$494,Table15[[#This Row],[Thickness]])>0,\n\"O\"&MAX(IF(ISNUMBER(SEARCH(\"O\",V$2:V35)),MID(V$2:V35,2,LEN(V$2:V35)-1)+0,0))+1,\"\")","v":""},{"$f":"IF(COUNTIF('Qbiss One elements'!$E$24:$E$494,Table15[[#This Row],[Thickness]])>0,\n\"O\"&MAX(IF(ISNUMBER(SEARCH(\"O\",W$2:W35)),MID(W$2:W35,2,LEN(W$2:W35)-1)+0,0))+1,\"\")","v":""},{"$f":"IF(COUNTIF('Qbiss One elements'!$E$24:$E$494,Table15[[#This Row],[Thickness]])>0,\n\"O\"&MAX(IF(ISNUMBER(SEARCH(\"O\",X$2:X35)),MID(X$2:X35,2,LEN(X$2:X35)-1)+0,0))+1,\"\")","v":""}]

{"sheet":"UPDATES","index":16,"n_rows":61,"n_cols":2,"rows_kept":61,"cut":false,"hidden":true,"merged":[]}
["Version","What is new"]
["1.0","Release"]
["1.1","Minor fixes"]
["1.2","Status of fulfilled cells is added. In case elements are not defined, status NOT OK in red is shown. When element is completely defined, it shows OK in green cell. "]
[null,"Added table for temporary fixation. Defined all possible fixation types."]
["1.2.1.","U-corner element - Instructions for length of B and C needed to be switched"]
["1.2.2.","Characters of profilation are written with capital letters"]
[null,"Internal profile M and M3 added"]
[null,"Thickness = T; changed from S"]
[null,"Profilation -> changed to profile"]
[null,"Colour - Seren Anthracite added, Shiny Mirror deleted"]
[null,"Scheme for Transversal and longitudinal corner element has been changed"]
[null,"Changed internal steel sheet protection: PUR -> PUR-PA"]
[null,"Scheme for joint types has been updated"]
[null,"Naming of colour: Seren Anthracite - > Anthracite Solet"]
[null,"3D diagonal-cut corner element added - horizontal"]
[null,"3D edge-cut corner element added - horizontal"]
[null,"Seren Midas colour added"]
["1.2.3.","Minimum length of element is 500mm except for type:5,6,7,8,9,10,11,12. -> 550mm<R<6475mm"]
[null,"Increased number of decimal places when showing TOTAL m2 of elements"]
[null,"Update to Accessories names"]
[null,"3D edge-cut corner elements: updated R1 & R2 limitations"]
["1.2.4.","Fixing screw - Accessories - Description text is changed to: Not included in element price. Number of fixing screws is determined with structural calculation provided by Trimo Technical Support"]
[null,"Transversal L-corner: Correction of equation. Dimension A=1400 and B = 1400 does not comply with limitations - corrected"]
[null,"Restriction to enter a different profile of the internal steel sheet than the one from the dropdown menu"]
[null,"Added new picture for transport"]
["1.2.5.","New tab for transversal spliced corner alement and longitudinal spliced corner element is added"]
[null,"Thickness of Longitudinal spliced corner elements changed from 80, 100, 120, 133, 150 to 80, 100, 120, 133, 150, 172, 200, 220, 240, 250"]
["1.2.6.","Internal profile: standard and optionla defined. Standard is V all others are optional."]
["1.2.7.","New SAP code for loadbearing fixing plate. 30033030"]
["1.2.8.","Density of Power S mineral wool changed from 114 kg/m3 to 120 kg/m3"]
["1.2.9.","Description for Mastic seal together with SAP is added."]
[null,"EPDM gasket cube for BF-BF joint is addet to accessories"]
[null,"SCREW 7530 and 7520 has been replaced by JT3-D-12H-5,5/6,3x245 (30024059) and JT3-D-6H-5,5/6,3x237 (3002382)"]
["1.2.10.","Formula for longitudinal spliced corner corrected (limitations A B)"]
["1.2.11.","Type of fixings for self load changed from END to Ejot"]
["1.2.12.","Accessories/Fixing screw: pictures for fixation X/Y/Z is changed."]
["2.0","Accessories changed fundamentally."]
[null,"It is devided on Qbiss Accessories and Other accessories. SFS screws are added to list. New AccessoriesMatrix is made - as a cakground list support functionality."]
[null,"First page changed Fundametally. "]
[null,"Check Boxes are added to select additional schedules for special elements."]
[null,"Instructions are moved on bottom of schedules."]
["2.1","Home button added"]
[null,"FAQ sheet added - to help solve Macro issues."]
[null,"Graphs for corner elements limitations added"]
[null,"Accessories Matrix was corrected"]
[null,"Criteria for max number of C-washers was made (equation acording to element module)"]
[null,"EPDM transversal gasket is replaced with silicone transversal gasket"]
[null,"Prisma Elements replaces PVDF40 coating."]
[null,"List of colours for internal steel sheet is changed"]
["2.2","Accessories added:"]
[null,"Gasket for HF52 alignment"]
[null,"Corner insert for HF52"]
["2.3","Explanation comment for \"Other Notes\" (Example: After masurement / Sunblinds - aditional work required / Spare panels / Without longitudinal HF profile / etc.)"]
[null,"Link to Qbiss One Quick Guide was added on \"elements\" page."]
[null,"Formula for max fixings number corrected. It depends on joint \"B\" of \"F\". "]
["2.4","Corner element's (longitudinal) minimal dimensions are corrected to 200 mm."]
["2.5","When selecting a color other than those listed (for the external sheet metal), the protection of the sheet metal must be noted in the \"other notes\"."]
["2.6","New Sheet added: \"Elements with overhang\""]
[null,"Spliced corners has new charachteristik - side of visible glued edge. And internal L-profile is schematically presented."]
[null,"The 'After measurement' button has been removed."]

{"sheet":"Data 1","index":17,"n_rows":182,"n_cols":17,"rows_kept":182,"cut":false,"hidden":true,"merged":[[150,1,150,5],[151,1,151,5],[145,1,145,5],[146,1,146,5],[147,1,147,5],[148,1,148,5],[149,1,149,5]]}
["Data"]
["Type of cladding  system","System"]
["Horizontal"]
["Vertical"]
["Horizontal_brick"]
["Vertical_brick"]
["Horizontal_asymmetrical_brick"]
[]
[]
["Joint","Horizontal","Vertical","Horizontal_brick","Vertical_brick","Horizontal_asymmetrical_brick"]
["B-B","B-B","B-B","B-B","B-B","B-B"]
["B-BF","B-BF","B-BF","B-BF","B-BF","B-BF"]
["BF-B","BF-B","BF-B","BF-B","BF-B","BF-B"]
["BF-BF","BF-BF","BF-BF","BF-BF","BF-BF","BF-BF"]
["F-B","F-B",null,"F-B",null,"F-B"]
["F-BF","F-BF",null,"F-BF",null,"F-BF"]
[]
["Joint","Horizontal","Vertical","Horizontal_brick","Vertical_brick","Horizontal_asymmetrical_brick"]
["B-B","B_B_Horizontal","B_B_Vertical","B_B_Horizontal_brick","B_B_Vertical_brick","B_B_Horizontal_asymmetrical_brick"]
["B-BF","B_BF_Horizontal","B_BF_Vertical","B_BF_Horizontal_brick","B_BF_Vertical_brick","B_BF_Horizontal_asymmetrical_brick"]
["BF-B","BF_B_Horizontal","BF_B_Vertical","BF_B_Horizontal_brick","BF_B_Vertical_brick","BF_B_Horizontal_asymmetrical_brick"]
["BF-BF","BF_BF_Horizontal","BF_BF_Vertical","BF_BF_Horizontal_brick","BF_BF_Vertical_brick","BF_BF_Horizontal_asymmetrical_brick"]
["F-B","F_B_Horizontal",null,"F_B_Horizontal_brick",null,"F_B_Horizontal_asymmetrical_brick"]
["F-BF","F_BF_Horizontal",null,"F_BF_Horizontal_brick",null,"F_BF_Horizontal_asymmetrical_brick"]
[]
[]
["Joint","Picture"]
[{"$f":"B19","v":"B_B_Horizontal"}]
["B_BF_Horizontal"]
[{"$f":"B21&\"Visibl\"","v":"BF_B_HorizontalVisibl"}]
[{"$f":"B21&\"Closed\"","v":"BF_B_HorizontalClosed"}]
[{"$f":"B22","v":"BF_BF_Horizontal"}]
[{"$f":"B23","v":"F_B_Horizontal"}]
[{"$f":"B24","v":"F_BF_Horizontal"}]
[{"$f":"C19","v":"B_B_Vertical"}]
[{"$f":"C20","v":"B_BF_Vertical"}]
[{"$f":"C21&\"Visibl\"","v":"BF_B_VerticalVisibl"}]
[{"$f":"C21&\"Closed\"","v":"BF_B_VerticalClosed"}]
[{"$f":"C22","v":"BF_BF_Vertical"}]
[{"$f":"D19","v":"B_B_Horizontal_brick"}]
[{"$f":"D20","v":"B_BF_Horizontal_brick"}]
[{"$f":"D21&\"Visibl\"","v":"BF_B_Horizontal_brickVisibl"}]
[{"$f":"D21&\"Closed\"","v":"BF_B_Horizontal_brickClosed"}]
[{"$f":"D22","v":"BF_BF_Horizontal_brick"}]
[{"$f":"D23","v":"F_B_Horizontal_brick"}]
[{"$f":"D24","v":"F_BF_Horizontal_brick"}]
[{"$f":"E19","v":"B_B_Vertical_brick"}]
[{"$f":"E20","v":"B_BF_Vertical_brick"}]
[{"$f":"E21&\"Closed\"","v":"BF_B_Vertical_brickClosed"}]
[{"$f":"E21&\"Visibl\"","v":"BF_B_Vertical_brickVisibl"}]
[{"$f":"E22","v":"BF_BF_Vertical_brick"}]
[{"$f":"F19","v":"B_B_Horizontal_asymmetrical_brick"}]
[{"$f":"F20","v":"B_BF_Horizontal_asymmetrical_brick"}]
[{"$f":"F21&\"Closed\"","v":"BF_B_Horizontal_asymmetrical_brickClosed"}]
[{"$f":"F21&\"Visibl\"","v":"BF_B_Horizontal_asymmetrical_brickVisibl"}]
[{"$f":"F22","v":"BF_BF_Horizontal_asymmetrical_brick"}]
[{"$f":"F23","v":"F_B_Horizontal_asymmetrical_brick"}]
[{"$f":"F24","v":"F_BF_Horizontal_asymmetrical_brick"}]
[]
[]
[]
["L-corner elements","Vertical",null,null,"Horizontal"]
[]
["Type of assembly"]
["No_selection"]
[null,null,null,null,"Transversal_corner"]
["Longitudinal_corner"]
[]
[]
["Joint","Transversal_corner","Longitudinal_corner","No_selection"]
[null,"B-B","B-B","No_selection"]
[null,"B-BF","B-BF"]
[null,"BF-B","BF-B"]
[null,"BF-BF","BF-BF"]
[null,"F-B"]
[null,"F-BF"]
[]
[]
["Joint","Transversal_corner","Longitudinal_corner","No_selection"]
["B-B","B_B_Transversal_corner","B_B_Longitudinal_corner"]
["B-BF","B_BF_Transversal_corner","B_BF_Longitudinal_corner"]
["BF-B","BF_B_Transversal_corner","BF_B_Longitudinal_corner"]
["BF-BF","BF_BF_Transversal_corner","BF_BF_Longitudinal_corner"]
["F-B","F_B_Transversal_corner"]
["F-BF","F_BF_Transversal_corner"]
["No_selection",null,null,"No_selection1"]
[]
[]
["B_B_Transversal_corner"]
["B_BF_Transversal_corner"]
["BF_B_Transversal_corner"]
["BF_BF_Transversal_corner"]
["F_B_Transversal_corner"]
["F_BF_Transversal_corner"]
["B_Longitudinal_corner"]
["B_BF_Longitudinal_corner"]
["BF_B_Longitudinal_corner"]
["BF_BF_Longitudinal_corner"]
["No_selection1"]
[]
[]
["Element type","Horizontal","Vertical","Horizontal_brick","Vertical_brick","Horizontal_asymmetrical_brick",null,null,null,null,null,"Corner_and_curved",null,null,null,"Longitudinal1","Transversal1"]
[]
[null,1,1,1,1,1,null,null,null,null,null,1,null,null,null,1,1]
[null,2,3,2,3,2,null,null,null,null,null,2,null,null,null,3,2]
[null,3,5,3,5,3,null,null,null,null,null,3,null,null,null,5,3]
[null,4,7,4,7,4,null,null,null,null,null,4,null,null,null,6,4]
[null,5,8,5,8,5,null,null,null,null,null,5,null,null,null,7,5]
[null,6,9,6,9,6,null,null,null,null,null,6,null,null,null,8,6]
[null,7,null,7,null,7,null,null,null,null,null,7,null,null,null,9,7]
[null,8,null,8,null,8,null,null,null,null,null,8,null,null,null,null,8]
[null,9,null,9,null,9,null,null,null,null,null,9,null,null,null,null,9]
[null,10]
[null,11]
[null,12]
[]
[]
[]
["Curved elements"]
[]
["Curved elements type"]
["No_selection"]
["Longitudinal"]
["Transversal"]
[]
[]
["U_corner_element"]
["No_selection"]
["U_corner_element"]
[]
[]
[]
[]
[]
["U_corner_joint_possibilities"]
["No_selection"]
["B"]
["B_BF"]
["BF_B"]
["BF_BF"]
["F_B"]
["F_BF"]
[]
[]
["Curved_elements_section"]
["Longitudinal_"]
["Transversal_"]
[]
[]
[]
[]
[]
[]
[]
["3D corner limitations"]
[null,null,null,null,null,null,null,null,"3D edge-cut Corner limitations"]
[]
[null,null,null,null,null,null,null,null,"T","Amin(Bmin)","Amax(Bmax)","R1min(R2min)","R1max(R2max)"]
[null,null,null,null,null,null,null,null,80,315,{"$f":"1200-J159","v":885},315,1000]
[null,null,null,null,null,null,null,null,100,335,{"$f":"1200-J160","v":865},335,1000]
[null,null,null,null,null,null,null,null,120,355,845,355,1000]
[null,null,null,null,null,null,null,null,133,368,832,368,1000]
[null,null,null,null,null,null,null,null,150,385,815,385,1000]
[null,null,null,null,null,null,null,null,172,407,793,407,1000]
[null,null,null,null,null,null,null,null,200,435,765,435,1000]
[null,null,null,null,null,null,null,null,240,475,725,475,1000]
[null,null,null,null,null,null,null,null,250,475,725,475,1000]
[]
[]
[]
[null,null,null,null,null,null,null,null,"3D diagonal-cut corner element"]
[]
[null,null,null,null,null,null,null,null,"T","Amin(Bmin)","Amax(Bmax)","R1min(R2min)","R1max(R2max)"]
[null,null,null,null,null,null,null,null,80,315,{"$f":"1200-J174","v":885},515,1000]
[null,null,null,null,null,null,null,null,100,335,{"$f":"1200-J175","v":865},535,1000]
[null,null,null,null,null,null,null,null,120,355,845,555,1000]
[null,null,null,null,null,null,null,null,133,368,832,568,1000]
[null,null,null,null,null,null,null,null,150,385,815,585,1000]
[null,null,null,null,null,null,null,null,172,407,793,607,1000]
[null,null,null,null,null,null,null,null,200,435,765,635,1000]
[null,null,null,null,null,null,null,null,240,475,725,675,1000]
[null,null,null,null,null,null,null,null,250,485,715,685,1000]

{"sheet":"Data 2","index":18,"n_rows":79,"n_cols":23,"rows_kept":79,"cut":false,"hidden":true,"merged":[]}
["External colour","External coating",null,null,"Internal colour","Internal coating",null,null,"Thickness of external steel sheet",null,null,null,null,"External steel sheet profilation",null,null,null,"Thickness of elements",null,null,null,null,"Mineral wool"]
[null,null,null,null,null,null,null,null,0.7,null,null,null,null,"G"]
["White","PUR-PA 50",null,null,"R9002","SP 25",null,null,null,null,null,null,null,null,null,null,null,80,null,null,null,null,"Power T"]
["Grey White","PUR-PA 50",null,null,"R9010","PVDF 25",null,null,null,null,null,null,null,null,null,null,null,100,null,null,null,null,"Power S"]
["Cream","PUR-PA 50",null,null,"R9016","PVDF 35",null,null,"Thickness of internal steel sheet",null,null,null,null,"Internal steel sheet profilation",null,null,null,120,null,null,null,null,"Perform C"]
["Light Grey","PUR-PA 50",null,null,"R7035","PVCF 150",null,null,null,null,null,null,null,null,null,null,null,133]
["Bright Yellow","PUR-PA 50",null,null,"R9006","PRISMA",null,null,0.5,null,null,null,null,"\"V\" (standard)",null,null,null,150]
["Basalt Grey","PUR-PA 50",null,null,"R9007","PRISMA ELEMENTS",null,null,0.55000000000000004,null,null,null,null,"\"V2\" (optional)",null,null,null,172]
["Sapphire Blue","PUR-PA 50",null,null,"Other",null,null,null,0.6,null,null,null,null,"\"G\" (optional)",null,null,null,200]
["Traffic Red","PUR-PA 50",null,null,null,null,null,null,0.7,null,null,null,null,"\"S\" (optional)",null,null,null,240]
["Anthracite","PUR-PA 50",null,null,null,null,null,null,null,null,null,null,null,"\"M\" (optional)",null,null,null,250]
["Black","PUR-PA 50",null,null,null,null,null,null,null,null,null,null,null,"\"M3\" (optional)"]
["Light Silver","PUR-PA 50"]
["Silver","PUR-PA 50"]
["Dark Silver","PUR-PA 50"]
["Light Graphite","PUR-PA 50",null,null,null,null,null,null,null,null,null,null,null,null,null,null,null,"Thickness of longitudinal spliced corner elements"]
["Anthracite Solet     *Prisma Elements","*","PVDF 40"]
["Seren White            *Prisma Elements","*","PVDF 40",null,null,null,null,null,null,null,null,null,null,null,null,null,null,80,80]
["Seren Silver            *Prisma Elements","*","PVDF 40",null,null,null,null,null,null,null,null,null,null,null,null,null,null,100,100]
["Seren Gold             *Prisma Elements","*","PVDF 40",null,null,null,null,null,null,null,null,null,null,null,null,null,null,120,120]
["Seren Copper        *Prisma Elements","*","PVDF 40",null,null,null,null,null,null,null,null,null,null,null,null,null,null,133,133,"katra je prava?"]
["Seren Black            *Prisma Elements","*","PVDF 40",null,null,null,null,null,null,null,null,null,null,null,null,null,null,150,150]
["Seren Midas           *Prisma Elements","*","PVDF 40",null,null,null,null,null,null,null,null,null,null,null,null,null,null,null,172]
["Sirius Sparkle        *Prisma Elements","*","PVDF 40",null,null,null,null,null,null,null,null,null,null,null,null,null,null,null,200]
["Orion Sparkle        *Prisma Elements","*","PVDF 40",null,null,null,null,null,null,null,null,null,null,null,null,null,null,null,220]
["Zeus Sparkle          *Prisma Elements","*","PVDF 40",null,null,null,null,null,null,null,null,null,null,null,null,null,null,null,240]
["Quadro Lucido","INOX",null,null,null,null,null,null,null,null,null,null,null,null,null,null,null,null,250]
["Dots Lucido","INOX"]
["2WL Lucido","INOX"]
["5WL Lucido","INOX"]
["Pelle Lucido","INOX"]
["Other"]
[]
[]
[]
[]
[]
[]
[]
[]
[]
[]
[]
["Type of packaging"]
["No selection"]
["Standard packaging"]
["Extended packaging"]
[]
[]
["Additional packaging elements"]
["Lifting bands"]
["No selection"]
["YES"]
["NO"]
[]
["Reinforcement pallets"]
["No selection"]
["YES"]
["NO"]
[]
["EPS support blocks"]
["No selection"]
["YES "]
["NO"]
[]
[]
[]
["Certificate requirement"]
["None"]
["FM approval"]
["CSTB France"]
["LPCB UK Insurance approval"]
["Ü (Zulassung) Germany"]
["BREEAM"]
["BREEAM Netherland"]
["LEED"]
["FOOD SAFE"]
["DGNB"]
["Other"]